Department Family,Entity,Date,Expense Type,Expense area,Supplier,Transaction Number,Amount,VAT registration Number
Department of Health,Salisbury NHS Foundation Trust,27-Jul-18,ENERGY WATER - SEWERAGE CHARGES,Old Laundry (not STL),BWBSL,2009016868037/03,26558.61,
Department of Health,Salisbury NHS Foundation Trust,20-Jul-18,PATS CONS TREATMENT COMMERCIAL,Clinical Support,VIRGIN CARE LIMITED,10300579985,79507,
Department of Health,Salisbury NHS Foundation Trust,20-Jul-18,PATS CONS TREATMENT COMMERCIAL,Clinical Support,VIRGIN CARE LIMITED,10300578987,81924,
Department of Health,Salisbury NHS Foundation Trust,20-Jul-18,DRUGS,Clinical Support,LLOYDSPHARMACY CLINICAL HOMECARE,SINV2986357,1464.68,
Department of Health,Salisbury NHS Foundation Trust,20-Jul-18,DRUGS,Clinical Support,LLOYDSPHARMACY CLINICAL HOMECARE,SINV2986357,31498.5,
Department of Health,Salisbury NHS Foundation Trust,20-Jul-18,DRUGS,Clinical Support,LLOYDSPHARMACY CLINICAL HOMECARE,SINV2986357,292.94,
Department of Health,Salisbury NHS Foundation Trust,13-Jul-18,RATES,Corporate - ETS,WILTSHIRE COUNCIL,Jul-18,119264,
Department of Health,Salisbury NHS Foundation Trust,13-Jul-18,SERVICES - AUDIT EXTERNAL NON STATUTORY,Corporate - Finance & Procurement,BDO LLP,1747090,6000,
Department of Health,Salisbury NHS Foundation Trust,20-Jul-18,FOODSTUFFS,Facilities,PELICAN PROCUREMENT SERVICES LTD,JUN-2018-NHS 1754,79729.91,
Department of Health,Salisbury NHS Foundation Trust,20-Jul-18,FOODSTUFFS,Facilities,PELICAN PROCUREMENT SERVICES LTD,JUN-2018-NHS 1754,2442.67,
Department of Health,Salisbury NHS Foundation Trust,13-Jul-18,SERVICES - AUDIT EXTERNAL NON STATUTORY,Corporate - Finance & Procurement,BDO LLP,1747090,6500,
Department of Health,Salisbury NHS Foundation Trust,13-Jul-18,SERVICES - AUDIT EXTERNAL NON STATUTORY,Corporate - Finance & Procurement,BDO LLP,1747090,18075,
Department of Health,Salisbury NHS Foundation Trust,13-Jul-18,SERVICES - AUDIT EXTERNAL NON STATUTORY,Corporate - Finance & Procurement,BDO LLP,1747090,1200,
Department of Health,Salisbury NHS Foundation Trust,13-Jul-18,SERVICES - AUDIT EXTERNAL NON STATUTORY,Corporate - Finance & Procurement,BDO LLP,1747090,1300,
Department of Health,Salisbury NHS Foundation Trust,13-Jul-18,SERVICES - AUDIT EXTERNAL NON STATUTORY,Corporate - Finance & Procurement,BDO LLP,1747090,3615,
Department of Health,Salisbury NHS Foundation Trust,27-Jul-18,MEDICAL EQUIPMENT 5 YEARS,Capital Projects,NHS SUPPLY CHAIN,9059000000,119683.05,
Department of Health,Salisbury NHS Foundation Trust,27-Jul-18,MED SURG EQUIP REP MAINT CLEANING,Capital Projects,NHS SUPPLY CHAIN,9059000000,23936.61,
Department of Health,Salisbury NHS Foundation Trust,27-Jul-18,DRUGS,Clinical Support,BAYER PLC,824C139865,26220,
Department of Health,Salisbury NHS Foundation Trust,27-Jul-18,DRUGS,Clinical Support,BAYER PLC,824C139865,5244,
Department of Health,Salisbury NHS Foundation Trust,30-Jul-18,SERVICES - AUDIT FEES INTERNAL,Corporate - Finance & Procurement,TIAA LTD,180724/2,40285,
Department of Health,Salisbury NHS Foundation Trust,20-Jul-18,MEDICAL EQUIPMENT 5 YEARS,Capital Projects,GENESIS MEDICAL/LTSBCF,662780,2980,
Department of Health,Salisbury NHS Foundation Trust,27-Jul-18,MEDSURGCONS-LAPAROSCOPIC EQUIPMENT,Corporate - Finance & Procurement,SRA DEVELOPMENTS LTD,90211862,53000,
Department of Health,Salisbury NHS Foundation Trust,27-Jul-18,MEDSURGCONS-LAPAROSCOPIC EQUIPMENT,Corporate - Finance & Procurement,SRA DEVELOPMENTS LTD,90211862,10600,
Department of Health,Salisbury NHS Foundation Trust,27-Jul-18,MED SURG EQUIP REP MAINT CLEANING,Medicine,SIEMENS HEALTHCARE LIMITED,1051043014,55081.29,
Department of Health,Salisbury NHS Foundation Trust,20-Jul-18,MEDICAL EQUIPMENT 5 YEARS,Capital Projects,GENESIS MEDICAL/LTSBCF,662780,14900,
Department of Health,Salisbury NHS Foundation Trust,20-Jul-18,MEDICAL EQUIPMENT 5 YEARS,Capital Projects,GENESIS MEDICAL/LTSBCF,662780,14400,
Department of Health,Salisbury NHS Foundation Trust,20-Jul-18,MEDICAL EQUIPMENT 5 YEARS,Capital Projects,GENESIS MEDICAL/LTSBCF,662780,10700,
Department of Health,Salisbury NHS Foundation Trust,20-Jul-18,MEDICAL EQUIPMENT 5 YEARS,Capital Projects,GENESIS MEDICAL/LTSBCF,662780,2880,
Department of Health,Salisbury NHS Foundation Trust,20-Jul-18,MEDICAL EQUIPMENT 5 YEARS,Capital Projects,GENESIS MEDICAL/LTSBCF,662780,2140,
Department of Health,Salisbury NHS Foundation Trust,20-Jul-18,PATS CONS TREATMENT COMMERCIAL,Musculo-Skeletal,LIVABILITY,SPI026179,42466.67,
Department of Health,Salisbury NHS Foundation Trust,13-Jul-18,MEDICAL EQUIPMENT 5 YEARS,Capital Projects,TALLEY GROUP LTD,AI056209,28500,
Department of Health,Salisbury NHS Foundation Trust,13-Jul-18,MEDICAL EQUIPMENT 5 YEARS,Capital Projects,TALLEY GROUP LTD,AI056209,5700,
Department of Health,Salisbury NHS Foundation Trust,13-Jul-18,DRUGS,Clinical Support,ROCHE PRODUCTS LTD,1322029479,23172.23,
Department of Health,Salisbury NHS Foundation Trust,13-Jul-18,DRUGS,Clinical Support,ROCHE PRODUCTS LTD,1322029479,4634.45,
Department of Health,Salisbury NHS Foundation Trust,13-Jul-18,DRUGS,Clinical Support,NOVARTIS PHARMACEUTICALS UK LTD,91992737,26712,
Department of Health,Salisbury NHS Foundation Trust,13-Jul-18,DRUGS,Clinical Support,NOVARTIS PHARMACEUTICALS UK LTD,91992737,5342.4,
Department of Health,Salisbury NHS Foundation Trust,20-Jul-18,CONTOUTSERVICES - WASTE DISPOSAL,Corporate - ETS,SRCL LIMITED,1230406,22481.82,
Department of Health,Salisbury NHS Foundation Trust,20-Jul-18,CONTOUTSERVICES - WASTE DISPOSAL,Corporate - ETS,SRCL LIMITED,1240826,21711.16,
Department of Health,Salisbury NHS Foundation Trust,13-Jul-18,DRUGS,Clinical Support,BAYER PLC,824C137523,43700,
Department of Health,Salisbury NHS Foundation Trust,13-Jul-18,DRUGS,Clinical Support,BAYER PLC,824C137523,8740,
Department of Health,Salisbury NHS Foundation Trust,13-Jul-18,DRUGS,Clinical Support,CSL BEHRING UK LIMITED,991843352,41708.33,
Department of Health,Salisbury NHS Foundation Trust,13-Jul-18,DRUGS,Clinical Support,CSL BEHRING UK LIMITED,991843352,8341.67,
Department of Health,Salisbury NHS Foundation Trust,20-Jul-18,MEDICAL EQUIPMENT 5 YEARS,Capital Projects,NEUROTECHNICS LIMITED,155306,26947,
Department of Health,Salisbury NHS Foundation Trust,20-Jul-18,MEDICAL EQUIPMENT 5 YEARS,Capital Projects,NEUROTECHNICS LIMITED,155306,5389.4,
Department of Health,Salisbury NHS Foundation Trust,13-Jul-18,MEDSURGCONS - OTHER,Medicine,MEDTRONIC LTD,1099004627,250,
Department of Health,Salisbury NHS Foundation Trust,13-Jul-18,MEDSURGCONS - OTHER,Medicine,MEDTRONIC LTD,1099004627,250,
Department of Health,Salisbury NHS Foundation Trust,13-Jul-18,MEDSURGCONS - OTHER,Medicine,MEDTRONIC LTD,1099004627,250,
Department of Health,Salisbury NHS Foundation Trust,13-Jul-18,MEDSURGCONS - OTHER,Medicine,MEDTRONIC LTD,1099004627,250,
Department of Health,Salisbury NHS Foundation Trust,13-Jul-18,MEDSURGCONS - OTHER,Medicine,MEDTRONIC LTD,1099004627,250,
Department of Health,Salisbury NHS Foundation Trust,13-Jul-18,MEDSURGCONS - OTHER,Medicine,MEDTRONIC LTD,1099004627,250,
Department of Health,Salisbury NHS Foundation Trust,13-Jul-18,MEDSURGCONS - OTHER,Medicine,MEDTRONIC LTD,1099004627,250,
Department of Health,Salisbury NHS Foundation Trust,13-Jul-18,MEDSURGCONS - OTHER,Medicine,MEDTRONIC LTD,1099004627,250,
Department of Health,Salisbury NHS Foundation Trust,13-Jul-18,MEDSURGCONS - OTHER,Medicine,MEDTRONIC LTD,1099004627,250,
Department of Health,Salisbury NHS Foundation Trust,13-Jul-18,MEDSURGCONS - OTHER,Medicine,MEDTRONIC LTD,1099004627,250,
Department of Health,Salisbury NHS Foundation Trust,13-Jul-18,MEDSURGCONS - OTHER,Medicine,MEDTRONIC LTD,1099004627,250,
Department of Health,Salisbury NHS Foundation Trust,13-Jul-18,MEDSURGCONS - OTHER,Medicine,MEDTRONIC LTD,1099004627,250,
Department of Health,Salisbury NHS Foundation Trust,13-Jul-18,MEDSURGCONS - OTHER,Medicine,MEDTRONIC LTD,1099004627,250,
Department of Health,Salisbury NHS Foundation Trust,13-Jul-18,MEDSURGCONS - OTHER,Medicine,MEDTRONIC LTD,1099004627,250,
Department of Health,Salisbury NHS Foundation Trust,13-Jul-18,MEDSURGCONS - OTHER,Medicine,MEDTRONIC LTD,1099004627,250,
Department of Health,Salisbury NHS Foundation Trust,13-Jul-18,MEDSURGCONS - OTHER,Medicine,MEDTRONIC LTD,1099004627,250,
Department of Health,Salisbury NHS Foundation Trust,13-Jul-18,MEDSURGCONS - OTHER,Medicine,MEDTRONIC LTD,1099004627,250,
Department of Health,Salisbury NHS Foundation Trust,13-Jul-18,MEDSURGCONS - OTHER,Medicine,MEDTRONIC LTD,1099004627,250,
Department of Health,Salisbury NHS Foundation Trust,13-Jul-18,MEDSURGCONS - OTHER,Medicine,MEDTRONIC LTD,1099004627,250,
Department of Health,Salisbury NHS Foundation Trust,13-Jul-18,MEDSURGCONS - OTHER,Medicine,MEDTRONIC LTD,1099004627,250,
Department of Health,Salisbury NHS Foundation Trust,13-Jul-18,MEDSURGCONS - OTHER,Medicine,MEDTRONIC LTD,1099004627,250,
Department of Health,Salisbury NHS Foundation Trust,13-Jul-18,MEDSURGCONS - OTHER,Medicine,MEDTRONIC LTD,1099004627,250,
Department of Health,Salisbury NHS Foundation Trust,13-Jul-18,MEDSURGCONS - OTHER,Medicine,MEDTRONIC LTD,1099004627,500,
Department of Health,Salisbury NHS Foundation Trust,13-Jul-18,MEDSURGCONS - OTHER,Medicine,MEDTRONIC LTD,1099004627,500,
Department of Health,Salisbury NHS Foundation Trust,13-Jul-18,MEDSURGCONS - OTHER,Medicine,MEDTRONIC LTD,1099004627,250,
Department of Health,Salisbury NHS Foundation Trust,13-Jul-18,MEDSURGCONS - OTHER,Medicine,MEDTRONIC LTD,1099004627,250,
Department of Health,Salisbury NHS Foundation Trust,13-Jul-18,MEDSURGCONS - OTHER,Medicine,MEDTRONIC LTD,1099004627,500,
Department of Health,Salisbury NHS Foundation Trust,13-Jul-18,MEDSURGCONS - OTHER,Medicine,MEDTRONIC LTD,1099004627,500,
Department of Health,Salisbury NHS Foundation Trust,13-Jul-18,MEDSURGCONS - OTHER,Medicine,MEDTRONIC LTD,1099004627,500,
Department of Health,Salisbury NHS Foundation Trust,13-Jul-18,MEDSURGCONS - OTHER,Medicine,MEDTRONIC LTD,1099004627,500,
Department of Health,Salisbury NHS Foundation Trust,13-Jul-18,MEDSURGCONS - OTHER,Medicine,MEDTRONIC LTD,1099004627,250,
Department of Health,Salisbury NHS Foundation Trust,13-Jul-18,MEDSURGCONS - OTHER,Medicine,MEDTRONIC LTD,1099004627,500,
Department of Health,Salisbury NHS Foundation Trust,13-Jul-18,MEDSURGCONS - OTHER,Medicine,MEDTRONIC LTD,1099004627,500,
Department of Health,Salisbury NHS Foundation Trust,13-Jul-18,MEDSURGCONS - OTHER,Medicine,MEDTRONIC LTD,1099004627,750,
Department of Health,Salisbury NHS Foundation Trust,13-Jul-18,MEDSURGCONS - OTHER,Medicine,MEDTRONIC LTD,1099004627,500,
Department of Health,Salisbury NHS Foundation Trust,13-Jul-18,MEDSURGCONS - OTHER,Medicine,MEDTRONIC LTD,1099004627,500,
Department of Health,Salisbury NHS Foundation Trust,13-Jul-18,MEDSURGCONS - OTHER,Medicine,MEDTRONIC LTD,1099004627,500,
Department of Health,Salisbury NHS Foundation Trust,13-Jul-18,MEDSURGCONS - OTHER,Medicine,MEDTRONIC LTD,1099004627,250,
Department of Health,Salisbury NHS Foundation Trust,13-Jul-18,MEDSURGCONS - OTHER,Medicine,MEDTRONIC LTD,1099004627,750,
Department of Health,Salisbury NHS Foundation Trust,13-Jul-18,MEDSURGCONS - OTHER,Medicine,MEDTRONIC LTD,1099004627,750,
Department of Health,Salisbury NHS Foundation Trust,13-Jul-18,MEDSURGCONS - OTHER,Medicine,MEDTRONIC LTD,1099004627,750,
Department of Health,Salisbury NHS Foundation Trust,13-Jul-18,MEDSURGCONS - OTHER,Medicine,MEDTRONIC LTD,1099004627,750,
Department of Health,Salisbury NHS Foundation Trust,13-Jul-18,MEDSURGCONS - OTHER,Medicine,MEDTRONIC LTD,1099004627,750,
Department of Health,Salisbury NHS Foundation Trust,13-Jul-18,MEDSURGCONS - OTHER,Medicine,MEDTRONIC LTD,1099004627,750,
Department of Health,Salisbury NHS Foundation Trust,13-Jul-18,MEDSURGCONS - OTHER,Medicine,MEDTRONIC LTD,1099004627,500,
Department of Health,Salisbury NHS Foundation Trust,13-Jul-18,MEDSURGCONS - OTHER,Medicine,MEDTRONIC LTD,1099004627,750,
Department of Health,Salisbury NHS Foundation Trust,13-Jul-18,MEDSURGCONS - OTHER,Medicine,MEDTRONIC LTD,1099004627,250,
Department of Health,Salisbury NHS Foundation Trust,13-Jul-18,MEDSURGCONS - OTHER,Medicine,MEDTRONIC LTD,1099004627,500,
Department of Health,Salisbury NHS Foundation Trust,13-Jul-18,MEDSURGCONS - OTHER,Medicine,MEDTRONIC LTD,1099004627,750,
Department of Health,Salisbury NHS Foundation Trust,13-Jul-18,MEDSURGCONS - OTHER,Medicine,MEDTRONIC LTD,1099004627,750,
Department of Health,Salisbury NHS Foundation Trust,13-Jul-18,MEDSURGCONS - OTHER,Medicine,MEDTRONIC LTD,1099004627,500,
Department of Health,Salisbury NHS Foundation Trust,13-Jul-18,MEDSURGCONS - OTHER,Medicine,MEDTRONIC LTD,1099004627,500,
Department of Health,Salisbury NHS Foundation Trust,13-Jul-18,MEDSURGCONS - OTHER,Medicine,MEDTRONIC LTD,1099004627,500,
Department of Health,Salisbury NHS Foundation Trust,13-Jul-18,MEDSURGCONS - OTHER,Medicine,MEDTRONIC LTD,1099004627,250,
Department of Health,Salisbury NHS Foundation Trust,13-Jul-18,MEDSURGCONS - OTHER,Medicine,MEDTRONIC LTD,1099004627,250,
Department of Health,Salisbury NHS Foundation Trust,13-Jul-18,MEDSURGCONS - OTHER,Medicine,MEDTRONIC LTD,1099004627,250,
Department of Health,Salisbury NHS Foundation Trust,13-Jul-18,MEDSURGCONS - OTHER,Medicine,MEDTRONIC LTD,1099004627,250,
Department of Health,Salisbury NHS Foundation Trust,13-Jul-18,MEDSURGCONS - OTHER,Medicine,MEDTRONIC LTD,1099004627,250,
Department of Health,Salisbury NHS Foundation Trust,13-Jul-18,MEDSURGCONS - OTHER,Medicine,MEDTRONIC LTD,1099004627,50,
Department of Health,Salisbury NHS Foundation Trust,13-Jul-18,MEDSURGCONS - OTHER,Medicine,MEDTRONIC LTD,1099004627,50,
Department of Health,Salisbury NHS Foundation Trust,13-Jul-18,MEDSURGCONS - OTHER,Medicine,MEDTRONIC LTD,1099004627,50,
Department of Health,Salisbury NHS Foundation Trust,13-Jul-18,MEDSURGCONS - OTHER,Medicine,MEDTRONIC LTD,1099004627,50,
Department of Health,Salisbury NHS Foundation Trust,13-Jul-18,MEDSURGCONS - OTHER,Medicine,MEDTRONIC LTD,1099004627,50,
Department of Health,Salisbury NHS Foundation Trust,13-Jul-18,MEDSURGCONS - OTHER,Medicine,MEDTRONIC LTD,1099004627,50,
Department of Health,Salisbury NHS Foundation Trust,13-Jul-18,MEDSURGCONS - OTHER,Medicine,MEDTRONIC LTD,1099004627,50,
Department of Health,Salisbury NHS Foundation Trust,13-Jul-18,MEDSURGCONS - OTHER,Medicine,MEDTRONIC LTD,1099004627,50,
Department of Health,Salisbury NHS Foundation Trust,13-Jul-18,MEDSURGCONS - OTHER,Medicine,MEDTRONIC LTD,1099004627,50,
Department of Health,Salisbury NHS Foundation Trust,13-Jul-18,MEDSURGCONS - OTHER,Medicine,MEDTRONIC LTD,1099004627,50,
Department of Health,Salisbury NHS Foundation Trust,13-Jul-18,MEDSURGCONS - OTHER,Medicine,MEDTRONIC LTD,1099004627,50,
Department of Health,Salisbury NHS Foundation Trust,13-Jul-18,MEDSURGCONS - OTHER,Medicine,MEDTRONIC LTD,1099004627,50,
Department of Health,Salisbury NHS Foundation Trust,13-Jul-18,MEDSURGCONS - OTHER,Medicine,MEDTRONIC LTD,1099004627,50,
Department of Health,Salisbury NHS Foundation Trust,13-Jul-18,MEDSURGCONS - OTHER,Medicine,MEDTRONIC LTD,1099004627,50,
Department of Health,Salisbury NHS Foundation Trust,13-Jul-18,MEDSURGCONS - OTHER,Medicine,MEDTRONIC LTD,1099004627,50,
Department of Health,Salisbury NHS Foundation Trust,13-Jul-18,MEDSURGCONS - OTHER,Medicine,MEDTRONIC LTD,1099004627,50,
Department of Health,Salisbury NHS Foundation Trust,13-Jul-18,MEDSURGCONS - OTHER,Medicine,MEDTRONIC LTD,1099004627,50,
Department of Health,Salisbury NHS Foundation Trust,13-Jul-18,MEDSURGCONS - OTHER,Medicine,MEDTRONIC LTD,1099004627,50,
Department of Health,Salisbury NHS Foundation Trust,13-Jul-18,MEDSURGCONS - OTHER,Medicine,MEDTRONIC LTD,1099004627,50,
Department of Health,Salisbury NHS Foundation Trust,13-Jul-18,MEDSURGCONS - OTHER,Medicine,MEDTRONIC LTD,1099004627,50,
Department of Health,Salisbury NHS Foundation Trust,13-Jul-18,MEDSURGCONS - OTHER,Medicine,MEDTRONIC LTD,1099004627,50,
Department of Health,Salisbury NHS Foundation Trust,13-Jul-18,MEDSURGCONS - OTHER,Medicine,MEDTRONIC LTD,1099004627,50,
Department of Health,Salisbury NHS Foundation Trust,13-Jul-18,MEDSURGCONS - OTHER,Medicine,MEDTRONIC LTD,1099004627,100,
Department of Health,Salisbury NHS Foundation Trust,13-Jul-18,MEDSURGCONS - OTHER,Medicine,MEDTRONIC LTD,1099004627,100,
Department of Health,Salisbury NHS Foundation Trust,13-Jul-18,MEDSURGCONS - OTHER,Medicine,MEDTRONIC LTD,1099004627,100,
Department of Health,Salisbury NHS Foundation Trust,13-Jul-18,MEDSURGCONS - OTHER,Medicine,MEDTRONIC LTD,1099004627,100,
Department of Health,Salisbury NHS Foundation Trust,13-Jul-18,MEDSURGCONS - OTHER,Medicine,MEDTRONIC LTD,1099004627,100,
Department of Health,Salisbury NHS Foundation Trust,13-Jul-18,MEDSURGCONS - OTHER,Medicine,MEDTRONIC LTD,1099004627,100,
Department of Health,Salisbury NHS Foundation Trust,13-Jul-18,MEDSURGCONS - OTHER,Medicine,MEDTRONIC LTD,1099004627,100,
Department of Health,Salisbury NHS Foundation Trust,13-Jul-18,MEDSURGCONS - OTHER,Medicine,MEDTRONIC LTD,1099004627,50,
Department of Health,Salisbury NHS Foundation Trust,13-Jul-18,MEDSURGCONS - OTHER,Medicine,MEDTRONIC LTD,1099004627,100,
Department of Health,Salisbury NHS Foundation Trust,13-Jul-18,MEDSURGCONS - OTHER,Medicine,MEDTRONIC LTD,1099004627,100,
Department of Health,Salisbury NHS Foundation Trust,13-Jul-18,MEDSURGCONS - OTHER,Medicine,MEDTRONIC LTD,1099004627,150,
Department of Health,Salisbury NHS Foundation Trust,13-Jul-18,MEDSURGCONS - OTHER,Medicine,MEDTRONIC LTD,1099004627,100,
Department of Health,Salisbury NHS Foundation Trust,13-Jul-18,MEDSURGCONS - OTHER,Medicine,MEDTRONIC LTD,1099004627,100,
Department of Health,Salisbury NHS Foundation Trust,13-Jul-18,MEDSURGCONS - OTHER,Medicine,MEDTRONIC LTD,1099004627,100,
Department of Health,Salisbury NHS Foundation Trust,13-Jul-18,MEDSURGCONS - OTHER,Medicine,MEDTRONIC LTD,1099004627,50,
Department of Health,Salisbury NHS Foundation Trust,13-Jul-18,MEDSURGCONS - OTHER,Medicine,MEDTRONIC LTD,1099004627,150,
Department of Health,Salisbury NHS Foundation Trust,13-Jul-18,MEDSURGCONS - OTHER,Medicine,MEDTRONIC LTD,1099004627,150,
Department of Health,Salisbury NHS Foundation Trust,13-Jul-18,MEDSURGCONS - OTHER,Medicine,MEDTRONIC LTD,1099004627,150,
Department of Health,Salisbury NHS Foundation Trust,13-Jul-18,MEDSURGCONS - OTHER,Medicine,MEDTRONIC LTD,1099004627,150,
Department of Health,Salisbury NHS Foundation Trust,13-Jul-18,MEDSURGCONS - OTHER,Medicine,MEDTRONIC LTD,1099004627,150,
Department of Health,Salisbury NHS Foundation Trust,13-Jul-18,MEDSURGCONS - OTHER,Medicine,MEDTRONIC LTD,1099004627,150,
Department of Health,Salisbury NHS Foundation Trust,13-Jul-18,MEDSURGCONS - OTHER,Medicine,MEDTRONIC LTD,1099004627,100,
Department of Health,Salisbury NHS Foundation Trust,13-Jul-18,MEDSURGCONS - OTHER,Medicine,MEDTRONIC LTD,1099004627,150,
Department of Health,Salisbury NHS Foundation Trust,13-Jul-18,MEDSURGCONS - OTHER,Medicine,MEDTRONIC LTD,1099004627,50,
Department of Health,Salisbury NHS Foundation Trust,13-Jul-18,MEDSURGCONS - OTHER,Medicine,MEDTRONIC LTD,1099004627,100,
Department of Health,Salisbury NHS Foundation Trust,13-Jul-18,MEDSURGCONS - OTHER,Medicine,MEDTRONIC LTD,1099004627,150,
Department of Health,Salisbury NHS Foundation Trust,13-Jul-18,MEDSURGCONS - OTHER,Medicine,MEDTRONIC LTD,1099004627,150,
Department of Health,Salisbury NHS Foundation Trust,13-Jul-18,MEDSURGCONS - OTHER,Medicine,MEDTRONIC LTD,1099004627,100,
Department of Health,Salisbury NHS Foundation Trust,13-Jul-18,MEDSURGCONS - OTHER,Medicine,MEDTRONIC LTD,1099004627,100,
Department of Health,Salisbury NHS Foundation Trust,13-Jul-18,MEDSURGCONS - OTHER,Medicine,MEDTRONIC LTD,1099004627,100,
Department of Health,Salisbury NHS Foundation Trust,13-Jul-18,MEDSURGCONS - OTHER,Medicine,MEDTRONIC LTD,1099004627,50,
Department of Health,Salisbury NHS Foundation Trust,13-Jul-18,MEDSURGCONS - OTHER,Medicine,MEDTRONIC LTD,1099004627,50,
Department of Health,Salisbury NHS Foundation Trust,13-Jul-18,MEDSURGCONS - OTHER,Medicine,MEDTRONIC LTD,1099004627,50,
Department of Health,Salisbury NHS Foundation Trust,13-Jul-18,MEDSURGCONS - OTHER,Medicine,MEDTRONIC LTD,1099004627,50,
Department of Health,Salisbury NHS Foundation Trust,13-Jul-18,MEDSURGCONS - OTHER,Medicine,MEDTRONIC LTD,1099004627,50,
Department of Health,Salisbury NHS Foundation Trust,13-Jul-18,MANAGEMENT CONSULTANCY CONTRACT STAFFING,Corporate - CEO,DELOITTE,1111607539,49883,
Department of Health,Salisbury NHS Foundation Trust,06-Jul-18,COMPUTER MAINTENANCE x,Reports & C/C not used,BIGHAND LTD,20055238,23963.53,
Department of Health,Salisbury NHS Foundation Trust,06-Jul-18,COMPUTER MAINTENANCE x,Reports & C/C not used,BIGHAND LTD,20055238,4792.71,
Department of Health,Salisbury NHS Foundation Trust,06-Jul-18,LAB REAGENTS-BUFFERS COMPUND SOLNS,Clinical Support,ILLUMINA CAMBRIDGE LTD,7020441532,26392.32,
Department of Health,Salisbury NHS Foundation Trust,06-Jul-18,LAB REAGENTS-BUFFERS COMPUND SOLNS,Clinical Support,ILLUMINA CAMBRIDGE LTD,7020441532,5278.46,
Department of Health,Salisbury NHS Foundation Trust,06-Jul-18,NETWORKING COSTS,Capital Projects,SOFTCAT LIMITED,INV01935138,179467.92,
Department of Health,Salisbury NHS Foundation Trust,06-Jul-18,NETWORKING COSTS,Capital Projects,SOFTCAT LIMITED,INV01935138,35893.58,
Department of Health,Salisbury NHS Foundation Trust,27-Jul-18,ENERGY WATER - ELECTRICITY,Corporate - ETS,SCOTTISH POWER,105671655,11670.76,
Department of Health,Salisbury NHS Foundation Trust,27-Jul-18,ENERGY WATER - WATER MAINS,Corporate - ETS,BWBSL,9051122288,43422.69,
Department of Health,Salisbury NHS Foundation Trust,27-Jul-18,ENERGY WATER - SEWERAGE CHARGES,Corporate - ETS,BWBSL,9051122288,16552.71,
Department of Health,Salisbury NHS Foundation Trust,27-Jul-18,ENERGY WATER - ELECTRICITY,Corporate - ETS,SCOTTISH POWER,105671655,6867.1,
Department of Health,Salisbury NHS Foundation Trust,27-Jul-18,ENERGY WATER - ELECTRICITY,Corporate - ETS,SCOTTISH POWER,105671655,58353.8,
Department of Health,Salisbury NHS Foundation Trust,27-Jul-18,ENERGY WATER - ELECTRICITY,Corporate - ETS,SCOTTISH POWER,105671655,343.36,
Department of Health,Salisbury NHS Foundation Trust,23-Jul-18,ENERGY WATER - GAS MAINS,Corporate - ETS,TOTAL GAS AND POWER LTD,172006576/18,89795.24,
Department of Health,Salisbury NHS Foundation Trust,20-Jul-18,ENERGY WATER - GAS MAINS,Corporate - ETS,TOTAL GAS AND POWER LTD,171980154/18,44021.28,
Department of Health,Salisbury NHS Foundation Trust,13-Jul-18,COSTS TO OTHER LABS,Clinical Support,UNIVERSITY HOSPITAL SOUTHAMPTON NHS FOUNDATION TRUST,7319937,3834.77,
Department of Health,Salisbury NHS Foundation Trust,06-Jul-18,OPERATIONS PERFMD  - OTHER HCARE ORG,Musculo-Skeletal,ORTHOPAEDICS PLASTICS & SPINAL SPECIALISTS LLP,OPSS-054,25687.2,
Department of Health,Salisbury NHS Foundation Trust,27-Jul-18,OPERATIONS PERFMD  - OTHER HCARE ORG,Musculo-Skeletal,ORTHOPAEDICS PLASTICS & SPINAL SPECIALISTS LLP,OPSS-055,40149.76,
Department of Health,Salisbury NHS Foundation Trust,06-Jul-18,ETS UNITARY CHARGE,ALLDIR (Top of Directorates),SALISBURY HEALTHCARE FACILITIES LTD,422,322014.51,
Department of Health,Salisbury NHS Foundation Trust,31-Jul-18,MEDSURGCONS-SUTURES,Surgery,NHS LOGISTICS,1019084203,76.6,
Department of Health,Salisbury NHS Foundation Trust,31-Jul-18,MEDSURGCONS-SUTURES,Surgery,NHS LOGISTICS,1019084203,55.55,
Department of Health,Salisbury NHS Foundation Trust,31-Jul-18,MEDSURGCONS-SUTURES,Surgery,NHS LOGISTICS,1019084203,296.67,
Department of Health,Salisbury NHS Foundation Trust,31-Jul-18,MEDSURGCONS-SUTURES,Surgery,NHS LOGISTICS,1019084203,102.74,
Department of Health,Salisbury NHS Foundation Trust,31-Jul-18,MEDSURGCONS-SUTURES,Surgery,NHS LOGISTICS,1019084203,148.33,
Department of Health,Salisbury NHS Foundation Trust,31-Jul-18,MEDSURGCONS-SUTURES,Surgery,NHS LOGISTICS,1019084203,76.59,
Department of Health,Salisbury NHS Foundation Trust,31-Jul-18,LAB EQUIP-LABORATORY APPARATUS,Clinical Support,NHS LOGISTICS,1019084203,153.2,
Department of Health,Salisbury NHS Foundation Trust,31-Jul-18,DISPOSABLE THEATRE DRAPES WIPES,Clinical Support,NHS LOGISTICS,1019084203,61.7,
Department of Health,Salisbury NHS Foundation Trust,31-Jul-18,SURGICAL INSTRUMENTS: GENERAL,Musculo-Skeletal,NHS LOGISTICS,1019084203,99.99,
Department of Health,Salisbury NHS Foundation Trust,31-Jul-18,DRESSINGS - PRE STERILE,Musculo-Skeletal,NHS LOGISTICS,1019084203,23.28,
Department of Health,Salisbury NHS Foundation Trust,13-Jul-18,COSTS TO OTHER LABS,Clinical Support,UNIVERSITY HOSPITAL SOUTHAMPTON NHS FOUNDATION TRUST,7319937,34154.9,
Department of Health,Salisbury NHS Foundation Trust,31-Jul-18,OTHER MEDICAL SUPPLIES,Surgery,NHS LOGISTICS,1019084203,11.46,
Department of Health,Salisbury NHS Foundation Trust,31-Jul-18,OTHER MEDICAL SUPPLIES,Surgery,NHS LOGISTICS,1019084203,11.46,
Department of Health,Salisbury NHS Foundation Trust,31-Jul-18,DRESSINGS - PRE STERILE,Musculo-Skeletal,NHS LOGISTICS,1019084203,50.3,
Department of Health,Salisbury NHS Foundation Trust,31-Jul-18,OTHER MEDICAL SUPPLIES,Surgery,NHS LOGISTICS,1019084203,6.84,
Department of Health,Salisbury NHS Foundation Trust,31-Jul-18,MEDSURGCONS - OTHER,Surgery,NHS LOGISTICS,1019084203,57.85,
Department of Health,Salisbury NHS Foundation Trust,31-Jul-18,BAGS SACKS - OTHER,Clinical Support,NHS LOGISTICS,1019084203,51.25,
Department of Health,Salisbury NHS Foundation Trust,31-Jul-18,MEDSURGCONS - OTHER,Corporate - HR/Education,NHS LOGISTICS,1019084203,0.88,
Department of Health,Salisbury NHS Foundation Trust,31-Jul-18,DRESSINGS - PRE STERILE,Surgery,NHS LOGISTICS,1019084203,31.12,
Department of Health,Salisbury NHS Foundation Trust,31-Jul-18,DRESSINGS - PRE STERILE,Musculo-Skeletal,NHS LOGISTICS,1019084203,7.01,
Department of Health,Salisbury NHS Foundation Trust,31-Jul-18,DRESSINGS - PRE STERILE,Musculo-Skeletal,NHS LOGISTICS,1019084203,5.96,
Department of Health,Salisbury NHS Foundation Trust,31-Jul-18,DRESSINGS - PRE STERILE,Musculo-Skeletal,NHS LOGISTICS,1019084203,15.31,
Department of Health,Salisbury NHS Foundation Trust,31-Jul-18,DRESSINGS - PRE STERILE,Musculo-Skeletal,NHS LOGISTICS,1019084203,0.93,
Department of Health,Salisbury NHS Foundation Trust,31-Jul-18,DRESSINGS - PRE STERILE,Musculo-Skeletal,NHS LOGISTICS,1019084203,21.88,
Department of Health,Salisbury NHS Foundation Trust,31-Jul-18,DRESSINGS - PRE STERILE,Musculo-Skeletal,NHS LOGISTICS,1019084203,20.25,
Department of Health,Salisbury NHS Foundation Trust,31-Jul-18,DRESSINGS - PRE STERILE,Musculo-Skeletal,NHS LOGISTICS,1019084203,21.88,
Department of Health,Salisbury NHS Foundation Trust,31-Jul-18,DRESSINGS - PRE STERILE,Musculo-Skeletal,NHS LOGISTICS,1019084203,20.25,
Department of Health,Salisbury NHS Foundation Trust,31-Jul-18,DRESSINGS - PRE STERILE,Musculo-Skeletal,NHS LOGISTICS,1019084203,46.57,
Department of Health,Salisbury NHS Foundation Trust,31-Jul-18,DRESSINGS - PRE STERILE,Musculo-Skeletal,NHS LOGISTICS,1019084203,23.28,
Department of Health,Salisbury NHS Foundation Trust,31-Jul-18,DRESSINGS - PRE STERILE,Musculo-Skeletal,NHS LOGISTICS,1019084203,75.08,
Department of Health,Salisbury NHS Foundation Trust,31-Jul-18,DRESSINGS - PRE STERILE,Musculo-Skeletal,NHS LOGISTICS,1019084203,25.03,
Department of Health,Salisbury NHS Foundation Trust,31-Jul-18,DRESSINGS - PRE STERILE,Musculo-Skeletal,NHS LOGISTICS,1019084203,25.2,
Department of Health,Salisbury NHS Foundation Trust,31-Jul-18,DRESSINGS - PRE STERILE,Musculo-Skeletal,NHS LOGISTICS,1019084203,10.28,
Department of Health,Salisbury NHS Foundation Trust,31-Jul-18,DRESSINGS - PRE STERILE,Musculo-Skeletal,NHS LOGISTICS,1019084203,10.34,
Department of Health,Salisbury NHS Foundation Trust,31-Jul-18,DRESSINGS - PRE STERILE,Musculo-Skeletal,NHS LOGISTICS,1019084203,2.49,
Department of Health,Salisbury NHS Foundation Trust,31-Jul-18,DISPOSABLE THEATRE DRAPES WIPES,Musculo-Skeletal,NHS LOGISTICS,1019084203,0.66,
Department of Health,Salisbury NHS Foundation Trust,31-Jul-18,DRESSINGS - PRE STERILE,Musculo-Skeletal,NHS LOGISTICS,1019084203,67.07,
Department of Health,Salisbury NHS Foundation Trust,31-Jul-18,DRESSINGS - PRE STERILE,Musculo-Skeletal,NHS LOGISTICS,1019084203,2.68,
Department of Health,Salisbury NHS Foundation Trust,31-Jul-18,DRESSINGS - PRE STERILE,Musculo-Skeletal,NHS LOGISTICS,1019084203,1.2,
Department of Health,Salisbury NHS Foundation Trust,31-Jul-18,TOILETRIES PERSONAL HYGIENE PRODUCTS,Musculo-Skeletal,NHS LOGISTICS,1019084203,1.54,
Department of Health,Salisbury NHS Foundation Trust,31-Jul-18,TISSUES HAND TOWELS & TOILET PAPER,Musculo-Skeletal,NHS LOGISTICS,1019084203,4.97,
Department of Health,Salisbury NHS Foundation Trust,31-Jul-18,DRESSINGS - PRE STERILE,Musculo-Skeletal,NHS LOGISTICS,1019084203,1.8,
Department of Health,Salisbury NHS Foundation Trust,31-Jul-18,DRESSINGS - PRE STERILE,Musculo-Skeletal,NHS LOGISTICS,1019084203,359.35,
Department of Health,Salisbury NHS Foundation Trust,31-Jul-18,PATIENT APPLIANCES,Surgery,NHS LOGISTICS,1019084203,181.6,
Department of Health,Salisbury NHS Foundation Trust,31-Jul-18,MEDSURGCONS - OTHER,Musculo-Skeletal,NHS LOGISTICS,1019084203,155.23,
Department of Health,Salisbury NHS Foundation Trust,31-Jul-18,TOILETRIES PERSONAL HYGIENE PRODUCTS,Medicine,NHS LOGISTICS,1019084203,2.88,
Department of Health,Salisbury NHS Foundation Trust,31-Jul-18,TOILETRIES PERSONAL HYGIENE PRODUCTS,Medicine,NHS LOGISTICS,1019084203,2.17,
Department of Health,Salisbury NHS Foundation Trust,31-Jul-18,OTHER MEDICAL SUPPLIES,Surgery,NHS LOGISTICS,1019084203,4.44,
Department of Health,Salisbury NHS Foundation Trust,31-Jul-18,SURGICAL INSTRUMENTS: GENERAL,Clinical Support,NHS LOGISTICS,1019084203,99.99,
Department of Health,Salisbury NHS Foundation Trust,31-Jul-18,MEDSURGCONS - OTHER,Clinical Support,NHS LOGISTICS,1019084203,31.96,
Department of Health,Salisbury NHS Foundation Trust,31-Jul-18,OTHER MEDICAL SUPPLIES,Surgery,NHS LOGISTICS,1019084203,41.6,
Department of Health,Salisbury NHS Foundation Trust,31-Jul-18,MEDSURGCONS-SUTURES,Surgery,NHS LOGISTICS,1019084203,48.04,
Department of Health,Salisbury NHS Foundation Trust,31-Jul-18,SURGICAL INSTRUMENTS: GENERAL,Surgery,NHS LOGISTICS,1019084203,85.91,
Department of Health,Salisbury NHS Foundation Trust,31-Jul-18,MEDSURGCONS - OTHER,Surgery,NHS LOGISTICS,1019084203,10.22,
Department of Health,Salisbury NHS Foundation Trust,31-Jul-18,OTHER MEDICAL SUPPLIES,Surgery,NHS LOGISTICS,1019084203,11.46,
Department of Health,Salisbury NHS Foundation Trust,31-Jul-18,MEDSURGCONS - OTHER,Surgery,NHS LOGISTICS,1019084203,91.3,
Department of Health,Salisbury NHS Foundation Trust,31-Jul-18,SURGICAL INSTRUMENTS: GENERAL,Surgery,NHS LOGISTICS,1019084203,110.91,
Department of Health,Salisbury NHS Foundation Trust,31-Jul-18,M & S EQUIPELECTEQUIPINST - OTHER,Surgery,NHS LOGISTICS,1019084203,275.51,
Department of Health,Salisbury NHS Foundation Trust,31-Jul-18,M & S EQUIPELECTEQUIPINST - OTHER,Surgery,NHS LOGISTICS,1019084203,229.17,
Department of Health,Salisbury NHS Foundation Trust,31-Jul-18,M & S EQUIPELECTEQUIPINST - OTHER,Surgery,NHS LOGISTICS,1019084203,114.58,
Department of Health,Salisbury NHS Foundation Trust,31-Jul-18,SURGICAL INSTRUMENTS: GENERAL,Surgery,NHS LOGISTICS,1019084203,145.09,
Department of Health,Salisbury NHS Foundation Trust,31-Jul-18,DRESSINGS - PRE STERILE,Medicine,NHS LOGISTICS,1019084203,0.93,
Department of Health,Salisbury NHS Foundation Trust,31-Jul-18,OTHER MEDICAL SUPPLIES,Medicine,NHS LOGISTICS,1019084203,8.18,
Department of Health,Salisbury NHS Foundation Trust,31-Jul-18,OTHER MEDICAL SUPPLIES,Medicine,NHS LOGISTICS,1019084203,3.77,
Department of Health,Salisbury NHS Foundation Trust,31-Jul-18,PATIENT APPLIANCES,Medicine,NHS LOGISTICS,1019084203,6.7,
Department of Health,Salisbury NHS Foundation Trust,31-Jul-18,PATIENT APPLIANCES,Medicine,NHS LOGISTICS,1019084203,3.35,
Department of Health,Salisbury NHS Foundation Trust,31-Jul-18,PATIENT APPLIANCES,Medicine,NHS LOGISTICS,1019084203,8.78,
Department of Health,Salisbury NHS Foundation Trust,31-Jul-18,MEDSURGCONS - OTHER,Medicine,NHS LOGISTICS,1019084203,5.89,
Department of Health,Salisbury NHS Foundation Trust,31-Jul-18,MEDSURGCONS - OTHER,Medicine,NHS LOGISTICS,1019084203,3.91,
Department of Health,Salisbury NHS Foundation Trust,31-Jul-18,MEDSURGCONS - OTHER,Medicine,NHS LOGISTICS,1019084203,6.82,
Department of Health,Salisbury NHS Foundation Trust,31-Jul-18,MEDSURGCONS - OTHER,Medicine,NHS LOGISTICS,1019084203,14.3,
Department of Health,Salisbury NHS Foundation Trust,31-Jul-18,MEDSURGCONS - OTHER,Medicine,NHS LOGISTICS,1019084203,0.88,
Department of Health,Salisbury NHS Foundation Trust,31-Jul-18,DISPOSABLE THEATRE DRAPES WIPES,Medicine,NHS LOGISTICS,1019084203,3.55,
Department of Health,Salisbury NHS Foundation Trust,31-Jul-18,BAGS SACKS - OTHER,Facilities,NHS LOGISTICS,1019084203,129,
Department of Health,Salisbury NHS Foundation Trust,31-Jul-18,BAGS SACKS - OTHER,Facilities,NHS LOGISTICS,1019084203,10.13,
Department of Health,Salisbury NHS Foundation Trust,31-Jul-18,BAGS SACKS - OTHER,Facilities,NHS LOGISTICS,1019084203,3.99,
Department of Health,Salisbury NHS Foundation Trust,31-Jul-18,LIQUID REFRESHMENTS,Facilities,NHS LOGISTICS,1019084203,7.82,
Department of Health,Salisbury NHS Foundation Trust,31-Jul-18,CLEANING MATERIALS PRODUCTS SUNDRIES,Facilities,NHS LOGISTICS,1019084203,46.4,
Department of Health,Salisbury NHS Foundation Trust,31-Jul-18,TOILETRIES PERSONAL HYGIENE PRODUCTS,Facilities,NHS LOGISTICS,1019084203,121.4,
Department of Health,Salisbury NHS Foundation Trust,31-Jul-18,BAGS SACKS - OTHER,Facilities,NHS LOGISTICS,1019084203,21.03,
Department of Health,Salisbury NHS Foundation Trust,31-Jul-18,CLEANING MATERIALS PRODUCTS SUNDRIES,Facilities,NHS LOGISTICS,1019084203,79.8,
Department of Health,Salisbury NHS Foundation Trust,31-Jul-18,CLEANING MATERIALS PRODUCTS SUNDRIES,Facilities,NHS LOGISTICS,1019084203,22.57,
Department of Health,Salisbury NHS Foundation Trust,31-Jul-18,DISPOSABLE THEATRE DRAPES WIPES,Facilities,NHS LOGISTICS,1019084203,68.4,
Department of Health,Salisbury NHS Foundation Trust,31-Jul-18,LAB EQUIP-LABORATORY APPARATUS,Clinical Support,NHS LOGISTICS,1019084203,51.33,
Department of Health,Salisbury NHS Foundation Trust,31-Jul-18,OTHER MEDICAL SUPPLIES,Surgery,NHS LOGISTICS,1019084203,18.18,
Department of Health,Salisbury NHS Foundation Trust,31-Jul-18,OTHER MEDICAL SUPPLIES,Surgery,NHS LOGISTICS,1019084203,18.83,
Department of Health,Salisbury NHS Foundation Trust,31-Jul-18,OTHER MEDICAL SUPPLIES,Surgery,NHS LOGISTICS,1019084203,10.08,
Department of Health,Salisbury NHS Foundation Trust,31-Jul-18,OTHER MEDICAL SUPPLIES,Surgery,NHS LOGISTICS,1019084203,11.42,
Department of Health,Salisbury NHS Foundation Trust,31-Jul-18,PATIENT APPLIANCES,Medicine,NHS LOGISTICS,1019084203,3.35,
Department of Health,Salisbury NHS Foundation Trust,31-Jul-18,PATIENT APPLIANCES,Medicine,NHS LOGISTICS,1019084203,3.35,
Department of Health,Salisbury NHS Foundation Trust,31-Jul-18,PATIENT APPLIANCES,Medicine,NHS LOGISTICS,1019084203,3.35,
Department of Health,Salisbury NHS Foundation Trust,31-Jul-18,OTHER MEDICAL SUPPLIES,Medicine,NHS LOGISTICS,1019084203,1.33,
Department of Health,Salisbury NHS Foundation Trust,31-Jul-18,M & S EQUIPELECTEQUIPINST - OTHER,Surgery,NHS LOGISTICS,1019084203,51,
Department of Health,Salisbury NHS Foundation Trust,31-Jul-18,DRESSINGS - PRE STERILE,Musculo-Skeletal,NHS LOGISTICS,1019084203,1.98,
Department of Health,Salisbury NHS Foundation Trust,31-Jul-18,DRESSINGS - PRE STERILE,Musculo-Skeletal,NHS LOGISTICS,1019084203,1.87,
Department of Health,Salisbury NHS Foundation Trust,31-Jul-18,DRESSINGS - PRE STERILE,Medicine,NHS LOGISTICS,1019084203,1.87,
Department of Health,Salisbury NHS Foundation Trust,31-Jul-18,COOKING & KITCHEN UTENSILS,Medicine,NHS LOGISTICS,1019084203,8.86,
Department of Health,Salisbury NHS Foundation Trust,31-Jul-18,DRESSINGS - PRE STERILE,Medicine,NHS LOGISTICS,1019084203,2.58,
Department of Health,Salisbury NHS Foundation Trust,31-Jul-18,DRESSINGS - PRE STERILE,Medicine,NHS LOGISTICS,1019084203,2.58,
Department of Health,Salisbury NHS Foundation Trust,31-Jul-18,DRESSINGS - PRE STERILE,Medicine,NHS LOGISTICS,1019084203,2.58,
Department of Health,Salisbury NHS Foundation Trust,31-Jul-18,DRESSINGS - PRE STERILE,Medicine,NHS LOGISTICS,1019084203,4.05,
Department of Health,Salisbury NHS Foundation Trust,31-Jul-18,MEDSURGCONS - OTHER,Medicine,NHS LOGISTICS,1019084203,3.91,
Department of Health,Salisbury NHS Foundation Trust,31-Jul-18,MEDSURGCONS - OTHER,Medicine,NHS LOGISTICS,1019084203,0.88,
Department of Health,Salisbury NHS Foundation Trust,31-Jul-18,NON DISPOSABLE THEATRE DRAPES WIPES,Surgery,NHS LOGISTICS,1019084203,108.92,
Department of Health,Salisbury NHS Foundation Trust,31-Jul-18,DRESSINGS - PRE STERILE,Surgery,NHS LOGISTICS,1019084203,556.13,
Department of Health,Salisbury NHS Foundation Trust,31-Jul-18,OTHER MEDICAL SUPPLIES,Surgery,NHS LOGISTICS,1019084203,223.72,
Department of Health,Salisbury NHS Foundation Trust,31-Jul-18,DISPOSABLE THEATRE DRAPES WIPES,Surgery,NHS LOGISTICS,1019084203,37.46,
Department of Health,Salisbury NHS Foundation Trust,31-Jul-18,OTHER MEDICAL SUPPLIES,Surgery,NHS LOGISTICS,1019084203,8.18,
Department of Health,Salisbury NHS Foundation Trust,31-Jul-18,MEDSURGCONS - OTHER,Surgery,NHS LOGISTICS,1019084203,60.58,
Department of Health,Salisbury NHS Foundation Trust,31-Jul-18,MEDSURGCONS-SUTURES,Surgery,NHS LOGISTICS,1019084203,57.14,
Department of Health,Salisbury NHS Foundation Trust,31-Jul-18,M & S EQUIPELECTEQUIPINST - OTHER,Clinical Support,NHS LOGISTICS,1019084203,350.5,
Department of Health,Salisbury NHS Foundation Trust,31-Jul-18,M & S EQUIPELECTEQUIPINST - OTHER,Clinical Support,NHS LOGISTICS,1019084203,577.33,
Department of Health,Salisbury NHS Foundation Trust,31-Jul-18,M & S EQUIPELECTEQUIPINST - OTHER,Clinical Support,NHS LOGISTICS,1019084203,154.63,
Department of Health,Salisbury NHS Foundation Trust,31-Jul-18,PATIENT APPLIANCES,Medicine,NHS LOGISTICS,1019084203,157.83,
Department of Health,Salisbury NHS Foundation Trust,31-Jul-18,OTHER MEDICAL SUPPLIES,Medicine,NHS LOGISTICS,1019084203,14.08,
Department of Health,Salisbury NHS Foundation Trust,31-Jul-18,PATIENT APPLIANCES,Medicine,NHS LOGISTICS,1019084203,4.03,
Department of Health,Salisbury NHS Foundation Trust,31-Jul-18,PATIENT APPLIANCES,Medicine,NHS LOGISTICS,1019084203,8.05,
Department of Health,Salisbury NHS Foundation Trust,31-Jul-18,PATIENT APPLIANCES,Medicine,NHS LOGISTICS,1019084203,8.05,
Department of Health,Salisbury NHS Foundation Trust,31-Jul-18,ANAESTHETIC EQUIPMENT ACCESSORIES,Medicine,NHS LOGISTICS,1019084203,9.38,
Department of Health,Salisbury NHS Foundation Trust,31-Jul-18,DRUGS,Medicine,NHS LOGISTICS,1019084203,9.35,
Department of Health,Salisbury NHS Foundation Trust,31-Jul-18,MEDSURGCONS - OTHER,Medicine,NHS LOGISTICS,1019084203,3.53,
Department of Health,Salisbury NHS Foundation Trust,31-Jul-18,NON DISPOSABLE BED LINEN,Medicine,NHS LOGISTICS,1019084203,3.75,
Department of Health,Salisbury NHS Foundation Trust,31-Jul-18,DISPOSABLE THEATRE DRAPES WIPES,Medicine,NHS LOGISTICS,1019084203,7.1,
Department of Health,Salisbury NHS Foundation Trust,31-Jul-18,MED SURG EQUIP REP MAINT CLEANING,Clinical Support,NHS LOGISTICS,1019084203,218.55,
Department of Health,Salisbury NHS Foundation Trust,31-Jul-18,M & S EQUIPELECTEQUIPINST - OTHER,Clinical Support,NHS LOGISTICS,1019084203,360.83,
Department of Health,Salisbury NHS Foundation Trust,31-Jul-18,M & S EQUIPELECTEQUIPINST - OTHER,Clinical Support,NHS LOGISTICS,1019084203,434.02,
Department of Health,Salisbury NHS Foundation Trust,31-Jul-18,OTHER MEDICAL SUPPLIES,Clinical Support,NHS LOGISTICS,1019084203,74.97,
Department of Health,Salisbury NHS Foundation Trust,31-Jul-18,NON DISPOSABLE BED LINEN,Clinical Support,NHS LOGISTICS,1019084203,7.5,
Department of Health,Salisbury NHS Foundation Trust,31-Jul-18,SERVICES FROM NHS BODIES,Musculo-Skeletal,NHS LOGISTICS,1019084203,4.44,
Department of Health,Salisbury NHS Foundation Trust,31-Jul-18,MEDSURGCONS - OTHER,Clinical Support,NHS LOGISTICS,1019084203,9.57,
Department of Health,Salisbury NHS Foundation Trust,31-Jul-18,DRESSINGS - PRE STERILE,Surgery,NHS LOGISTICS,1019084203,84.43,
Department of Health,Salisbury NHS Foundation Trust,31-Jul-18,DRESSINGS - PRE STERILE,Surgery,NHS LOGISTICS,1019084203,69.52,
Department of Health,Salisbury NHS Foundation Trust,31-Jul-18,MEDSURGCONS - OTHER,Corporate - Medical,NHS LOGISTICS,1019084203,11.66,
Department of Health,Salisbury NHS Foundation Trust,31-Jul-18,DRESSINGS - PRE STERILE,Medicine,NHS LOGISTICS,1019084203,4.41,
Department of Health,Salisbury NHS Foundation Trust,31-Jul-18,DRESSINGS - PRE STERILE,Medicine,NHS LOGISTICS,1019084203,6,
Department of Health,Salisbury NHS Foundation Trust,31-Jul-18,DRESSINGS - PRE STERILE,Medicine,NHS LOGISTICS,1019084203,1.8,
Department of Health,Salisbury NHS Foundation Trust,31-Jul-18,DRESSINGS - PRE STERILE,Medicine,NHS LOGISTICS,1019084203,14,
Department of Health,Salisbury NHS Foundation Trust,31-Jul-18,DRESSINGS - PRE STERILE,Medicine,NHS LOGISTICS,1019084203,7.47,
Department of Health,Salisbury NHS Foundation Trust,31-Jul-18,MEDSURGCONS - OTHER,Clinical Support,NHS LOGISTICS,1019084203,44.53,
Department of Health,Salisbury NHS Foundation Trust,31-Jul-18,MEDSURGCONS - OTHER,Medicine,NHS LOGISTICS,1019084203,73.47,
Department of Health,Salisbury NHS Foundation Trust,31-Jul-18,TISSUES HAND TOWELS & TOILET PAPER,Medicine,NHS LOGISTICS,1019084203,2.48,
Department of Health,Salisbury NHS Foundation Trust,31-Jul-18,TISSUES HAND TOWELS & TOILET PAPER,Musculo-Skeletal,NHS LOGISTICS,1019084203,1.24,
Department of Health,Salisbury NHS Foundation Trust,31-Jul-18,HEALTHCARE - WEAR,Musculo-Skeletal,NHS LOGISTICS,1019084203,7.5,
Department of Health,Salisbury NHS Foundation Trust,31-Jul-18,OTHER MEDICAL SUPPLIES,Medicine,NHS LOGISTICS,1019084203,8.18,
Department of Health,Salisbury NHS Foundation Trust,31-Jul-18,ANAESTHETIC EQUIPMENT ACCESSORIES,Clinical Support,NHS LOGISTICS,1019084203,67.71,
Department of Health,Salisbury NHS Foundation Trust,31-Jul-18,MEDSURGCONS - OTHER,Corporate - Finance & Procurement,NHS LOGISTICS,1019084203,1595.75,
Department of Health,Salisbury NHS Foundation Trust,31-Jul-18,COOKING & KITCHEN UTENSILS,Corporate - Finance & Procurement,NHS LOGISTICS,1019084203,185,
Department of Health,Salisbury NHS Foundation Trust,31-Jul-18,ELECTRICAL EQUIPMENT x,Facilities,NHS LOGISTICS,1019084203,46.4,
Department of Health,Salisbury NHS Foundation Trust,31-Jul-18,NON DISPOSABLE BED LINEN,Medicine,NHS LOGISTICS,1019084203,30,
Department of Health,Salisbury NHS Foundation Trust,31-Jul-18,NON DISPOSABLE BED LINEN,Medicine,NHS LOGISTICS,1019084203,15,
Department of Health,Salisbury NHS Foundation Trust,31-Jul-18,DRUGS,Corporate - Medical,NHS LOGISTICS,1019084203,11.2,
Department of Health,Salisbury NHS Foundation Trust,31-Jul-18,DISPOSABLE THEATRE DRAPES WIPES,Corporate - Medical,NHS LOGISTICS,1019084203,3.55,
Department of Health,Salisbury NHS Foundation Trust,31-Jul-18,SURGICAL INSTRUMENTS: DISPOSABLE,Medicine,NHS LOGISTICS,1019084203,12.77,
Department of Health,Salisbury NHS Foundation Trust,31-Jul-18,SURGICAL INSTRUMENTS: DISPOSABLE,Medicine,NHS LOGISTICS,1019084203,24,
Department of Health,Salisbury NHS Foundation Trust,31-Jul-18,DRESSINGS - PRE STERILE,Medicine,NHS LOGISTICS,1019084203,3.9,
Department of Health,Salisbury NHS Foundation Trust,31-Jul-18,DRESSINGS - PRE STERILE,Medicine,NHS LOGISTICS,1019084203,10.32,
Department of Health,Salisbury NHS Foundation Trust,31-Jul-18,ELECTRICAL EQUIPMENT x,Clinical Support,NHS LOGISTICS,1019084203,5.8,
Department of Health,Salisbury NHS Foundation Trust,31-Jul-18,ELECTRICAL EQUIPMENT x,Musculo-Skeletal,NHS LOGISTICS,1019084203,18.42,
Department of Health,Salisbury NHS Foundation Trust,31-Jul-18,TOILETRIES PERSONAL HYGIENE PRODUCTS,Medicine,NHS LOGISTICS,1019084203,3.08,
Department of Health,Salisbury NHS Foundation Trust,31-Jul-18,TISSUES HAND TOWELS & TOILET PAPER,Medicine,NHS LOGISTICS,1019084203,1.17,
Department of Health,Salisbury NHS Foundation Trust,31-Jul-18,TISSUES HAND TOWELS & TOILET PAPER,Medicine,NHS LOGISTICS,1019084203,3.72,
Department of Health,Salisbury NHS Foundation Trust,31-Jul-18,NON DISPOSABLE BED LINEN,Surgery,NHS LOGISTICS,1019084203,45,
Department of Health,Salisbury NHS Foundation Trust,31-Jul-18,TISSUES HAND TOWELS & TOILET PAPER,Clinical Support,NHS LOGISTICS,1019084203,2.48,
Department of Health,Salisbury NHS Foundation Trust,31-Jul-18,DRESSINGS - PRE STERILE,Medicine,NHS LOGISTICS,1019084203,0.93,
Department of Health,Salisbury NHS Foundation Trust,31-Jul-18,DRESSINGS - PRE STERILE,Clinical Support,NHS LOGISTICS,1019084203,9.08,
Department of Health,Salisbury NHS Foundation Trust,31-Jul-18,NON DISPOSABLE BED LINEN,Medicine,NHS LOGISTICS,1019084203,3.75,
Department of Health,Salisbury NHS Foundation Trust,31-Jul-18,TISSUES HAND TOWELS & TOILET PAPER,Medicine,NHS LOGISTICS,1019084203,1.24,
Department of Health,Salisbury NHS Foundation Trust,31-Jul-18,DISPOSABLE THEATRE DRAPES WIPES,Medicine,NHS LOGISTICS,1019084203,6,
Department of Health,Salisbury NHS Foundation Trust,31-Jul-18,DRESSINGS - PRE STERILE,Medicine,NHS LOGISTICS,1019084203,150,
Department of Health,Salisbury NHS Foundation Trust,31-Jul-18,MEDSURGCONS - OTHER,Medicine,NHS LOGISTICS,1019084203,7.15,
Department of Health,Salisbury NHS Foundation Trust,31-Jul-18,OTHER MEDICAL SUPPLIES,Medicine,NHS LOGISTICS,1019084203,9.38,
Department of Health,Salisbury NHS Foundation Trust,31-Jul-18,CLEANING MATERIALS PRODUCTS SUNDRIES,Facilities,NHS LOGISTICS,1019084203,7.2,
Department of Health,Salisbury NHS Foundation Trust,31-Jul-18,TOILETRIES PERSONAL HYGIENE PRODUCTS,Surgery,NHS LOGISTICS,1019084203,9.25,
Department of Health,Salisbury NHS Foundation Trust,31-Jul-18,DISPOSABLE THEATRE DRAPES WIPES,Clinical Support,NHS LOGISTICS,1019084203,3.55,
Department of Health,Salisbury NHS Foundation Trust,31-Jul-18,DENTAL SURGERY SUNDRIES,Musculo-Skeletal,NHS LOGISTICS,1019084203,2.88,
Department of Health,Salisbury NHS Foundation Trust,31-Jul-18,DENTAL SURGERY SUNDRIES,Musculo-Skeletal,NHS LOGISTICS,1019084203,1.73,
Department of Health,Salisbury NHS Foundation Trust,31-Jul-18,DENTAL SURGERY SUNDRIES,Musculo-Skeletal,NHS LOGISTICS,1019084203,3.43,
Department of Health,Salisbury NHS Foundation Trust,31-Jul-18,TISSUES HAND TOWELS & TOILET PAPER,Clinical Support,NHS LOGISTICS,1019084203,21.3,
Department of Health,Salisbury NHS Foundation Trust,31-Jul-18,OTHER MEDICAL SUPPLIES,Clinical Support,NHS LOGISTICS,1019084203,6.84,
Department of Health,Salisbury NHS Foundation Trust,31-Jul-18,DRESSINGS - PRE STERILE,Clinical Support,NHS LOGISTICS,1019084203,2.73,
Department of Health,Salisbury NHS Foundation Trust,31-Jul-18,DISPOSABLE THEATRE DRAPES WIPES,Clinical Support,NHS LOGISTICS,1019084203,3.55,
Department of Health,Salisbury NHS Foundation Trust,31-Jul-18,DRESSINGS - PRE STERILE,Musculo-Skeletal,NHS LOGISTICS,1019084203,6,
Department of Health,Salisbury NHS Foundation Trust,31-Jul-18,DRESSINGS - PRE STERILE,Musculo-Skeletal,NHS LOGISTICS,1019084203,1.2,
Department of Health,Salisbury NHS Foundation Trust,31-Jul-18,TOILETRIES PERSONAL HYGIENE PRODUCTS,Musculo-Skeletal,NHS LOGISTICS,1019084203,1.54,
Department of Health,Salisbury NHS Foundation Trust,31-Jul-18,TISSUES HAND TOWELS & TOILET PAPER,Musculo-Skeletal,NHS LOGISTICS,1019084203,2.48,
Department of Health,Salisbury NHS Foundation Trust,31-Jul-18,DRESSINGS - PRE STERILE,Musculo-Skeletal,NHS LOGISTICS,1019084203,1.8,
Department of Health,Salisbury NHS Foundation Trust,31-Jul-18,DRESSINGS - PRE STERILE,Musculo-Skeletal,NHS LOGISTICS,1019084203,2.49,
Department of Health,Salisbury NHS Foundation Trust,31-Jul-18,DRESSINGS - PRE STERILE,Musculo-Skeletal,NHS LOGISTICS,1019084203,239.57,
Department of Health,Salisbury NHS Foundation Trust,31-Jul-18,MEDSURGCONS - OTHER,Musculo-Skeletal,NHS LOGISTICS,1019084203,59.78,
Department of Health,Salisbury NHS Foundation Trust,31-Jul-18,MEDSURGCONS - OTHER,Musculo-Skeletal,NHS LOGISTICS,1019084203,14.3,
Department of Health,Salisbury NHS Foundation Trust,31-Jul-18,MEDSURGCONS - OTHER,Musculo-Skeletal,NHS LOGISTICS,1019084203,0.88,
Department of Health,Salisbury NHS Foundation Trust,31-Jul-18,NON DISPOSABLE BED LINEN,Musculo-Skeletal,NHS LOGISTICS,1019084203,7.5,
Department of Health,Salisbury NHS Foundation Trust,31-Jul-18,LAB EQUIP-LABORATORY APPARATUS,Clinical Support,NHS LOGISTICS,1019084203,20,
Department of Health,Salisbury NHS Foundation Trust,31-Jul-18,OTHER MEDICAL SUPPLIES,Musculo-Skeletal,NHS LOGISTICS,1019084203,7.53,
Department of Health,Salisbury NHS Foundation Trust,31-Jul-18,DRESSINGS - PRE STERILE,Clinical Support,NHS LOGISTICS,1019084203,44.41,
Department of Health,Salisbury NHS Foundation Trust,31-Jul-18,DRESSINGS - PRE STERILE,Clinical Support,NHS LOGISTICS,1019084203,124.92,
Department of Health,Salisbury NHS Foundation Trust,31-Jul-18,DRESSINGS - PRE STERILE,Clinical Support,NHS LOGISTICS,1019084203,36.52,
Department of Health,Salisbury NHS Foundation Trust,31-Jul-18,DRESSINGS - PRE STERILE,Clinical Support,NHS LOGISTICS,1019084203,6.17,
Department of Health,Salisbury NHS Foundation Trust,31-Jul-18,DRESSINGS - PRE STERILE,Clinical Support,NHS LOGISTICS,1019084203,51.35,
Department of Health,Salisbury NHS Foundation Trust,31-Jul-18,DRESSINGS - PRE STERILE,Clinical Support,NHS LOGISTICS,1019084203,23.47,
Department of Health,Salisbury NHS Foundation Trust,31-Jul-18,DRUGS,Clinical Support,NHS LOGISTICS,1019084203,82.8,
Department of Health,Salisbury NHS Foundation Trust,31-Jul-18,DRUGS,Clinical Support,NHS LOGISTICS,1019084203,18.7,
Department of Health,Salisbury NHS Foundation Trust,31-Jul-18,TOILETRIES PERSONAL HYGIENE PRODUCTS,Medicine,NHS LOGISTICS,1019084203,9.25,
Department of Health,Salisbury NHS Foundation Trust,31-Jul-18,DRESSINGS - PRE STERILE,Surgery,NHS LOGISTICS,1019084203,27.62,
Department of Health,Salisbury NHS Foundation Trust,31-Jul-18,LAB EQUIP-LABORATORY APPARATUS,Clinical Support,NHS LOGISTICS,1019084203,12.92,
Department of Health,Salisbury NHS Foundation Trust,31-Jul-18,LAB EQUIP-ANALYSERS,Clinical Support,NHS LOGISTICS,1019084203,10.19,
Department of Health,Salisbury NHS Foundation Trust,31-Jul-18,M & S EQUIPELECTEQUIPINST - OTHER,Clinical Support,NHS LOGISTICS,1019084203,204.12,
Department of Health,Salisbury NHS Foundation Trust,31-Jul-18,DRESSINGS - PRE STERILE,Surgery,NHS LOGISTICS,1019084203,29.94,
Department of Health,Salisbury NHS Foundation Trust,31-Jul-18,MEDSURGCONS-SUTURES,Surgery,NHS LOGISTICS,1019084203,60.44,
Department of Health,Salisbury NHS Foundation Trust,31-Jul-18,MEDSURGCONS-SUTURES,Surgery,NHS LOGISTICS,1019084203,52.63,
Department of Health,Salisbury NHS Foundation Trust,31-Jul-18,TISSUES HAND TOWELS & TOILET PAPER,Medicine,NHS LOGISTICS,1019084203,1.24,
Department of Health,Salisbury NHS Foundation Trust,31-Jul-18,DRESSINGS - PRE STERILE,Medicine,NHS LOGISTICS,1019084203,14,
Department of Health,Salisbury NHS Foundation Trust,31-Jul-18,DRESSINGS - PRE STERILE,Medicine,NHS LOGISTICS,1019084203,2.49,
Department of Health,Salisbury NHS Foundation Trust,31-Jul-18,DRESSINGS - PRE STERILE,Medicine,NHS LOGISTICS,1019084203,0.93,
Department of Health,Salisbury NHS Foundation Trust,31-Jul-18,OTHER MEDICAL SUPPLIES,Medicine,NHS LOGISTICS,1019084203,8.18,
Department of Health,Salisbury NHS Foundation Trust,31-Jul-18,OTHER MEDICAL SUPPLIES,Medicine,NHS LOGISTICS,1019084203,5.65,
Department of Health,Salisbury NHS Foundation Trust,31-Jul-18,PATIENT APPLIANCES,Medicine,NHS LOGISTICS,1019084203,3.35,
Department of Health,Salisbury NHS Foundation Trust,31-Jul-18,PATIENT APPLIANCES,Medicine,NHS LOGISTICS,1019084203,4.39,
Department of Health,Salisbury NHS Foundation Trust,31-Jul-18,MEDSURGCONS - OTHER,Medicine,NHS LOGISTICS,1019084203,5.89,
Department of Health,Salisbury NHS Foundation Trust,31-Jul-18,MEDSURGCONS - OTHER,Medicine,NHS LOGISTICS,1019084203,6.82,
Department of Health,Salisbury NHS Foundation Trust,31-Jul-18,TISSUES HAND TOWELS & TOILET PAPER,Medicine,NHS LOGISTICS,1019084203,1.37,
Department of Health,Salisbury NHS Foundation Trust,31-Jul-18,MEDSURGCONS - OTHER,Medicine,NHS LOGISTICS,1019084203,0.88,
Department of Health,Salisbury NHS Foundation Trust,31-Jul-18,ADULTS HEARING AIDS,Surgery,NHS LOGISTICS,1019084203,3619.38,
Department of Health,Salisbury NHS Foundation Trust,31-Jul-18,DRESSINGS - PRE STERILE,Surgery,NHS LOGISTICS,1019084203,139.03,
Department of Health,Salisbury NHS Foundation Trust,31-Jul-18,DRESSINGS - PRE STERILE,Surgery,NHS LOGISTICS,1019084203,27.62,
Department of Health,Salisbury NHS Foundation Trust,31-Jul-18,OTHER MEDICAL SUPPLIES,Surgery,NHS LOGISTICS,1019084203,22.33,
Department of Health,Salisbury NHS Foundation Trust,31-Jul-18,M & S EQUIPELECTEQUIPINST - OTHER,Clinical Support,NHS LOGISTICS,1019084203,12.17,
Department of Health,Salisbury NHS Foundation Trust,31-Jul-18,M & S EQUIPELECTEQUIPINST - OTHER,Clinical Support,NHS LOGISTICS,1019084203,14.75,
Department of Health,Salisbury NHS Foundation Trust,31-Jul-18,MEDSURGCONS - OTHER,Surgery,NHS LOGISTICS,1019084203,204.08,
Department of Health,Salisbury NHS Foundation Trust,31-Jul-18,DRESSINGS - PRE STERILE,Surgery,NHS LOGISTICS,1019084203,2.49,
Department of Health,Salisbury NHS Foundation Trust,31-Jul-18,MEDSURGCONS - OTHER,Surgery,NHS LOGISTICS,1019084203,21.42,
Department of Health,Salisbury NHS Foundation Trust,31-Jul-18,OTHER MEDICAL SUPPLIES,Surgery,NHS LOGISTICS,1019084203,58.78,
Department of Health,Salisbury NHS Foundation Trust,31-Jul-18,DRESSINGS - PRE STERILE,Surgery,NHS LOGISTICS,1019084203,24.81,
Department of Health,Salisbury NHS Foundation Trust,31-Jul-18,TOILETRIES PERSONAL HYGIENE PRODUCTS,Surgery,NHS LOGISTICS,1019084203,4.15,
Department of Health,Salisbury NHS Foundation Trust,31-Jul-18,DRESSINGS - PRE STERILE,Surgery,NHS LOGISTICS,1019084203,5.15,
Department of Health,Salisbury NHS Foundation Trust,31-Jul-18,DRESSINGS - PRE STERILE,Surgery,NHS LOGISTICS,1019084203,5.15,
Department of Health,Salisbury NHS Foundation Trust,31-Jul-18,DRESSINGS - PRE STERILE,Surgery,NHS LOGISTICS,1019084203,4.05,
Department of Health,Salisbury NHS Foundation Trust,31-Jul-18,DRESSINGS - PRE STERILE,Surgery,NHS LOGISTICS,1019084203,4.05,
Department of Health,Salisbury NHS Foundation Trust,31-Jul-18,MEDSURGCONS - OTHER,Surgery,NHS LOGISTICS,1019084203,47.83,
Department of Health,Salisbury NHS Foundation Trust,31-Jul-18,OTHER MEDICAL SUPPLIES,Surgery,NHS LOGISTICS,1019084203,94.45,
Department of Health,Salisbury NHS Foundation Trust,31-Jul-18,OTHER MEDICAL SUPPLIES,Surgery,NHS LOGISTICS,1019084203,22.67,
Department of Health,Salisbury NHS Foundation Trust,31-Jul-18,NON DISPOSABLE BED LINEN,Surgery,NHS LOGISTICS,1019084203,15,
Department of Health,Salisbury NHS Foundation Trust,31-Jul-18,PATIENT APPLIANCES,Surgery,NHS LOGISTICS,1019084203,15.6,
Department of Health,Salisbury NHS Foundation Trust,31-Jul-18,MEDSURGCONS - OTHER,Surgery,NHS LOGISTICS,1019084203,16.02,
Department of Health,Salisbury NHS Foundation Trust,31-Jul-18,DISPOSABLE THEATRE DRAPES WIPES,Surgery,NHS LOGISTICS,1019084203,2.24,
Department of Health,Salisbury NHS Foundation Trust,31-Jul-18,DISPOSABLE THEATRE DRAPES WIPES,Surgery,NHS LOGISTICS,1019084203,10.65,
Department of Health,Salisbury NHS Foundation Trust,31-Jul-18,DRESSINGS - PRE STERILE,Clinical Support,NHS LOGISTICS,1019084203,2.89,
Department of Health,Salisbury NHS Foundation Trust,31-Jul-18,TOILETRIES PERSONAL HYGIENE PRODUCTS,Clinical Support,NHS LOGISTICS,1019084203,9.25,
Department of Health,Salisbury NHS Foundation Trust,31-Jul-18,TISSUES HAND TOWELS & TOILET PAPER,Clinical Support,NHS LOGISTICS,1019084203,4.97,
Department of Health,Salisbury NHS Foundation Trust,31-Jul-18,DRESSINGS - PRE STERILE,Clinical Support,NHS LOGISTICS,1019084203,50.61,
Department of Health,Salisbury NHS Foundation Trust,31-Jul-18,DRESSINGS - PRE STERILE,Clinical Support,NHS LOGISTICS,1019084203,59.89,
Department of Health,Salisbury NHS Foundation Trust,31-Jul-18,MEDSURGCONS - OTHER,Clinical Support,NHS LOGISTICS,1019084203,13.65,
Department of Health,Salisbury NHS Foundation Trust,31-Jul-18,DRESSINGS - PRE STERILE,Medicine,NHS LOGISTICS,1019084203,2.49,
Department of Health,Salisbury NHS Foundation Trust,31-Jul-18,DRESSINGS - PRE STERILE,Medicine,NHS LOGISTICS,1019084203,0.93,
Department of Health,Salisbury NHS Foundation Trust,31-Jul-18,OTHER MEDICAL SUPPLIES,Medicine,NHS LOGISTICS,1019084203,1.88,
Department of Health,Salisbury NHS Foundation Trust,31-Jul-18,PATIENT APPLIANCES,Medicine,NHS LOGISTICS,1019084203,3.35,
Department of Health,Salisbury NHS Foundation Trust,31-Jul-18,PATIENT APPLIANCES,Medicine,NHS LOGISTICS,1019084203,3.35,
Department of Health,Salisbury NHS Foundation Trust,31-Jul-18,PATIENT APPLIANCES,Medicine,NHS LOGISTICS,1019084203,3.35,
Department of Health,Salisbury NHS Foundation Trust,31-Jul-18,TISSUES HAND TOWELS & TOILET PAPER,Medicine,NHS LOGISTICS,1019084203,1.37,
Department of Health,Salisbury NHS Foundation Trust,31-Jul-18,TOILETRIES PERSONAL HYGIENE PRODUCTS,Medicine,NHS LOGISTICS,1019084203,4.13,
Department of Health,Salisbury NHS Foundation Trust,31-Jul-18,NON DISPOSABLE BED LINEN,Medicine,NHS LOGISTICS,1019084203,15,
Department of Health,Salisbury NHS Foundation Trust,31-Jul-18,M & S EQUIPELECTEQUIPINST - OTHER,Medicine,NHS LOGISTICS,1019084203,8.4,
Department of Health,Salisbury NHS Foundation Trust,31-Jul-18,TOILETRIES PERSONAL HYGIENE PRODUCTS,Medicine,NHS LOGISTICS,1019084203,9.25,
Department of Health,Salisbury NHS Foundation Trust,31-Jul-18,CLEANING MATERIALS PRODUCTS SUNDRIES,Medicine,NHS LOGISTICS,1019084203,5.67,
Department of Health,Salisbury NHS Foundation Trust,31-Jul-18,CLEANING MATERIALS PRODUCTS SUNDRIES,Medicine,NHS LOGISTICS,1019084203,8.8,
Department of Health,Salisbury NHS Foundation Trust,31-Jul-18,DRESSINGS - PRE STERILE,Medicine,NHS LOGISTICS,1019084203,14,
Department of Health,Salisbury NHS Foundation Trust,31-Jul-18,DRESSINGS - PRE STERILE,Medicine,NHS LOGISTICS,1019084203,5.73,
Department of Health,Salisbury NHS Foundation Trust,31-Jul-18,M & S EQUIPELECTEQUIPINST - OTHER,Medicine,NHS LOGISTICS,1019084203,6.75,
Department of Health,Salisbury NHS Foundation Trust,31-Jul-18,OTHER MEDICAL SUPPLIES,Medicine,NHS LOGISTICS,1019084203,16.37,
Department of Health,Salisbury NHS Foundation Trust,31-Jul-18,OTHER MEDICAL SUPPLIES,Medicine,NHS LOGISTICS,1019084203,7.53,
Department of Health,Salisbury NHS Foundation Trust,31-Jul-18,MEDSURGCONS - OTHER,Medicine,NHS LOGISTICS,1019084203,27.1,
Department of Health,Salisbury NHS Foundation Trust,31-Jul-18,TISSUES HAND TOWELS & TOILET PAPER,Medicine,NHS LOGISTICS,1019084203,0.68,
Department of Health,Salisbury NHS Foundation Trust,31-Jul-18,MEDSURGCONS - OTHER,Medicine,NHS LOGISTICS,1019084203,0.88,
Department of Health,Salisbury NHS Foundation Trust,31-Jul-18,DISPOSABLE THEATRE DRAPES WIPES,Medicine,NHS LOGISTICS,1019084203,6.58,
Department of Health,Salisbury NHS Foundation Trust,31-Jul-18,DISPOSABLE THEATRE DRAPES WIPES,Medicine,NHS LOGISTICS,1019084203,7.7,
Department of Health,Salisbury NHS Foundation Trust,31-Jul-18,DISPOSABLE THEATRE DRAPES WIPES,Medicine,NHS LOGISTICS,1019084203,7.1,
Department of Health,Salisbury NHS Foundation Trust,31-Jul-18,MED SURG EQUIP REP MAINT CLEANING,Musculo-Skeletal,NHS LOGISTICS,1019084203,109.72,
Department of Health,Salisbury NHS Foundation Trust,31-Jul-18,OTHER MEDICAL SUPPLIES,Musculo-Skeletal,NHS LOGISTICS,1019084203,240,
Department of Health,Salisbury NHS Foundation Trust,31-Jul-18,TOILETRIES PERSONAL HYGIENE PRODUCTS,Medicine,NHS LOGISTICS,1019084203,3.08,
Department of Health,Salisbury NHS Foundation Trust,31-Jul-18,TISSUES HAND TOWELS & TOILET PAPER,Medicine,NHS LOGISTICS,1019084203,1.24,
Department of Health,Salisbury NHS Foundation Trust,31-Jul-18,DRESSINGS - PRE STERILE,Medicine,NHS LOGISTICS,1019084203,14,
Department of Health,Salisbury NHS Foundation Trust,31-Jul-18,DRESSINGS - PRE STERILE,Medicine,NHS LOGISTICS,1019084203,0.93,
Department of Health,Salisbury NHS Foundation Trust,31-Jul-18,OTHER MEDICAL SUPPLIES,Medicine,NHS LOGISTICS,1019084203,5.58,
Department of Health,Salisbury NHS Foundation Trust,31-Jul-18,OTHER MEDICAL SUPPLIES,Medicine,NHS LOGISTICS,1019084203,8.18,
Department of Health,Salisbury NHS Foundation Trust,31-Jul-18,OTHER MEDICAL SUPPLIES,Medicine,NHS LOGISTICS,1019084203,6.84,
Department of Health,Salisbury NHS Foundation Trust,31-Jul-18,OTHER MEDICAL SUPPLIES,Medicine,NHS LOGISTICS,1019084203,3.77,
Department of Health,Salisbury NHS Foundation Trust,31-Jul-18,PATIENT APPLIANCES,Medicine,NHS LOGISTICS,1019084203,6.7,
Department of Health,Salisbury NHS Foundation Trust,31-Jul-18,PATIENT APPLIANCES,Medicine,NHS LOGISTICS,1019084203,4.39,
Department of Health,Salisbury NHS Foundation Trust,31-Jul-18,MEDSURGCONS - OTHER,Medicine,NHS LOGISTICS,1019084203,5.89,
Department of Health,Salisbury NHS Foundation Trust,31-Jul-18,MEDSURGCONS - OTHER,Medicine,NHS LOGISTICS,1019084203,3.91,
Department of Health,Salisbury NHS Foundation Trust,31-Jul-18,MEDSURGCONS - OTHER,Medicine,NHS LOGISTICS,1019084203,0.88,
Department of Health,Salisbury NHS Foundation Trust,31-Jul-18,DISPOSABLE THEATRE DRAPES WIPES,Medicine,NHS LOGISTICS,1019084203,3.55,
Department of Health,Salisbury NHS Foundation Trust,31-Jul-18,TOILETRIES PERSONAL HYGIENE PRODUCTS,Medicine,NHS LOGISTICS,1019084203,9.25,
Department of Health,Salisbury NHS Foundation Trust,31-Jul-18,CLEANING MATERIALS PRODUCTS SUNDRIES,Medicine,NHS LOGISTICS,1019084203,5.67,
Department of Health,Salisbury NHS Foundation Trust,31-Jul-18,CLEANING MATERIALS PRODUCTS SUNDRIES,Medicine,NHS LOGISTICS,1019084203,8.8,
Department of Health,Salisbury NHS Foundation Trust,31-Jul-18,DRESSINGS - PRE STERILE,Medicine,NHS LOGISTICS,1019084203,28,
Department of Health,Salisbury NHS Foundation Trust,31-Jul-18,DRESSINGS - PRE STERILE,Medicine,NHS LOGISTICS,1019084203,2.8,
Department of Health,Salisbury NHS Foundation Trust,31-Jul-18,OTHER MEDICAL SUPPLIES,Medicine,NHS LOGISTICS,1019084203,14.08,
Department of Health,Salisbury NHS Foundation Trust,31-Jul-18,ANAESTHETIC EQUIPMENT ACCESSORIES,Medicine,NHS LOGISTICS,1019084203,1.25,
Department of Health,Salisbury NHS Foundation Trust,31-Jul-18,OTHER MEDICAL SUPPLIES,Medicine,NHS LOGISTICS,1019084203,5.58,
Department of Health,Salisbury NHS Foundation Trust,31-Jul-18,OTHER MEDICAL SUPPLIES,Medicine,NHS LOGISTICS,1019084203,6.84,
Department of Health,Salisbury NHS Foundation Trust,31-Jul-18,OTHER MEDICAL SUPPLIES,Medicine,NHS LOGISTICS,1019084203,7.53,
Department of Health,Salisbury NHS Foundation Trust,31-Jul-18,PATIENT APPLIANCES,Medicine,NHS LOGISTICS,1019084203,3.35,
Department of Health,Salisbury NHS Foundation Trust,31-Jul-18,PATIENT APPLIANCES,Medicine,NHS LOGISTICS,1019084203,3.35,
Department of Health,Salisbury NHS Foundation Trust,31-Jul-18,TOILETRIES PERSONAL HYGIENE PRODUCTS,Medicine,NHS LOGISTICS,1019084203,3.67,
Department of Health,Salisbury NHS Foundation Trust,31-Jul-18,MEDSURGCONS - OTHER,Medicine,NHS LOGISTICS,1019084203,59.78,
Department of Health,Salisbury NHS Foundation Trust,31-Jul-18,MEDSURGCONS - OTHER,Medicine,NHS LOGISTICS,1019084203,1.77,
Department of Health,Salisbury NHS Foundation Trust,31-Jul-18,NON DISPOSABLE BED LINEN,Medicine,NHS LOGISTICS,1019084203,15,
Department of Health,Salisbury NHS Foundation Trust,31-Jul-18,DISPOSABLE THEATRE DRAPES WIPES,Medicine,NHS LOGISTICS,1019084203,7.1,
Department of Health,Salisbury NHS Foundation Trust,31-Jul-18,MED SURG EQUIP REP MAINT CLEANING,Medicine,NHS LOGISTICS,1019084203,41.78,
Department of Health,Salisbury NHS Foundation Trust,31-Jul-18,OTHER MEDICAL SUPPLIES,Medicine,NHS LOGISTICS,1019084203,6.84,
Department of Health,Salisbury NHS Foundation Trust,31-Jul-18,BEVERAGES & AMBIENT FOOD,Medicine,NHS LOGISTICS,1019084203,3.9,
Department of Health,Salisbury NHS Foundation Trust,31-Jul-18,TISSUES HAND TOWELS & TOILET PAPER,Surgery,NHS LOGISTICS,1019084203,2.48,
Department of Health,Salisbury NHS Foundation Trust,31-Jul-18,DRESSINGS - PRE STERILE,Surgery,NHS LOGISTICS,1019084203,1.07,
Department of Health,Salisbury NHS Foundation Trust,31-Jul-18,DISPOSABLE THEATRE DRAPES WIPES,Surgery,NHS LOGISTICS,1019084203,10.65,
Department of Health,Salisbury NHS Foundation Trust,31-Jul-18,NON DISPOSABLE BED LINEN,Clinical Support,NHS LOGISTICS,1019084203,11.83,
Department of Health,Salisbury NHS Foundation Trust,31-Jul-18,NON DISPOSABLE BED LINEN,Clinical Support,NHS LOGISTICS,1019084203,15,
Department of Health,Salisbury NHS Foundation Trust,31-Jul-18,SOFT FURNISHINGS,Surgery,NHS LOGISTICS,1019084203,203.23,
Department of Health,Salisbury NHS Foundation Trust,31-Jul-18,DRESSINGS - PRE STERILE,Musculo-Skeletal,NHS LOGISTICS,1019084203,1.8,
Department of Health,Salisbury NHS Foundation Trust,31-Jul-18,DRESSINGS - PRE STERILE,Musculo-Skeletal,NHS LOGISTICS,1019084203,3.93,
Department of Health,Salisbury NHS Foundation Trust,31-Jul-18,NON DISPOSABLE BED LINEN,Musculo-Skeletal,NHS LOGISTICS,1019084203,15,
Department of Health,Salisbury NHS Foundation Trust,31-Jul-18,M & S EQUIPELECTEQUIPINST - OTHER,Musculo-Skeletal,NHS LOGISTICS,1019084203,9.64,
Department of Health,Salisbury NHS Foundation Trust,31-Jul-18,TOILETRIES PERSONAL HYGIENE PRODUCTS,Clinical Support,NHS LOGISTICS,1019084203,7.23,
Department of Health,Salisbury NHS Foundation Trust,31-Jul-18,DISPOSABLE THEATRE DRAPES WIPES,Clinical Support,NHS LOGISTICS,1019084203,3.55,
Department of Health,Salisbury NHS Foundation Trust,31-Jul-18,DISPOSABLE THEATRE DRAPES WIPES,Clinical Support,NHS LOGISTICS,1019084203,7.1,
Department of Health,Salisbury NHS Foundation Trust,31-Jul-18,TISSUES HAND TOWELS & TOILET PAPER,Clinical Support,NHS LOGISTICS,1019084203,7.45,
Department of Health,Salisbury NHS Foundation Trust,31-Jul-18,MEDSURGCONS - OTHER,Clinical Support,NHS LOGISTICS,1019084203,69.95,
Department of Health,Salisbury NHS Foundation Trust,31-Jul-18,MEDSURGCONS - OTHER,Clinical Support,NHS LOGISTICS,1019084203,138.37,
Department of Health,Salisbury NHS Foundation Trust,31-Jul-18,M & S EQUIPELECTEQUIPINST - OTHER,Medicine,NHS LOGISTICS,1019084203,113.89,
Department of Health,Salisbury NHS Foundation Trust,31-Jul-18,DRESSINGS  -  PROCEDURE PACKS,Clinical Support,NHS LOGISTICS,1019084203,42.56,
Department of Health,Salisbury NHS Foundation Trust,31-Jul-18,DISPOSABLE TABLE LINEN,Medicine,NHS LOGISTICS,1019084203,1.38,
Department of Health,Salisbury NHS Foundation Trust,31-Jul-18,TUBES,Medicine,NHS LOGISTICS,1019084203,6.85,
Department of Health,Salisbury NHS Foundation Trust,31-Jul-18,ANAESTHETIC EQUIPMENT ACCESSORIES,Medicine,NHS LOGISTICS,1019084203,3.75,
Department of Health,Salisbury NHS Foundation Trust,31-Jul-18,DRESSINGS - PRE STERILE,Surgery,NHS LOGISTICS,1019084203,16.12,
Department of Health,Salisbury NHS Foundation Trust,31-Jul-18,DRESSINGS - PRE STERILE,Surgery,NHS LOGISTICS,1019084203,26.12,
Department of Health,Salisbury NHS Foundation Trust,31-Jul-18,NON DISPOSABLE BED LINEN,Medicine,NHS LOGISTICS,1019084203,7.5,
Department of Health,Salisbury NHS Foundation Trust,31-Jul-18,NON DISPOSABLE BED LINEN,Medicine,NHS LOGISTICS,1019084203,11.25,
Department of Health,Salisbury NHS Foundation Trust,31-Jul-18,TUBES,Medicine,NHS LOGISTICS,1019084203,7.06,
Department of Health,Salisbury NHS Foundation Trust,31-Jul-18,M & S EQUIPELECTEQUIPINST - OTHER,Surgery,NHS LOGISTICS,1019084203,20.25,
Department of Health,Salisbury NHS Foundation Trust,31-Jul-18,MEDSURGCONS - OTHER,Surgery,NHS LOGISTICS,1019084203,4.85,
Department of Health,Salisbury NHS Foundation Trust,31-Jul-18,MEDSURGCONS - OTHER,Surgery,NHS LOGISTICS,1019084203,3.91,
Department of Health,Salisbury NHS Foundation Trust,31-Jul-18,TISSUES HAND TOWELS & TOILET PAPER,Surgery,NHS LOGISTICS,1019084203,0.68,
Department of Health,Salisbury NHS Foundation Trust,31-Jul-18,NON DISPOSABLE BED LINEN,Surgery,NHS LOGISTICS,1019084203,7.5,
Department of Health,Salisbury NHS Foundation Trust,31-Jul-18,MEDSURGCONS - OTHER,Surgery,NHS LOGISTICS,1019084203,0.88,
Department of Health,Salisbury NHS Foundation Trust,31-Jul-18,M & S EQUIPELECTEQUIPINST - OTHER,Surgery,NHS LOGISTICS,1019084203,6.75,
Department of Health,Salisbury NHS Foundation Trust,31-Jul-18,PATIENT APPLIANCES,Surgery,NHS LOGISTICS,1019084203,3.35,
Department of Health,Salisbury NHS Foundation Trust,31-Jul-18,PATIENT APPLIANCES,Surgery,NHS LOGISTICS,1019084203,3.35,
Department of Health,Salisbury NHS Foundation Trust,31-Jul-18,TOILETRIES PERSONAL HYGIENE PRODUCTS,Surgery,NHS LOGISTICS,1019084203,4.15,
Department of Health,Salisbury NHS Foundation Trust,31-Jul-18,DISPOSABLE THEATRE DRAPES WIPES,Medicine,NHS LOGISTICS,1019084203,37.83,
Department of Health,Salisbury NHS Foundation Trust,31-Jul-18,DISPOSABLE THEATRE DRAPES WIPES,Medicine,NHS LOGISTICS,1019084203,7.1,
Department of Health,Salisbury NHS Foundation Trust,31-Jul-18,DRESSINGS - PRE STERILE,Medicine,NHS LOGISTICS,1019084203,1.8,
Department of Health,Salisbury NHS Foundation Trust,31-Jul-18,DRESSINGS - PRE STERILE,Medicine,NHS LOGISTICS,1019084203,14,
Department of Health,Salisbury NHS Foundation Trust,31-Jul-18,DRESSINGS - PRE STERILE,Medicine,NHS LOGISTICS,1019084203,8.71,
Department of Health,Salisbury NHS Foundation Trust,31-Jul-18,M & S EQUIPELECTEQUIPINST - OTHER,Medicine,NHS LOGISTICS,1019084203,41.78,
Department of Health,Salisbury NHS Foundation Trust,31-Jul-18,DRESSINGS - PRE STERILE,Medicine,NHS LOGISTICS,1019084203,24.76,
Department of Health,Salisbury NHS Foundation Trust,31-Jul-18,DRESSINGS  -  PROCEDURE PACKS,Medicine,NHS LOGISTICS,1019084203,572.96,
Department of Health,Salisbury NHS Foundation Trust,31-Jul-18,ANAESTHETIC EQUIPMENT ACCESSORIES,Medicine,NHS LOGISTICS,1019084203,1.25,
Department of Health,Salisbury NHS Foundation Trust,31-Jul-18,MEDSURGCONS-SUTURES,Medicine,NHS LOGISTICS,1019084203,59.31,
Department of Health,Salisbury NHS Foundation Trust,31-Jul-18,SERVICES FROM NHS BODIES,Surgery,NHS LOGISTICS,1019084203,4.44,
Department of Health,Salisbury NHS Foundation Trust,31-Jul-18,DRESSINGS  -  PROCEDURE PACKS,Clinical Support,NHS LOGISTICS,1019084203,3.8,
Department of Health,Salisbury NHS Foundation Trust,31-Jul-18,DRESSINGS  -  PROCEDURE PACKS,Clinical Support,NHS LOGISTICS,1019084203,1.65,
Department of Health,Salisbury NHS Foundation Trust,31-Jul-18,DRESSINGS - PRE STERILE,Surgery,NHS LOGISTICS,1019084203,6,
Department of Health,Salisbury NHS Foundation Trust,31-Jul-18,TOILETRIES PERSONAL HYGIENE PRODUCTS,Surgery,NHS LOGISTICS,1019084203,16.91,
Department of Health,Salisbury NHS Foundation Trust,31-Jul-18,TISSUES HAND TOWELS & TOILET PAPER,Surgery,NHS LOGISTICS,1019084203,2.48,
Department of Health,Salisbury NHS Foundation Trust,31-Jul-18,DRESSINGS - PRE STERILE,Surgery,NHS LOGISTICS,1019084203,2.93,
Department of Health,Salisbury NHS Foundation Trust,31-Jul-18,DRESSINGS - PRE STERILE,Surgery,NHS LOGISTICS,1019084203,1.8,
Department of Health,Salisbury NHS Foundation Trust,31-Jul-18,ANAESTHETIC EQUIPMENT ACCESSORIES,Surgery,NHS LOGISTICS,1019084203,0.63,
Department of Health,Salisbury NHS Foundation Trust,31-Jul-18,OTHER MEDICAL SUPPLIES,Surgery,NHS LOGISTICS,1019084203,1.88,
Department of Health,Salisbury NHS Foundation Trust,31-Jul-18,DRESSINGS - PRE STERILE,Surgery,NHS LOGISTICS,1019084203,2.68,
Department of Health,Salisbury NHS Foundation Trust,31-Jul-18,DISPOSABLE THEATRE DRAPES WIPES,Surgery,NHS LOGISTICS,1019084203,3.33,
Department of Health,Salisbury NHS Foundation Trust,31-Jul-18,OTHER MEDICAL SUPPLIES,Surgery,NHS LOGISTICS,1019084203,29.77,
Department of Health,Salisbury NHS Foundation Trust,31-Jul-18,DRESSINGS - PRE STERILE,Surgery,NHS LOGISTICS,1019084203,28,
Department of Health,Salisbury NHS Foundation Trust,31-Jul-18,OTHER MEDICAL SUPPLIES,Surgery,NHS LOGISTICS,1019084203,18.83,
Department of Health,Salisbury NHS Foundation Trust,31-Jul-18,OTHER MEDICAL SUPPLIES,Surgery,NHS LOGISTICS,1019084203,11.42,
Department of Health,Salisbury NHS Foundation Trust,31-Jul-18,OTHER MEDICAL SUPPLIES,Surgery,NHS LOGISTICS,1019084203,22.33,
Department of Health,Salisbury NHS Foundation Trust,31-Jul-18,LAB EQUIP-LABORATORY APPARATUS,Clinical Support,NHS LOGISTICS,1019084203,374.33,
Department of Health,Salisbury NHS Foundation Trust,31-Jul-18,LAB EQUIP-LABORATORY APPARATUS,Clinical Support,NHS LOGISTICS,1019084203,6.3,
Department of Health,Salisbury NHS Foundation Trust,31-Jul-18,LAB EQUIP-LABORATORY APPARATUS,Clinical Support,NHS LOGISTICS,1019084203,24.4,
Department of Health,Salisbury NHS Foundation Trust,31-Jul-18,M & S EQUIPELECTEQUIPINST - OTHER,Clinical Support,NHS LOGISTICS,1019084203,577.33,
Department of Health,Salisbury NHS Foundation Trust,31-Jul-18,TOILETRIES PERSONAL HYGIENE PRODUCTS,Medicine,NHS LOGISTICS,1019084203,1.54,
Department of Health,Salisbury NHS Foundation Trust,31-Jul-18,TISSUES HAND TOWELS & TOILET PAPER,Medicine,NHS LOGISTICS,1019084203,10.65,
Department of Health,Salisbury NHS Foundation Trust,31-Jul-18,TISSUES HAND TOWELS & TOILET PAPER,Medicine,NHS LOGISTICS,1019084203,0.39,
Department of Health,Salisbury NHS Foundation Trust,31-Jul-18,DRESSINGS - PRE STERILE,Surgery,NHS LOGISTICS,1019084203,9.39,
Department of Health,Salisbury NHS Foundation Trust,31-Jul-18,DRESSINGS - PRE STERILE,Surgery,NHS LOGISTICS,1019084203,5.66,
Department of Health,Salisbury NHS Foundation Trust,31-Jul-18,DRESSINGS - PRE STERILE,Surgery,NHS LOGISTICS,1019084203,9.97,
Department of Health,Salisbury NHS Foundation Trust,31-Jul-18,DRESSINGS - PRE STERILE,Surgery,NHS LOGISTICS,1019084203,11.47,
Department of Health,Salisbury NHS Foundation Trust,31-Jul-18,DRESSINGS - PRE STERILE,Surgery,NHS LOGISTICS,1019084203,12.06,
Department of Health,Salisbury NHS Foundation Trust,31-Jul-18,DISPOSABLE THEATRE DRAPES WIPES,Surgery,NHS LOGISTICS,1019084203,35.4,
Department of Health,Salisbury NHS Foundation Trust,31-Jul-18,DRESSINGS - PRE STERILE,Surgery,NHS LOGISTICS,1019084203,16.83,
Department of Health,Salisbury NHS Foundation Trust,31-Jul-18,SURGICAL INSTRUMENTS: DISPOSABLE,Surgery,NHS LOGISTICS,1019084203,53.77,
Department of Health,Salisbury NHS Foundation Trust,31-Jul-18,MEDSURGCONS - OTHER,Medicine,NHS LOGISTICS,1019084203,122.45,
Department of Health,Salisbury NHS Foundation Trust,31-Jul-18,MEDSURGCONS - OTHER,Medicine,NHS LOGISTICS,1019084203,56.12,
Department of Health,Salisbury NHS Foundation Trust,31-Jul-18,MEDSURGCONS - OTHER,Medicine,NHS LOGISTICS,1019084203,204.08,
Department of Health,Salisbury NHS Foundation Trust,31-Jul-18,MEDSURGCONS - OTHER,Medicine,NHS LOGISTICS,1019084203,204.08,
Department of Health,Salisbury NHS Foundation Trust,31-Jul-18,DRESSINGS - PRE STERILE,Clinical Support,NHS LOGISTICS,1019084203,14,
Department of Health,Salisbury NHS Foundation Trust,31-Jul-18,HEALTHCARE - WEAR,Clinical Support,NHS LOGISTICS,1019084203,31.88,
Department of Health,Salisbury NHS Foundation Trust,31-Jul-18,OTHER MEDICAL SUPPLIES,Clinical Support,NHS LOGISTICS,1019084203,74.97,
Department of Health,Salisbury NHS Foundation Trust,31-Jul-18,NON DISPOSABLE BED LINEN,Clinical Support,NHS LOGISTICS,1019084203,3.75,
Department of Health,Salisbury NHS Foundation Trust,31-Jul-18,M & S EQUIPELECTEQUIPINST - OTHER,Clinical Support,NHS LOGISTICS,1019084203,113.4,
Department of Health,Salisbury NHS Foundation Trust,31-Jul-18,M & S EQUIPELECTEQUIPINST - OTHER,Clinical Support,NHS LOGISTICS,1019084203,103.09,
Department of Health,Salisbury NHS Foundation Trust,31-Jul-18,M & S EQUIPELECTEQUIPINST - OTHER,Clinical Support,NHS LOGISTICS,1019084203,77.32,
Department of Health,Salisbury NHS Foundation Trust,31-Jul-18,M & S EQUIPELECTEQUIPINST - OTHER,Clinical Support,NHS LOGISTICS,1019084203,77.32,
Department of Health,Salisbury NHS Foundation Trust,31-Jul-18,OTHER MEDICAL SUPPLIES,Medicine,NHS LOGISTICS,1019084203,1.33,
Department of Health,Salisbury NHS Foundation Trust,31-Jul-18,TISSUES HAND TOWELS & TOILET PAPER,Surgery,NHS LOGISTICS,1019084203,3.72,
Department of Health,Salisbury NHS Foundation Trust,31-Jul-18,TISSUES HAND TOWELS & TOILET PAPER,Surgery,NHS LOGISTICS,1019084203,2.35,
Department of Health,Salisbury NHS Foundation Trust,31-Jul-18,MED SURG EQUIP REP MAINT CLEANING,Surgery,NHS LOGISTICS,1019084203,210.58,
Department of Health,Salisbury NHS Foundation Trust,31-Jul-18,CLEANING MATERIALS PRODUCTS SUNDRIES,Facilities,NHS LOGISTICS,1019084203,11.83,
Department of Health,Salisbury NHS Foundation Trust,31-Jul-18,DISPOSABLE THEATRE DRAPES WIPES,Surgery,NHS LOGISTICS,1019084203,3.73,
Department of Health,Salisbury NHS Foundation Trust,31-Jul-18,BAGS SACKS - OTHER,Surgery,NHS LOGISTICS,1019084203,2.04,
Department of Health,Salisbury NHS Foundation Trust,31-Jul-18,DRESSINGS - PRE STERILE,Surgery,NHS LOGISTICS,1019084203,8.53,
Department of Health,Salisbury NHS Foundation Trust,31-Jul-18,TISSUES HAND TOWELS & TOILET PAPER,Surgery,NHS LOGISTICS,1019084203,3.75,
Department of Health,Salisbury NHS Foundation Trust,31-Jul-18,TISSUES HAND TOWELS & TOILET PAPER,Surgery,NHS LOGISTICS,1019084203,4.97,
Department of Health,Salisbury NHS Foundation Trust,31-Jul-18,DRESSINGS - PRE STERILE,Surgery,NHS LOGISTICS,1019084203,1.07,
Department of Health,Salisbury NHS Foundation Trust,31-Jul-18,DRESSINGS - PRE STERILE,Surgery,NHS LOGISTICS,1019084203,1.8,
Department of Health,Salisbury NHS Foundation Trust,31-Jul-18,DRESSINGS - PRE STERILE,Surgery,NHS LOGISTICS,1019084203,1.87,
Department of Health,Salisbury NHS Foundation Trust,31-Jul-18,DRESSINGS - PRE STERILE,Surgery,NHS LOGISTICS,1019084203,12.08,
Department of Health,Salisbury NHS Foundation Trust,31-Jul-18,TISSUES HAND TOWELS & TOILET PAPER,Musculo-Skeletal,NHS LOGISTICS,1019084203,1.24,
Department of Health,Salisbury NHS Foundation Trust,31-Jul-18,DISPOSABLE THEATRE DRAPES WIPES,Musculo-Skeletal,NHS LOGISTICS,1019084203,3.55,
Department of Health,Salisbury NHS Foundation Trust,31-Jul-18,NON DISPOSABLE BED LINEN,Medicine,NHS LOGISTICS,1019084203,3.75,
Department of Health,Salisbury NHS Foundation Trust,31-Jul-18,PATIENT APPLIANCES,Surgery,NHS LOGISTICS,1019084203,3.24,
Department of Health,Salisbury NHS Foundation Trust,31-Jul-18,DRESSINGS - PRE STERILE,Musculo-Skeletal,NHS LOGISTICS,1019084203,15.03,
Department of Health,Salisbury NHS Foundation Trust,31-Jul-18,DRESSINGS - PRE STERILE,Musculo-Skeletal,NHS LOGISTICS,1019084203,6,
Department of Health,Salisbury NHS Foundation Trust,31-Jul-18,DRESSINGS - PRE STERILE,Musculo-Skeletal,NHS LOGISTICS,1019084203,14,
Department of Health,Salisbury NHS Foundation Trust,31-Jul-18,DRESSINGS - PRE STERILE,Musculo-Skeletal,NHS LOGISTICS,1019084203,9.39,
Department of Health,Salisbury NHS Foundation Trust,31-Jul-18,DRESSINGS - PRE STERILE,Musculo-Skeletal,NHS LOGISTICS,1019084203,5.6,
Department of Health,Salisbury NHS Foundation Trust,31-Jul-18,OTHER MEDICAL SUPPLIES,Musculo-Skeletal,NHS LOGISTICS,1019084203,3.77,
Department of Health,Salisbury NHS Foundation Trust,31-Jul-18,OTHER MEDICAL SUPPLIES,Musculo-Skeletal,NHS LOGISTICS,1019084203,7.67,
Department of Health,Salisbury NHS Foundation Trust,31-Jul-18,SERVICES FROM NHS BODIES,Musculo-Skeletal,NHS LOGISTICS,1019084203,4.44,
Department of Health,Salisbury NHS Foundation Trust,31-Jul-18,DRESSINGS - PRE STERILE,Musculo-Skeletal,NHS LOGISTICS,1019084203,2.68,
Department of Health,Salisbury NHS Foundation Trust,31-Jul-18,MEDSURGCONS - OTHER,Musculo-Skeletal,NHS LOGISTICS,1019084203,27.1,
Department of Health,Salisbury NHS Foundation Trust,31-Jul-18,MEDSURGCONS - OTHER,Musculo-Skeletal,NHS LOGISTICS,1019084203,0.88,
Department of Health,Salisbury NHS Foundation Trust,31-Jul-18,NON DISPOSABLE BED LINEN,Musculo-Skeletal,NHS LOGISTICS,1019084203,15,
Department of Health,Salisbury NHS Foundation Trust,31-Jul-18,DISPOSABLE THEATRE DRAPES WIPES,Musculo-Skeletal,NHS LOGISTICS,1019084203,46.2,
Department of Health,Salisbury NHS Foundation Trust,31-Jul-18,DISPOSABLE THEATRE DRAPES WIPES,Musculo-Skeletal,NHS LOGISTICS,1019084203,3.55,
Department of Health,Salisbury NHS Foundation Trust,31-Jul-18,COOKING & KITCHEN UTENSILS,Medicine,NHS LOGISTICS,1019084203,17.72,
Department of Health,Salisbury NHS Foundation Trust,31-Jul-18,DRESSINGS - PRE STERILE,Musculo-Skeletal,NHS LOGISTICS,1019084203,30.07,
Department of Health,Salisbury NHS Foundation Trust,31-Jul-18,TISSUES HAND TOWELS & TOILET PAPER,Musculo-Skeletal,NHS LOGISTICS,1019084203,10.65,
Department of Health,Salisbury NHS Foundation Trust,31-Jul-18,DRESSINGS - PRE STERILE,Musculo-Skeletal,NHS LOGISTICS,1019084203,2.93,
Department of Health,Salisbury NHS Foundation Trust,31-Jul-18,DRESSINGS - PRE STERILE,Musculo-Skeletal,NHS LOGISTICS,1019084203,2.13,
Department of Health,Salisbury NHS Foundation Trust,31-Jul-18,DISPOSABLE THEATRE DRAPES WIPES,Musculo-Skeletal,NHS LOGISTICS,1019084203,3.55,
Department of Health,Salisbury NHS Foundation Trust,31-Jul-18,BAGS SACKS - OTHER,Musculo-Skeletal,NHS LOGISTICS,1019084203,3,
Department of Health,Salisbury NHS Foundation Trust,31-Jul-18,DRESSINGS - PRE STERILE,Musculo-Skeletal,NHS LOGISTICS,1019084203,75.17,
Department of Health,Salisbury NHS Foundation Trust,31-Jul-18,DRESSINGS - PRE STERILE,Musculo-Skeletal,NHS LOGISTICS,1019084203,24,
Department of Health,Salisbury NHS Foundation Trust,31-Jul-18,M & S EQUIPELECTEQUIPINST - OTHER,Musculo-Skeletal,NHS LOGISTICS,1019084203,8.4,
Department of Health,Salisbury NHS Foundation Trust,31-Jul-18,TOILETRIES PERSONAL HYGIENE PRODUCTS,Musculo-Skeletal,NHS LOGISTICS,1019084203,3.08,
Department of Health,Salisbury NHS Foundation Trust,31-Jul-18,OTHER MEDICAL SUPPLIES,Musculo-Skeletal,NHS LOGISTICS,1019084203,5.65,
Department of Health,Salisbury NHS Foundation Trust,31-Jul-18,DRESSINGS - PRE STERILE,Musculo-Skeletal,NHS LOGISTICS,1019084203,81.82,
Department of Health,Salisbury NHS Foundation Trust,31-Jul-18,DRESSINGS - PRE STERILE,Musculo-Skeletal,NHS LOGISTICS,1019084203,90,
Department of Health,Salisbury NHS Foundation Trust,31-Jul-18,DRESSINGS - PRE STERILE,Musculo-Skeletal,NHS LOGISTICS,1019084203,2.68,
Department of Health,Salisbury NHS Foundation Trust,31-Jul-18,NON DISPOSABLE BED LINEN,Surgery,NHS LOGISTICS,1019084203,3.75,
Department of Health,Salisbury NHS Foundation Trust,31-Jul-18,TISSUES HAND TOWELS & TOILET PAPER,Clinical Support,NHS LOGISTICS,1019084203,31.95,
Department of Health,Salisbury NHS Foundation Trust,31-Jul-18,MED SURG EQUIP REP MAINT CLEANING,Clinical Support,NHS LOGISTICS,1019084203,210.58,
Department of Health,Salisbury NHS Foundation Trust,31-Jul-18,TUBES,Clinical Support,NHS LOGISTICS,1019084203,6.85,
Department of Health,Salisbury NHS Foundation Trust,31-Jul-18,NON DISPOSABLE BED LINEN,Clinical Support,NHS LOGISTICS,1019084203,3.75,
Department of Health,Salisbury NHS Foundation Trust,31-Jul-18,DISPOSABLE THEATRE DRAPES WIPES,Clinical Support,NHS LOGISTICS,1019084203,3.55,
Department of Health,Salisbury NHS Foundation Trust,31-Jul-18,TOILETRIES PERSONAL HYGIENE PRODUCTS,Medicine,NHS LOGISTICS,1019084203,9.25,
Department of Health,Salisbury NHS Foundation Trust,31-Jul-18,DRESSINGS - PRE STERILE,Medicine,NHS LOGISTICS,1019084203,2.93,
Department of Health,Salisbury NHS Foundation Trust,31-Jul-18,DRESSINGS - PRE STERILE,Medicine,NHS LOGISTICS,1019084203,1.8,
Department of Health,Salisbury NHS Foundation Trust,31-Jul-18,DRESSINGS - PRE STERILE,Medicine,NHS LOGISTICS,1019084203,28,
Department of Health,Salisbury NHS Foundation Trust,31-Jul-18,ANAESTHETIC EQUIPMENT ACCESSORIES,Medicine,NHS LOGISTICS,1019084203,2.3,
Department of Health,Salisbury NHS Foundation Trust,31-Jul-18,M & S EQUIPELECTEQUIPINST - OTHER,Medicine,NHS LOGISTICS,1019084203,13.5,
Department of Health,Salisbury NHS Foundation Trust,31-Jul-18,DRESSINGS - PRE STERILE,Medicine,NHS LOGISTICS,1019084203,11.2,
Department of Health,Salisbury NHS Foundation Trust,31-Jul-18,MEDSURGCONS - OTHER,Medicine,NHS LOGISTICS,1019084203,6.43,
Department of Health,Salisbury NHS Foundation Trust,31-Jul-18,PATIENT APPLIANCES,Medicine,NHS LOGISTICS,1019084203,12.08,
Department of Health,Salisbury NHS Foundation Trust,31-Jul-18,PATIENT APPLIANCES,Medicine,NHS LOGISTICS,1019084203,4.03,
Department of Health,Salisbury NHS Foundation Trust,31-Jul-18,ANAESTHETIC EQUIPMENT ACCESSORIES,Medicine,NHS LOGISTICS,1019084203,6.25,
Department of Health,Salisbury NHS Foundation Trust,31-Jul-18,OTHER MEDICAL SUPPLIES,Medicine,NHS LOGISTICS,1019084203,1.88,
Department of Health,Salisbury NHS Foundation Trust,31-Jul-18,DRUGS,Medicine,NHS LOGISTICS,1019084203,9.35,
Department of Health,Salisbury NHS Foundation Trust,31-Jul-18,MEDSURGCONS - OTHER,Medicine,NHS LOGISTICS,1019084203,4.85,
Department of Health,Salisbury NHS Foundation Trust,31-Jul-18,MEDSURGCONS - OTHER,Medicine,NHS LOGISTICS,1019084203,3.91,
Department of Health,Salisbury NHS Foundation Trust,31-Jul-18,DRESSINGS - PRE STERILE,Medicine,NHS LOGISTICS,1019084203,10.34,
Department of Health,Salisbury NHS Foundation Trust,31-Jul-18,DRESSINGS - PRE STERILE,Medicine,NHS LOGISTICS,1019084203,20.68,
Department of Health,Salisbury NHS Foundation Trust,31-Jul-18,DRESSINGS - PRE STERILE,Medicine,NHS LOGISTICS,1019084203,2.49,
Department of Health,Salisbury NHS Foundation Trust,31-Jul-18,DRESSINGS - PRE STERILE,Medicine,NHS LOGISTICS,1019084203,2.49,
Department of Health,Salisbury NHS Foundation Trust,31-Jul-18,MEDSURGCONS - OTHER,Medicine,NHS LOGISTICS,1019084203,5.3,
Department of Health,Salisbury NHS Foundation Trust,31-Jul-18,NON DISPOSABLE BED LINEN,Medicine,NHS LOGISTICS,1019084203,11.25,
Department of Health,Salisbury NHS Foundation Trust,31-Jul-18,DISPOSABLE THEATRE DRAPES WIPES,Medicine,NHS LOGISTICS,1019084203,10.65,
Department of Health,Salisbury NHS Foundation Trust,31-Jul-18,PATIENT APPLIANCES,Medicine,NHS LOGISTICS,1019084203,47.35,
Department of Health,Salisbury NHS Foundation Trust,31-Jul-18,PATIENTS BABY WEAR,Medicine,NHS LOGISTICS,1019084203,32.13,
Department of Health,Salisbury NHS Foundation Trust,31-Jul-18,DRESSINGS - PRE STERILE,Medicine,NHS LOGISTICS,1019084203,3.73,
Department of Health,Salisbury NHS Foundation Trust,31-Jul-18,MEDSURGCONS - OTHER,Medicine,NHS LOGISTICS,1019084203,1.77,
Department of Health,Salisbury NHS Foundation Trust,31-Jul-18,NON DISPOSABLE BED LINEN,Medicine,NHS LOGISTICS,1019084203,26.25,
Department of Health,Salisbury NHS Foundation Trust,31-Jul-18,M & S EQUIPELECTEQUIPINST - OTHER,Surgery,NHS LOGISTICS,1019084203,25.73,
Department of Health,Salisbury NHS Foundation Trust,31-Jul-18,DRESSINGS - PRE STERILE,Musculo-Skeletal,NHS LOGISTICS,1019084203,1.07,
Department of Health,Salisbury NHS Foundation Trust,31-Jul-18,DRESSINGS - PRE STERILE,Musculo-Skeletal,NHS LOGISTICS,1019084203,33.9,
Department of Health,Salisbury NHS Foundation Trust,31-Jul-18,DRESSINGS - PRE STERILE,Musculo-Skeletal,NHS LOGISTICS,1019084203,30.03,
Department of Health,Salisbury NHS Foundation Trust,31-Jul-18,DRESSINGS - PRE STERILE,Musculo-Skeletal,NHS LOGISTICS,1019084203,21.88,
Department of Health,Salisbury NHS Foundation Trust,31-Jul-18,DRESSINGS - PRE STERILE,Musculo-Skeletal,NHS LOGISTICS,1019084203,23.28,
Department of Health,Salisbury NHS Foundation Trust,31-Jul-18,DRESSINGS - PRE STERILE,Musculo-Skeletal,NHS LOGISTICS,1019084203,75.08,
Department of Health,Salisbury NHS Foundation Trust,31-Jul-18,DRESSINGS - PRE STERILE,Musculo-Skeletal,NHS LOGISTICS,1019084203,6.3,
Department of Health,Salisbury NHS Foundation Trust,31-Jul-18,DRESSINGS - PRE STERILE,Musculo-Skeletal,NHS LOGISTICS,1019084203,3.43,
Department of Health,Salisbury NHS Foundation Trust,31-Jul-18,DRESSINGS - PRE STERILE,Musculo-Skeletal,NHS LOGISTICS,1019084203,2.49,
Department of Health,Salisbury NHS Foundation Trust,31-Jul-18,DRESSINGS - PRE STERILE,Musculo-Skeletal,NHS LOGISTICS,1019084203,2.49,
Department of Health,Salisbury NHS Foundation Trust,31-Jul-18,OTHER MEDICAL SUPPLIES,Musculo-Skeletal,NHS LOGISTICS,1019084203,106.67,
Department of Health,Salisbury NHS Foundation Trust,31-Jul-18,NON DISPOSABLE BED LINEN,Surgery,NHS LOGISTICS,1019084203,75,
Department of Health,Salisbury NHS Foundation Trust,31-Jul-18,TISSUES HAND TOWELS & TOILET PAPER,Surgery,NHS LOGISTICS,1019084203,8.69,
Department of Health,Salisbury NHS Foundation Trust,31-Jul-18,DRESSINGS - PRE STERILE,Surgery,NHS LOGISTICS,1019084203,9.39,
Department of Health,Salisbury NHS Foundation Trust,31-Jul-18,DRESSINGS - PRE STERILE,Surgery,NHS LOGISTICS,1019084203,3.93,
Department of Health,Salisbury NHS Foundation Trust,31-Jul-18,DRESSINGS - PRE STERILE,Surgery,NHS LOGISTICS,1019084203,1.82,
Department of Health,Salisbury NHS Foundation Trust,31-Jul-18,DISPOSABLE THEATRE DRAPES WIPES,Surgery,NHS LOGISTICS,1019084203,7.1,
Department of Health,Salisbury NHS Foundation Trust,31-Jul-18,M & S EQUIPELECTEQUIPINST - OTHER,Musculo-Skeletal,NHS LOGISTICS,1019084203,16.8,
Department of Health,Salisbury NHS Foundation Trust,31-Jul-18,TISSUES HAND TOWELS & TOILET PAPER,Musculo-Skeletal,NHS LOGISTICS,1019084203,14.4,
Department of Health,Salisbury NHS Foundation Trust,31-Jul-18,NON DISPOSABLE BED LINEN,Musculo-Skeletal,NHS LOGISTICS,1019084203,33.18,
Department of Health,Salisbury NHS Foundation Trust,31-Jul-18,DRESSINGS - PRE STERILE,Musculo-Skeletal,NHS LOGISTICS,1019084203,4.05,
Department of Health,Salisbury NHS Foundation Trust,31-Jul-18,MEDSURGCONS - OTHER,Musculo-Skeletal,NHS LOGISTICS,1019084203,14.3,
Department of Health,Salisbury NHS Foundation Trust,31-Jul-18,NON DISPOSABLE BED LINEN,Musculo-Skeletal,NHS LOGISTICS,1019084203,15,
Department of Health,Salisbury NHS Foundation Trust,31-Jul-18,PATIENT APPLIANCES,Musculo-Skeletal,NHS LOGISTICS,1019084203,86.33,
Department of Health,Salisbury NHS Foundation Trust,31-Jul-18,DISPOSABLE THEATRE DRAPES WIPES,Musculo-Skeletal,NHS LOGISTICS,1019084203,6.58,
Department of Health,Salisbury NHS Foundation Trust,31-Jul-18,DISPOSABLE THEATRE DRAPES WIPES,Musculo-Skeletal,NHS LOGISTICS,1019084203,10.65,
Department of Health,Salisbury NHS Foundation Trust,31-Jul-18,OTHER MEDICAL SUPPLIES,Surgery,NHS LOGISTICS,1019084203,8.18,
Department of Health,Salisbury NHS Foundation Trust,31-Jul-18,MEDSURGCONS - OTHER,Surgery,NHS LOGISTICS,1019084203,7.15,
Department of Health,Salisbury NHS Foundation Trust,31-Jul-18,DRESSINGS - PRE STERILE,Musculo-Skeletal,NHS LOGISTICS,1019084203,1.87,
Department of Health,Salisbury NHS Foundation Trust,31-Jul-18,OTHER MEDICAL SUPPLIES,Musculo-Skeletal,NHS LOGISTICS,1019084203,3.77,
Department of Health,Salisbury NHS Foundation Trust,31-Jul-18,MEDSURGCONS - OTHER,Musculo-Skeletal,NHS LOGISTICS,1019084203,3.91,
Department of Health,Salisbury NHS Foundation Trust,31-Jul-18,MEDSURGCONS - OTHER,Musculo-Skeletal,NHS LOGISTICS,1019084203,6.82,
Department of Health,Salisbury NHS Foundation Trust,31-Jul-18,PATIENT APPLIANCES,Clinical Support,NHS LOGISTICS,1019084203,30.44,
Department of Health,Salisbury NHS Foundation Trust,31-Jul-18,TISSUES HAND TOWELS & TOILET PAPER,Clinical Support,NHS LOGISTICS,1019084203,4.97,
Department of Health,Salisbury NHS Foundation Trust,31-Jul-18,OTHER MEDICAL SUPPLIES,Clinical Support,NHS LOGISTICS,1019084203,9.38,
Department of Health,Salisbury NHS Foundation Trust,31-Jul-18,MEDSURGCONS - OTHER,Clinical Support,NHS LOGISTICS,1019084203,0.88,
Department of Health,Salisbury NHS Foundation Trust,31-Jul-18,MEDSURGCONS - OTHER,Clinical Support,NHS LOGISTICS,1019084203,26.58,
Department of Health,Salisbury NHS Foundation Trust,31-Jul-18,MEDSURGCONS - OTHER,Surgery,NHS LOGISTICS,1019084203,10.73,
Department of Health,Salisbury NHS Foundation Trust,31-Jul-18,OPTICAL  -  OTHER,Surgery,NHS LOGISTICS,1019084203,144.75,
Department of Health,Salisbury NHS Foundation Trust,31-Jul-18,DRESSINGS - PRE STERILE,Clinical Support,NHS LOGISTICS,1019084203,0.91,
Department of Health,Salisbury NHS Foundation Trust,31-Jul-18,MED SURG EQUIP REP MAINT CLEANING,Clinical Support,NHS LOGISTICS,1019084203,6.4,
Department of Health,Salisbury NHS Foundation Trust,31-Jul-18,MEDSURGCONS - OTHER,Clinical Support,NHS LOGISTICS,1019084203,3.78,
Department of Health,Salisbury NHS Foundation Trust,31-Jul-18,MEDSURGCONS - OTHER,Clinical Support,NHS LOGISTICS,1019084203,14.3,
Department of Health,Salisbury NHS Foundation Trust,31-Jul-18,DISPOSABLE THEATRE DRAPES WIPES,Clinical Support,NHS LOGISTICS,1019084203,3.55,
Department of Health,Salisbury NHS Foundation Trust,31-Jul-18,TISSUES HAND TOWELS & TOILET PAPER,Clinical Support,NHS LOGISTICS,1019084203,21.3,
Department of Health,Salisbury NHS Foundation Trust,31-Jul-18,TISSUES HAND TOWELS & TOILET PAPER,Clinical Support,NHS LOGISTICS,1019084203,0.78,
Department of Health,Salisbury NHS Foundation Trust,31-Jul-18,M & S EQUIPELECTEQUIPINST - OTHER,Clinical Support,NHS LOGISTICS,1019084203,8.4,
Department of Health,Salisbury NHS Foundation Trust,31-Jul-18,PATIENTS BEDWEAR UNISEX,Clinical Support,NHS LOGISTICS,1019084203,4,
Department of Health,Salisbury NHS Foundation Trust,31-Jul-18,TOILETRIES PERSONAL HYGIENE PRODUCTS,Clinical Support,NHS LOGISTICS,1019084203,3.08,
Department of Health,Salisbury NHS Foundation Trust,31-Jul-18,DISPOSABLE THEATRE DRAPES WIPES,Clinical Support,NHS LOGISTICS,1019084203,12,
Department of Health,Salisbury NHS Foundation Trust,31-Jul-18,PAPER ITEMS GENERAL STATIONERY SUNDRIES,Clinical Support,NHS LOGISTICS,1019084203,23.16,
Department of Health,Salisbury NHS Foundation Trust,31-Jul-18,OTHER MEDICAL SUPPLIES,Clinical Support,NHS LOGISTICS,1019084203,3.77,
Department of Health,Salisbury NHS Foundation Trust,31-Jul-18,MEDSURGCONS - OTHER,Clinical Support,NHS LOGISTICS,1019084203,7.15,
Department of Health,Salisbury NHS Foundation Trust,31-Jul-18,MEDSURGCONS - OTHER,Clinical Support,NHS LOGISTICS,1019084203,1.77,
Department of Health,Salisbury NHS Foundation Trust,31-Jul-18,NON DISPOSABLE BED LINEN,Clinical Support,NHS LOGISTICS,1019084203,30,
Department of Health,Salisbury NHS Foundation Trust,31-Jul-18,PATIENT APPLIANCES,Clinical Support,NHS LOGISTICS,1019084203,4.32,
Department of Health,Salisbury NHS Foundation Trust,31-Jul-18,PATIENT APPLIANCES,Clinical Support,NHS LOGISTICS,1019084203,7.8,
Department of Health,Salisbury NHS Foundation Trust,31-Jul-18,DISPOSABLE THEATRE DRAPES WIPES,Clinical Support,NHS LOGISTICS,1019084203,3.55,
Department of Health,Salisbury NHS Foundation Trust,31-Jul-18,TOILETRIES PERSONAL HYGIENE PRODUCTS,Surgery,NHS LOGISTICS,1019084203,15.42,
Department of Health,Salisbury NHS Foundation Trust,31-Jul-18,M & S EQUIPELECTEQUIPINST - OTHER,Surgery,NHS LOGISTICS,1019084203,6.75,
Department of Health,Salisbury NHS Foundation Trust,31-Jul-18,OTHER MEDICAL SUPPLIES,Surgery,NHS LOGISTICS,1019084203,3.77,
Department of Health,Salisbury NHS Foundation Trust,31-Jul-18,PATIENT APPLIANCES,Surgery,NHS LOGISTICS,1019084203,3.35,
Department of Health,Salisbury NHS Foundation Trust,31-Jul-18,PATIENT APPLIANCES,Surgery,NHS LOGISTICS,1019084203,3.35,
Department of Health,Salisbury NHS Foundation Trust,31-Jul-18,TOILETRIES PERSONAL HYGIENE PRODUCTS,Surgery,NHS LOGISTICS,1019084203,4.13,
Department of Health,Salisbury NHS Foundation Trust,31-Jul-18,MEDSURGCONS - OTHER,Surgery,NHS LOGISTICS,1019084203,0.88,
Department of Health,Salisbury NHS Foundation Trust,31-Jul-18,NON DISPOSABLE BED LINEN,Surgery,NHS LOGISTICS,1019084203,11.25,
Department of Health,Salisbury NHS Foundation Trust,31-Jul-18,PATIENT APPLIANCES,Surgery,NHS LOGISTICS,1019084203,7.8,
Department of Health,Salisbury NHS Foundation Trust,31-Jul-18,M & S EQUIPELECTEQUIPINST - OTHER,Surgery,NHS LOGISTICS,1019084203,13.5,
Department of Health,Salisbury NHS Foundation Trust,31-Jul-18,DRESSINGS - PRE STERILE,Surgery,NHS LOGISTICS,1019084203,1.87,
Department of Health,Salisbury NHS Foundation Trust,31-Jul-18,ANAESTHETIC EQUIPMENT ACCESSORIES,Surgery,NHS LOGISTICS,1019084203,1.25,
Department of Health,Salisbury NHS Foundation Trust,31-Jul-18,OTHER MEDICAL SUPPLIES,Surgery,NHS LOGISTICS,1019084203,3.77,
Department of Health,Salisbury NHS Foundation Trust,31-Jul-18,DRESSINGS - PRE STERILE,Surgery,NHS LOGISTICS,1019084203,2.68,
Department of Health,Salisbury NHS Foundation Trust,31-Jul-18,MEDSURGCONS - OTHER,Surgery,NHS LOGISTICS,1019084203,0.88,
Department of Health,Salisbury NHS Foundation Trust,31-Jul-18,DISPOSABLE THEATRE DRAPES WIPES,Surgery,NHS LOGISTICS,1019084203,3.55,
Department of Health,Salisbury NHS Foundation Trust,31-Jul-18,BAGS SACKS - OTHER,Medicine,NHS LOGISTICS,1019084203,14.32,
Department of Health,Salisbury NHS Foundation Trust,31-Jul-18,TOILETRIES PERSONAL HYGIENE PRODUCTS,Medicine,NHS LOGISTICS,1019084203,3.08,
Department of Health,Salisbury NHS Foundation Trust,31-Jul-18,TISSUES HAND TOWELS & TOILET PAPER,Medicine,NHS LOGISTICS,1019084203,3.72,
Department of Health,Salisbury NHS Foundation Trust,31-Jul-18,DRESSINGS - PRE STERILE,Medicine,NHS LOGISTICS,1019084203,5.73,
Department of Health,Salisbury NHS Foundation Trust,31-Jul-18,TISSUES HAND TOWELS & TOILET PAPER,Medicine,NHS LOGISTICS,1019084203,1.57,
Department of Health,Salisbury NHS Foundation Trust,31-Jul-18,DRESSINGS - PRE STERILE,Medicine,NHS LOGISTICS,1019084203,0.93,
Department of Health,Salisbury NHS Foundation Trust,31-Jul-18,M & S EQUIPELECTEQUIPINST - OTHER,Medicine,NHS LOGISTICS,1019084203,2.63,
Department of Health,Salisbury NHS Foundation Trust,31-Jul-18,PATIENT APPLIANCES,Medicine,NHS LOGISTICS,1019084203,8.78,
Department of Health,Salisbury NHS Foundation Trust,31-Jul-18,TISSUES HAND TOWELS & TOILET PAPER,Clinical Support,NHS LOGISTICS,1019084203,3.72,
Department of Health,Salisbury NHS Foundation Trust,31-Jul-18,TISSUES HAND TOWELS & TOILET PAPER,Clinical Support,NHS LOGISTICS,1019084203,10.65,
Department of Health,Salisbury NHS Foundation Trust,31-Jul-18,TISSUES HAND TOWELS & TOILET PAPER,Clinical Support,NHS LOGISTICS,1019084203,0.78,
Department of Health,Salisbury NHS Foundation Trust,31-Jul-18,NON DISPOSABLE BED LINEN,Clinical Support,NHS LOGISTICS,1019084203,3.75,
Department of Health,Salisbury NHS Foundation Trust,31-Jul-18,DRESSINGS - PRE STERILE,Surgery,NHS LOGISTICS,1019084203,3.12,
Department of Health,Salisbury NHS Foundation Trust,31-Jul-18,DRESSINGS - PRE STERILE,Surgery,NHS LOGISTICS,1019084203,7.52,
Department of Health,Salisbury NHS Foundation Trust,31-Jul-18,DRESSINGS - PRE STERILE,Surgery,NHS LOGISTICS,1019084203,2.93,
Department of Health,Salisbury NHS Foundation Trust,31-Jul-18,DRESSINGS - PRE STERILE,Surgery,NHS LOGISTICS,1019084203,7.49,
Department of Health,Salisbury NHS Foundation Trust,31-Jul-18,MEDSURGCONS - OTHER,Surgery,NHS LOGISTICS,1019084203,4.85,
Department of Health,Salisbury NHS Foundation Trust,31-Jul-18,MEDSURGCONS - OTHER,Surgery,NHS LOGISTICS,1019084203,3.91,
Department of Health,Salisbury NHS Foundation Trust,31-Jul-18,MEDSURGCONS - OTHER,Surgery,NHS LOGISTICS,1019084203,0.88,
Department of Health,Salisbury NHS Foundation Trust,31-Jul-18,DISPOSABLE THEATRE DRAPES WIPES,Surgery,NHS LOGISTICS,1019084203,3.33,
Department of Health,Salisbury NHS Foundation Trust,31-Jul-18,ANAESTHETIC EQUIPMENT ACCESSORIES,Clinical Support,NHS LOGISTICS,1019084203,69.86,
Department of Health,Salisbury NHS Foundation Trust,31-Jul-18,DRESSINGS - PRE STERILE,Clinical Support,NHS LOGISTICS,1019084203,0.93,
Department of Health,Salisbury NHS Foundation Trust,31-Jul-18,BABY TEXTURE MODIFIED FOODS,Clinical Support,NHS LOGISTICS,1019084203,11.78,
Department of Health,Salisbury NHS Foundation Trust,31-Jul-18,MEDSURGCONS - OTHER,Clinical Support,NHS LOGISTICS,1019084203,35.35,
Department of Health,Salisbury NHS Foundation Trust,31-Jul-18,MEDSURGCONS - OTHER,Clinical Support,NHS LOGISTICS,1019084203,3.92,
Department of Health,Salisbury NHS Foundation Trust,31-Jul-18,DRESSINGS - PRE STERILE,Surgery,NHS LOGISTICS,1019084203,2.8,
Department of Health,Salisbury NHS Foundation Trust,31-Jul-18,TOILETRIES PERSONAL HYGIENE PRODUCTS,Surgery,NHS LOGISTICS,1019084203,17.15,
Department of Health,Salisbury NHS Foundation Trust,31-Jul-18,ANAESTHETIC EQUIPMENT ACCESSORIES,Surgery,NHS LOGISTICS,1019084203,15.91,
Department of Health,Salisbury NHS Foundation Trust,31-Jul-18,COOKING & KITCHEN UTENSILS,Surgery,NHS LOGISTICS,1019084203,53.15,
Department of Health,Salisbury NHS Foundation Trust,31-Jul-18,OTHER MEDICAL SUPPLIES,Surgery,NHS LOGISTICS,1019084203,5.65,
Department of Health,Salisbury NHS Foundation Trust,31-Jul-18,MEDSURGCONS - OTHER,Surgery,NHS LOGISTICS,1019084203,47.83,
Department of Health,Salisbury NHS Foundation Trust,31-Jul-18,OTHER MEDICAL SUPPLIES,Surgery,NHS LOGISTICS,1019084203,94.45,
Department of Health,Salisbury NHS Foundation Trust,31-Jul-18,NON DISPOSABLE BED LINEN,Surgery,NHS LOGISTICS,1019084203,7.5,
Department of Health,Salisbury NHS Foundation Trust,31-Jul-18,PATIENT APPLIANCES,Surgery,NHS LOGISTICS,1019084203,15.6,
Department of Health,Salisbury NHS Foundation Trust,31-Jul-18,MEDSURGCONS - OTHER,Surgery,NHS LOGISTICS,1019084203,16.02,
Department of Health,Salisbury NHS Foundation Trust,31-Jul-18,DISPOSABLE THEATRE DRAPES WIPES,Surgery,NHS LOGISTICS,1019084203,2.24,
Department of Health,Salisbury NHS Foundation Trust,31-Jul-18,MEDSURGCONS - OTHER,Surgery,NHS LOGISTICS,1019084203,6.82,
Department of Health,Salisbury NHS Foundation Trust,31-Jul-18,SURGICAL INSTRUMENTS: GENERAL,Surgery,NHS LOGISTICS,1019084203,14.58,
Department of Health,Salisbury NHS Foundation Trust,31-Jul-18,OTHER MEDICAL SUPPLIES,Surgery,NHS LOGISTICS,1019084203,18.83,
Department of Health,Salisbury NHS Foundation Trust,31-Jul-18,MEDSURGCONS - OTHER,Surgery,NHS LOGISTICS,1019084203,10.24,
Department of Health,Salisbury NHS Foundation Trust,31-Jul-18,BEVERAGES & AMBIENT FOOD,Surgery,NHS LOGISTICS,1019084203,28.68,
Department of Health,Salisbury NHS Foundation Trust,31-Jul-18,BEVERAGES & AMBIENT FOOD,Surgery,NHS LOGISTICS,1019084203,2.48,
Department of Health,Salisbury NHS Foundation Trust,31-Jul-18,BEVERAGES & AMBIENT FOOD,Surgery,NHS LOGISTICS,1019084203,10.56,
Department of Health,Salisbury NHS Foundation Trust,31-Jul-18,LAB EQUIP-LABORATORY APPARATUS,Surgery,NHS LOGISTICS,1019084203,9.22,
Department of Health,Salisbury NHS Foundation Trust,31-Jul-18,DENTAL SURGERY SUNDRIES,Musculo-Skeletal,NHS LOGISTICS,1019084203,1.81,
Department of Health,Salisbury NHS Foundation Trust,31-Jul-18,OPTICAL  -  OTHER,Surgery,NHS LOGISTICS,1019084203,150.32,
Department of Health,Salisbury NHS Foundation Trust,31-Jul-18,STATIONERY SUNDRIES,Facilities,NHS LOGISTICS,1019084203,6,
Department of Health,Salisbury NHS Foundation Trust,31-Jul-18,STATIONERY SUNDRIES,Facilities,NHS LOGISTICS,1019084203,1.85,
Department of Health,Salisbury NHS Foundation Trust,31-Jul-18,LAB EQUIP-LABORATORY APPARATUS,Surgery,NHS LOGISTICS,1019084203,4.61,
Department of Health,Salisbury NHS Foundation Trust,31-Jul-18,CLEANING MATERIALS PRODUCTS SUNDRIES,Facilities,NHS LOGISTICS,1019084203,5.64,
Department of Health,Salisbury NHS Foundation Trust,31-Jul-18,DRESSINGS - PRE STERILE,Surgery,NHS LOGISTICS,1019084203,6,
Department of Health,Salisbury NHS Foundation Trust,31-Jul-18,DRESSINGS - PRE STERILE,Surgery,NHS LOGISTICS,1019084203,2.68,
Department of Health,Salisbury NHS Foundation Trust,31-Jul-18,MEDSURGCONS - OTHER,Surgery,NHS LOGISTICS,1019084203,7.15,
Department of Health,Salisbury NHS Foundation Trust,31-Jul-18,BEVERAGES & AMBIENT FOOD,Facilities,NHS LOGISTICS,1019084203,15.78,
Department of Health,Salisbury NHS Foundation Trust,31-Jul-18,BEVERAGES & AMBIENT FOOD,Facilities,NHS LOGISTICS,1019084203,19.16,
Department of Health,Salisbury NHS Foundation Trust,31-Jul-18,BEVERAGES & AMBIENT FOOD,Facilities,NHS LOGISTICS,1019084203,36.6,
Department of Health,Salisbury NHS Foundation Trust,31-Jul-18,BEVERAGES & AMBIENT FOOD,Facilities,NHS LOGISTICS,1019084203,12.42,
Department of Health,Salisbury NHS Foundation Trust,31-Jul-18,BEVERAGES & AMBIENT FOOD,Facilities,NHS LOGISTICS,1019084203,5.04,
Department of Health,Salisbury NHS Foundation Trust,31-Jul-18,BEVERAGES & AMBIENT FOOD,Facilities,NHS LOGISTICS,1019084203,22.62,
Department of Health,Salisbury NHS Foundation Trust,31-Jul-18,BEVERAGES & AMBIENT FOOD,Facilities,NHS LOGISTICS,1019084203,6.4,
Department of Health,Salisbury NHS Foundation Trust,31-Jul-18,BEVERAGES & AMBIENT FOOD,Facilities,NHS LOGISTICS,1019084203,3.19,
Department of Health,Salisbury NHS Foundation Trust,31-Jul-18,BEVERAGES & AMBIENT FOOD,Facilities,NHS LOGISTICS,1019084203,8.7,
Department of Health,Salisbury NHS Foundation Trust,31-Jul-18,FLAVOURINGS HERBS SPICES,Facilities,NHS LOGISTICS,1019084203,6.84,
Department of Health,Salisbury NHS Foundation Trust,31-Jul-18,BEVERAGES & AMBIENT FOOD,Facilities,NHS LOGISTICS,1019084203,9.52,
Department of Health,Salisbury NHS Foundation Trust,31-Jul-18,BEVERAGES & AMBIENT FOOD,Facilities,NHS LOGISTICS,1019084203,9.03,
Department of Health,Salisbury NHS Foundation Trust,31-Jul-18,FRUIT & VEGETABLES,Facilities,NHS LOGISTICS,1019084203,24,
Department of Health,Salisbury NHS Foundation Trust,31-Jul-18,BEVERAGES & AMBIENT FOOD,Facilities,NHS LOGISTICS,1019084203,11.86,
Department of Health,Salisbury NHS Foundation Trust,31-Jul-18,BEVERAGES & AMBIENT FOOD,Facilities,NHS LOGISTICS,1019084203,132.16,
Department of Health,Salisbury NHS Foundation Trust,31-Jul-18,BEVERAGES & AMBIENT FOOD,Facilities,NHS LOGISTICS,1019084203,10.74,
Department of Health,Salisbury NHS Foundation Trust,31-Jul-18,FRUIT & VEGETABLES,Facilities,NHS LOGISTICS,1019084203,10.62,
Department of Health,Salisbury NHS Foundation Trust,31-Jul-18,FRUIT & VEGETABLES,Facilities,NHS LOGISTICS,1019084203,50.7,
Department of Health,Salisbury NHS Foundation Trust,31-Jul-18,FRUIT & VEGETABLES,Facilities,NHS LOGISTICS,1019084203,17.82,
Department of Health,Salisbury NHS Foundation Trust,31-Jul-18,FRUIT & VEGETABLES,Facilities,NHS LOGISTICS,1019084203,4.8,
Department of Health,Salisbury NHS Foundation Trust,31-Jul-18,LIQUID REFRESHMENTS,Facilities,NHS LOGISTICS,1019084203,4.99,
Department of Health,Salisbury NHS Foundation Trust,31-Jul-18,LIQUID REFRESHMENTS,Facilities,NHS LOGISTICS,1019084203,4.66,
Department of Health,Salisbury NHS Foundation Trust,31-Jul-18,MEAT GAME POULTRY FISH,Facilities,NHS LOGISTICS,1019084203,21.36,
Department of Health,Salisbury NHS Foundation Trust,31-Jul-18,BEVERAGES & AMBIENT FOOD,Facilities,NHS LOGISTICS,1019084203,7.68,
Department of Health,Salisbury NHS Foundation Trust,31-Jul-18,LIQUID REFRESHMENTS,Facilities,NHS LOGISTICS,1019084203,9.17,
Department of Health,Salisbury NHS Foundation Trust,31-Jul-18,LIQUID REFRESHMENTS,Facilities,NHS LOGISTICS,1019084203,26.33,
Department of Health,Salisbury NHS Foundation Trust,31-Jul-18,LIQUID REFRESHMENTS,Facilities,NHS LOGISTICS,1019084203,13.25,
Department of Health,Salisbury NHS Foundation Trust,31-Jul-18,LIQUID REFRESHMENTS,Facilities,NHS LOGISTICS,1019084203,13.25,
Department of Health,Salisbury NHS Foundation Trust,31-Jul-18,BEVERAGES & AMBIENT FOOD,Facilities,NHS LOGISTICS,1019084203,32.34,
Department of Health,Salisbury NHS Foundation Trust,31-Jul-18,BEVERAGES & AMBIENT FOOD,Facilities,NHS LOGISTICS,1019084203,41.4,
Department of Health,Salisbury NHS Foundation Trust,31-Jul-18,BEVERAGES & AMBIENT FOOD,Facilities,NHS LOGISTICS,1019084203,34.71,
Department of Health,Salisbury NHS Foundation Trust,31-Jul-18,BEVERAGES & AMBIENT FOOD,Facilities,NHS LOGISTICS,1019084203,8.87,
Department of Health,Salisbury NHS Foundation Trust,31-Jul-18,BEVERAGES & AMBIENT FOOD,Facilities,NHS LOGISTICS,1019084203,12.1,
Department of Health,Salisbury NHS Foundation Trust,31-Jul-18,BEVERAGES & AMBIENT FOOD,Facilities,NHS LOGISTICS,1019084203,13.41,
Department of Health,Salisbury NHS Foundation Trust,31-Jul-18,BEVERAGES & AMBIENT FOOD,Facilities,NHS LOGISTICS,1019084203,10.26,
Department of Health,Salisbury NHS Foundation Trust,31-Jul-18,BEVERAGES & AMBIENT FOOD,Facilities,NHS LOGISTICS,1019084203,25.98,
Department of Health,Salisbury NHS Foundation Trust,31-Jul-18,BEVERAGES & AMBIENT FOOD,Facilities,NHS LOGISTICS,1019084203,14.52,
Department of Health,Salisbury NHS Foundation Trust,31-Jul-18,FLAVOURINGS HERBS SPICES,Facilities,NHS LOGISTICS,1019084203,1.55,
Department of Health,Salisbury NHS Foundation Trust,31-Jul-18,BEVERAGES & AMBIENT FOOD,Facilities,NHS LOGISTICS,1019084203,2.63,
Department of Health,Salisbury NHS Foundation Trust,31-Jul-18,FLAVOURINGS HERBS SPICES,Facilities,NHS LOGISTICS,1019084203,10.07,
Department of Health,Salisbury NHS Foundation Trust,31-Jul-18,BEVERAGES & AMBIENT FOOD,Facilities,NHS LOGISTICS,1019084203,8.94,
Department of Health,Salisbury NHS Foundation Trust,31-Jul-18,BEVERAGES & AMBIENT FOOD,Facilities,NHS LOGISTICS,1019084203,6.94,
Department of Health,Salisbury NHS Foundation Trust,31-Jul-18,LIQUID REFRESHMENTS,Facilities,NHS LOGISTICS,1019084203,97.2,
Department of Health,Salisbury NHS Foundation Trust,31-Jul-18,LIQUID REFRESHMENTS,Facilities,NHS LOGISTICS,1019084203,16.46,
Department of Health,Salisbury NHS Foundation Trust,31-Jul-18,LIQUID REFRESHMENTS,Facilities,NHS LOGISTICS,1019084203,15.5,
Department of Health,Salisbury NHS Foundation Trust,31-Jul-18,LIQUID REFRESHMENTS,Facilities,NHS LOGISTICS,1019084203,2.53,
Department of Health,Salisbury NHS Foundation Trust,31-Jul-18,LIQUID REFRESHMENTS,Facilities,NHS LOGISTICS,1019084203,2.53,
Department of Health,Salisbury NHS Foundation Trust,31-Jul-18,LIQUID REFRESHMENTS,Facilities,NHS LOGISTICS,1019084203,8.73,
Department of Health,Salisbury NHS Foundation Trust,31-Jul-18,BEVERAGES & AMBIENT FOOD,Facilities,NHS LOGISTICS,1019084203,105.48,
Department of Health,Salisbury NHS Foundation Trust,31-Jul-18,FRUIT & VEGETABLES,Facilities,NHS LOGISTICS,1019084203,20.58,
Department of Health,Salisbury NHS Foundation Trust,31-Jul-18,FRUIT & VEGETABLES,Facilities,NHS LOGISTICS,1019084203,17.04,
Department of Health,Salisbury NHS Foundation Trust,31-Jul-18,FRUIT & VEGETABLES,Facilities,NHS LOGISTICS,1019084203,19.86,
Department of Health,Salisbury NHS Foundation Trust,31-Jul-18,FRUIT & VEGETABLES,Facilities,NHS LOGISTICS,1019084203,13.2,
Department of Health,Salisbury NHS Foundation Trust,31-Jul-18,LIQUID REFRESHMENTS,Facilities,NHS LOGISTICS,1019084203,15.47,
Department of Health,Salisbury NHS Foundation Trust,31-Jul-18,HEALTHCARE - WEAR,Facilities,NHS LOGISTICS,1019084203,86.33,
Department of Health,Salisbury NHS Foundation Trust,31-Jul-18,EGGS MILK OTHER DAIRY PRODUCTS,Facilities,NHS LOGISTICS,1019084203,64.58,
Department of Health,Salisbury NHS Foundation Trust,31-Jul-18,BEVERAGES & AMBIENT FOOD,Facilities,NHS LOGISTICS,1019084203,47.34,
Department of Health,Salisbury NHS Foundation Trust,31-Jul-18,BEVERAGES & AMBIENT FOOD,Facilities,NHS LOGISTICS,1019084203,76.64,
Department of Health,Salisbury NHS Foundation Trust,31-Jul-18,BEVERAGES & AMBIENT FOOD,Facilities,NHS LOGISTICS,1019084203,36.6,
Department of Health,Salisbury NHS Foundation Trust,31-Jul-18,BEVERAGES & AMBIENT FOOD,Facilities,NHS LOGISTICS,1019084203,12.42,
Department of Health,Salisbury NHS Foundation Trust,31-Jul-18,BEVERAGES & AMBIENT FOOD,Facilities,NHS LOGISTICS,1019084203,24.4,
Department of Health,Salisbury NHS Foundation Trust,31-Jul-18,BEVERAGES & AMBIENT FOOD,Facilities,NHS LOGISTICS,1019084203,4.53,
Department of Health,Salisbury NHS Foundation Trust,31-Jul-18,BEVERAGES & AMBIENT FOOD,Facilities,NHS LOGISTICS,1019084203,8.9,
Department of Health,Salisbury NHS Foundation Trust,31-Jul-18,BEVERAGES & AMBIENT FOOD,Facilities,NHS LOGISTICS,1019084203,3.57,
Department of Health,Salisbury NHS Foundation Trust,31-Jul-18,BEVERAGES & AMBIENT FOOD,Facilities,NHS LOGISTICS,1019084203,7.72,
Department of Health,Salisbury NHS Foundation Trust,31-Jul-18,BEVERAGES & AMBIENT FOOD,Facilities,NHS LOGISTICS,1019084203,6.4,
Department of Health,Salisbury NHS Foundation Trust,31-Jul-18,BEVERAGES & AMBIENT FOOD,Facilities,NHS LOGISTICS,1019084203,4.43,
Department of Health,Salisbury NHS Foundation Trust,31-Jul-18,FLAVOURINGS HERBS SPICES,Facilities,NHS LOGISTICS,1019084203,6.84,
Department of Health,Salisbury NHS Foundation Trust,31-Jul-18,COOKING & KITCHEN UTENSILS,Facilities,NHS LOGISTICS,1019084203,25,
Department of Health,Salisbury NHS Foundation Trust,31-Jul-18,BEVERAGES & AMBIENT FOOD,Facilities,NHS LOGISTICS,1019084203,18.72,
Department of Health,Salisbury NHS Foundation Trust,31-Jul-18,LIQUID REFRESHMENTS,Facilities,NHS LOGISTICS,1019084203,3.91,
Department of Health,Salisbury NHS Foundation Trust,31-Jul-18,BEVERAGES & AMBIENT FOOD,Facilities,NHS LOGISTICS,1019084203,10.72,
Department of Health,Salisbury NHS Foundation Trust,31-Jul-18,EGGS MILK OTHER DAIRY PRODUCTS,Facilities,NHS LOGISTICS,1019084203,23.24,
Department of Health,Salisbury NHS Foundation Trust,31-Jul-18,BEVERAGES & AMBIENT FOOD,Facilities,NHS LOGISTICS,1019084203,9.03,
Department of Health,Salisbury NHS Foundation Trust,31-Jul-18,MEAT GAME POULTRY FISH,Facilities,NHS LOGISTICS,1019084203,51.84,
Department of Health,Salisbury NHS Foundation Trust,31-Jul-18,FRUIT & VEGETABLES,Facilities,NHS LOGISTICS,1019084203,60,
Department of Health,Salisbury NHS Foundation Trust,31-Jul-18,BEVERAGES & AMBIENT FOOD,Facilities,NHS LOGISTICS,1019084203,11.86,
Department of Health,Salisbury NHS Foundation Trust,31-Jul-18,BEVERAGES & AMBIENT FOOD,Facilities,NHS LOGISTICS,1019084203,188.8,
Department of Health,Salisbury NHS Foundation Trust,31-Jul-18,BEVERAGES & AMBIENT FOOD,Facilities,NHS LOGISTICS,1019084203,21.48,
Department of Health,Salisbury NHS Foundation Trust,31-Jul-18,FRUIT & VEGETABLES,Facilities,NHS LOGISTICS,1019084203,23.4,
Department of Health,Salisbury NHS Foundation Trust,31-Jul-18,FRUIT & VEGETABLES,Facilities,NHS LOGISTICS,1019084203,25.56,
Department of Health,Salisbury NHS Foundation Trust,31-Jul-18,FRUIT & VEGETABLES,Facilities,NHS LOGISTICS,1019084203,10.62,
Department of Health,Salisbury NHS Foundation Trust,31-Jul-18,FRUIT & VEGETABLES,Facilities,NHS LOGISTICS,1019084203,75.84,
Department of Health,Salisbury NHS Foundation Trust,31-Jul-18,FRUIT & VEGETABLES,Facilities,NHS LOGISTICS,1019084203,17.82,
Department of Health,Salisbury NHS Foundation Trust,31-Jul-18,FRUIT & VEGETABLES,Facilities,NHS LOGISTICS,1019084203,20.76,
Department of Health,Salisbury NHS Foundation Trust,31-Jul-18,FRUIT & VEGETABLES,Facilities,NHS LOGISTICS,1019084203,35.04,
Department of Health,Salisbury NHS Foundation Trust,31-Jul-18,LIQUID REFRESHMENTS,Facilities,NHS LOGISTICS,1019084203,14.97,
Department of Health,Salisbury NHS Foundation Trust,31-Jul-18,LIQUID REFRESHMENTS,Facilities,NHS LOGISTICS,1019084203,13.98,
Department of Health,Salisbury NHS Foundation Trust,31-Jul-18,BEVERAGES & AMBIENT FOOD,Facilities,NHS LOGISTICS,1019084203,7.68,
Department of Health,Salisbury NHS Foundation Trust,31-Jul-18,LIQUID REFRESHMENTS,Facilities,NHS LOGISTICS,1019084203,9.17,
Department of Health,Salisbury NHS Foundation Trust,31-Jul-18,LIQUID REFRESHMENTS,Facilities,NHS LOGISTICS,1019084203,26.33,
Department of Health,Salisbury NHS Foundation Trust,31-Jul-18,LIQUID REFRESHMENTS,Facilities,NHS LOGISTICS,1019084203,26.5,
Department of Health,Salisbury NHS Foundation Trust,31-Jul-18,LIQUID REFRESHMENTS,Facilities,NHS LOGISTICS,1019084203,39.75,
Department of Health,Salisbury NHS Foundation Trust,31-Jul-18,BEVERAGES & AMBIENT FOOD,Facilities,NHS LOGISTICS,1019084203,32.34,
Department of Health,Salisbury NHS Foundation Trust,31-Jul-18,BEVERAGES & AMBIENT FOOD,Facilities,NHS LOGISTICS,1019084203,62.1,
Department of Health,Salisbury NHS Foundation Trust,31-Jul-18,BEVERAGES & AMBIENT FOOD,Facilities,NHS LOGISTICS,1019084203,11.57,
Department of Health,Salisbury NHS Foundation Trust,31-Jul-18,BEVERAGES & AMBIENT FOOD,Facilities,NHS LOGISTICS,1019084203,35.48,
Department of Health,Salisbury NHS Foundation Trust,31-Jul-18,BEVERAGES & AMBIENT FOOD,Facilities,NHS LOGISTICS,1019084203,12.1,
Department of Health,Salisbury NHS Foundation Trust,31-Jul-18,BEVERAGES & AMBIENT FOOD,Facilities,NHS LOGISTICS,1019084203,13.74,
Department of Health,Salisbury NHS Foundation Trust,31-Jul-18,BEVERAGES & AMBIENT FOOD,Facilities,NHS LOGISTICS,1019084203,27,
Department of Health,Salisbury NHS Foundation Trust,31-Jul-18,FLAVOURINGS HERBS SPICES,Facilities,NHS LOGISTICS,1019084203,13.03,
Department of Health,Salisbury NHS Foundation Trust,31-Jul-18,COOKING & KITCHEN UTENSILS,Facilities,NHS LOGISTICS,1019084203,17.81,
Department of Health,Salisbury NHS Foundation Trust,31-Jul-18,COOKING & KITCHEN UTENSILS,Facilities,NHS LOGISTICS,1019084203,16.04,
Department of Health,Salisbury NHS Foundation Trust,31-Jul-18,BEVERAGES & AMBIENT FOOD,Facilities,NHS LOGISTICS,1019084203,40.23,
Department of Health,Salisbury NHS Foundation Trust,31-Jul-18,BEVERAGES & AMBIENT FOOD,Facilities,NHS LOGISTICS,1019084203,10.26,
Department of Health,Salisbury NHS Foundation Trust,31-Jul-18,BEVERAGES & AMBIENT FOOD,Facilities,NHS LOGISTICS,1019084203,11.86,
Department of Health,Salisbury NHS Foundation Trust,31-Jul-18,BEVERAGES & AMBIENT FOOD,Facilities,NHS LOGISTICS,1019084203,51.96,
Department of Health,Salisbury NHS Foundation Trust,31-Jul-18,BEVERAGES & AMBIENT FOOD,Facilities,NHS LOGISTICS,1019084203,34.32,
Department of Health,Salisbury NHS Foundation Trust,31-Jul-18,BEVERAGES & AMBIENT FOOD,Facilities,NHS LOGISTICS,1019084203,38.64,
Department of Health,Salisbury NHS Foundation Trust,31-Jul-18,BEVERAGES & AMBIENT FOOD,Facilities,NHS LOGISTICS,1019084203,14.52,
Department of Health,Salisbury NHS Foundation Trust,31-Jul-18,FLAVOURINGS HERBS SPICES,Facilities,NHS LOGISTICS,1019084203,4.65,
Department of Health,Salisbury NHS Foundation Trust,31-Jul-18,BEVERAGES & AMBIENT FOOD,Facilities,NHS LOGISTICS,1019084203,10.8,
Department of Health,Salisbury NHS Foundation Trust,31-Jul-18,BEVERAGES & AMBIENT FOOD,Facilities,NHS LOGISTICS,1019084203,8.9,
Department of Health,Salisbury NHS Foundation Trust,31-Jul-18,BEVERAGES & AMBIENT FOOD,Facilities,NHS LOGISTICS,1019084203,8.9,
Department of Health,Salisbury NHS Foundation Trust,31-Jul-18,BEVERAGES & AMBIENT FOOD,Facilities,NHS LOGISTICS,1019084203,6.12,
Department of Health,Salisbury NHS Foundation Trust,31-Jul-18,FLAVOURINGS HERBS SPICES,Facilities,NHS LOGISTICS,1019084203,1.42,
Department of Health,Salisbury NHS Foundation Trust,31-Jul-18,FLAVOURINGS HERBS SPICES,Facilities,NHS LOGISTICS,1019084203,1.82,
Department of Health,Salisbury NHS Foundation Trust,31-Jul-18,FLAVOURINGS HERBS SPICES,Facilities,NHS LOGISTICS,1019084203,4.6,
Department of Health,Salisbury NHS Foundation Trust,31-Jul-18,FLAVOURINGS HERBS SPICES,Facilities,NHS LOGISTICS,1019084203,20.14,
Department of Health,Salisbury NHS Foundation Trust,31-Jul-18,BEVERAGES & AMBIENT FOOD,Facilities,NHS LOGISTICS,1019084203,8.94,
Department of Health,Salisbury NHS Foundation Trust,31-Jul-18,LIQUID REFRESHMENTS,Facilities,NHS LOGISTICS,1019084203,202.5,
Department of Health,Salisbury NHS Foundation Trust,31-Jul-18,LIQUID REFRESHMENTS,Facilities,NHS LOGISTICS,1019084203,19.75,
Department of Health,Salisbury NHS Foundation Trust,31-Jul-18,LIQUID REFRESHMENTS,Facilities,NHS LOGISTICS,1019084203,21.7,
Department of Health,Salisbury NHS Foundation Trust,31-Jul-18,LIQUID REFRESHMENTS,Facilities,NHS LOGISTICS,1019084203,2.53,
Department of Health,Salisbury NHS Foundation Trust,31-Jul-18,LIQUID REFRESHMENTS,Facilities,NHS LOGISTICS,1019084203,2.53,
Department of Health,Salisbury NHS Foundation Trust,31-Jul-18,LIQUID REFRESHMENTS,Facilities,NHS LOGISTICS,1019084203,11.63,
Department of Health,Salisbury NHS Foundation Trust,31-Jul-18,BEVERAGES & AMBIENT FOOD,Facilities,NHS LOGISTICS,1019084203,140.64,
Department of Health,Salisbury NHS Foundation Trust,31-Jul-18,TISSUES HAND TOWELS & TOILET PAPER,Facilities,NHS LOGISTICS,1019084203,10.65,
Department of Health,Salisbury NHS Foundation Trust,31-Jul-18,CLEANING MATERIALS PRODUCTS SUNDRIES,Facilities,NHS LOGISTICS,1019084203,11,
Department of Health,Salisbury NHS Foundation Trust,31-Jul-18,COOKING & KITCHEN UTENSILS,Facilities,NHS LOGISTICS,1019084203,53.6,
Department of Health,Salisbury NHS Foundation Trust,31-Jul-18,FRUIT & VEGETABLES,Facilities,NHS LOGISTICS,1019084203,7.86,
Department of Health,Salisbury NHS Foundation Trust,31-Jul-18,FRUIT & VEGETABLES,Facilities,NHS LOGISTICS,1019084203,29.94,
Department of Health,Salisbury NHS Foundation Trust,31-Jul-18,FRUIT & VEGETABLES,Facilities,NHS LOGISTICS,1019084203,12.96,
Department of Health,Salisbury NHS Foundation Trust,31-Jul-18,FRUIT & VEGETABLES,Facilities,NHS LOGISTICS,1019084203,14.52,
Department of Health,Salisbury NHS Foundation Trust,31-Jul-18,FRUIT & VEGETABLES,Facilities,NHS LOGISTICS,1019084203,82.32,
Department of Health,Salisbury NHS Foundation Trust,31-Jul-18,FRUIT & VEGETABLES,Facilities,NHS LOGISTICS,1019084203,17.04,
Department of Health,Salisbury NHS Foundation Trust,31-Jul-18,FRUIT & VEGETABLES,Facilities,NHS LOGISTICS,1019084203,25.2,
Department of Health,Salisbury NHS Foundation Trust,31-Jul-18,COOKING & KITCHEN UTENSILS,Facilities,NHS LOGISTICS,1019084203,12.64,
Department of Health,Salisbury NHS Foundation Trust,31-Jul-18,FRUIT & VEGETABLES,Facilities,NHS LOGISTICS,1019084203,13.2,
Department of Health,Salisbury NHS Foundation Trust,31-Jul-18,BEVERAGES & AMBIENT FOOD,Facilities,NHS LOGISTICS,1019084203,16.26,
Department of Health,Salisbury NHS Foundation Trust,31-Jul-18,BEVERAGES & AMBIENT FOOD,Facilities,NHS LOGISTICS,1019084203,12.08,
Department of Health,Salisbury NHS Foundation Trust,31-Jul-18,MEDSURGCONS - OTHER,Facilities,NHS LOGISTICS,1019084203,28.92,
Department of Health,Salisbury NHS Foundation Trust,31-Jul-18,MEDSURGCONS - OTHER,Facilities,NHS LOGISTICS,1019084203,49.5,
Department of Health,Salisbury NHS Foundation Trust,31-Jul-18,MEDSURGCONS - OTHER,Facilities,NHS LOGISTICS,1019084203,27.71,
Department of Health,Salisbury NHS Foundation Trust,31-Jul-18,BEVERAGES & AMBIENT FOOD,Facilities,NHS LOGISTICS,1019084203,2.63,
Department of Health,Salisbury NHS Foundation Trust,31-Jul-18,LIQUID REFRESHMENTS,Facilities,NHS LOGISTICS,1019084203,23.2,
Department of Health,Salisbury NHS Foundation Trust,31-Jul-18,LAB EQUIP-LABORATORY APPARATUS,Clinical Support,NHS LOGISTICS,1019084203,45.88,
Department of Health,Salisbury NHS Foundation Trust,31-Jul-18,MEDSURGCONS-SUTURES,Surgery,NHS LOGISTICS,1019084203,15.32,
Department of Health,Salisbury NHS Foundation Trust,31-Jul-18,MEDSURGCONS-SUTURES,Surgery,NHS LOGISTICS,1019084203,11.11,
Department of Health,Salisbury NHS Foundation Trust,31-Jul-18,MEDSURGCONS-SUTURES,Surgery,NHS LOGISTICS,1019084203,59.33,
Department of Health,Salisbury NHS Foundation Trust,31-Jul-18,MEDSURGCONS-SUTURES,Surgery,NHS LOGISTICS,1019084203,20.55,
Department of Health,Salisbury NHS Foundation Trust,31-Jul-18,OTHER MEDICAL SUPPLIES,Surgery,NHS LOGISTICS,1019084203,2.29,
Department of Health,Salisbury NHS Foundation Trust,31-Jul-18,OTHER MEDICAL SUPPLIES,Surgery,NHS LOGISTICS,1019084203,2.29,
Department of Health,Salisbury NHS Foundation Trust,31-Jul-18,MEDSURGCONS-SUTURES,Surgery,NHS LOGISTICS,1019084203,29.67,
Department of Health,Salisbury NHS Foundation Trust,31-Jul-18,MEDSURGCONS-SUTURES,Surgery,NHS LOGISTICS,1019084203,15.32,
Department of Health,Salisbury NHS Foundation Trust,31-Jul-18,DRESSINGS - PRE STERILE,Musculo-Skeletal,NHS LOGISTICS,1019084203,10.06,
Department of Health,Salisbury NHS Foundation Trust,31-Jul-18,OTHER MEDICAL SUPPLIES,Surgery,NHS LOGISTICS,1019084203,1.37,
Department of Health,Salisbury NHS Foundation Trust,31-Jul-18,LAB EQUIP-LABORATORY APPARATUS,Clinical Support,NHS LOGISTICS,1019084203,30.64,
Department of Health,Salisbury NHS Foundation Trust,31-Jul-18,MEDSURGCONS - OTHER,Surgery,NHS LOGISTICS,1019084203,11.57,
Department of Health,Salisbury NHS Foundation Trust,31-Jul-18,BAGS SACKS - OTHER,Clinical Support,NHS LOGISTICS,1019084203,10.25,
Department of Health,Salisbury NHS Foundation Trust,31-Jul-18,DISPOSABLE THEATRE DRAPES WIPES,Clinical Support,NHS LOGISTICS,1019084203,12.34,
Department of Health,Salisbury NHS Foundation Trust,31-Jul-18,MEDSURGCONS - OTHER,Corporate - HR/Education,NHS LOGISTICS,1019084203,0.18,
Department of Health,Salisbury NHS Foundation Trust,31-Jul-18,SURGICAL INSTRUMENTS: GENERAL,Musculo-Skeletal,NHS LOGISTICS,1019084203,20,
Department of Health,Salisbury NHS Foundation Trust,31-Jul-18,DRESSINGS - PRE STERILE,Surgery,NHS LOGISTICS,1019084203,6.22,
Department of Health,Salisbury NHS Foundation Trust,31-Jul-18,DRESSINGS - PRE STERILE,Musculo-Skeletal,NHS LOGISTICS,1019084203,1.4,
Department of Health,Salisbury NHS Foundation Trust,31-Jul-18,DRESSINGS - PRE STERILE,Musculo-Skeletal,NHS LOGISTICS,1019084203,1.19,
Department of Health,Salisbury NHS Foundation Trust,31-Jul-18,DRESSINGS - PRE STERILE,Musculo-Skeletal,NHS LOGISTICS,1019084203,3.06,
Department of Health,Salisbury NHS Foundation Trust,31-Jul-18,DRESSINGS - PRE STERILE,Musculo-Skeletal,NHS LOGISTICS,1019084203,0.19,
Department of Health,Salisbury NHS Foundation Trust,31-Jul-18,DRESSINGS - PRE STERILE,Musculo-Skeletal,NHS LOGISTICS,1019084203,4.38,
Department of Health,Salisbury NHS Foundation Trust,31-Jul-18,DRESSINGS - PRE STERILE,Musculo-Skeletal,NHS LOGISTICS,1019084203,4.05,
Department of Health,Salisbury NHS Foundation Trust,31-Jul-18,DRESSINGS - PRE STERILE,Musculo-Skeletal,NHS LOGISTICS,1019084203,4.38,
Department of Health,Salisbury NHS Foundation Trust,31-Jul-18,DRESSINGS - PRE STERILE,Musculo-Skeletal,NHS LOGISTICS,1019084203,4.05,
Department of Health,Salisbury NHS Foundation Trust,31-Jul-18,DRESSINGS - PRE STERILE,Musculo-Skeletal,NHS LOGISTICS,1019084203,9.31,
Department of Health,Salisbury NHS Foundation Trust,31-Jul-18,DRESSINGS - PRE STERILE,Musculo-Skeletal,NHS LOGISTICS,1019084203,4.66,
Department of Health,Salisbury NHS Foundation Trust,31-Jul-18,DRESSINGS - PRE STERILE,Musculo-Skeletal,NHS LOGISTICS,1019084203,4.66,
Department of Health,Salisbury NHS Foundation Trust,31-Jul-18,DRESSINGS - PRE STERILE,Musculo-Skeletal,NHS LOGISTICS,1019084203,15.02,
Department of Health,Salisbury NHS Foundation Trust,31-Jul-18,DRESSINGS - PRE STERILE,Musculo-Skeletal,NHS LOGISTICS,1019084203,5.01,
Department of Health,Salisbury NHS Foundation Trust,31-Jul-18,DRESSINGS - PRE STERILE,Musculo-Skeletal,NHS LOGISTICS,1019084203,5.04,
Department of Health,Salisbury NHS Foundation Trust,31-Jul-18,DRESSINGS - PRE STERILE,Musculo-Skeletal,NHS LOGISTICS,1019084203,2.06,
Department of Health,Salisbury NHS Foundation Trust,31-Jul-18,DRESSINGS - PRE STERILE,Musculo-Skeletal,NHS LOGISTICS,1019084203,2.07,
Department of Health,Salisbury NHS Foundation Trust,31-Jul-18,DRESSINGS - PRE STERILE,Musculo-Skeletal,NHS LOGISTICS,1019084203,0.5,
Department of Health,Salisbury NHS Foundation Trust,31-Jul-18,DISPOSABLE THEATRE DRAPES WIPES,Musculo-Skeletal,NHS LOGISTICS,1019084203,0.13,
Department of Health,Salisbury NHS Foundation Trust,31-Jul-18,DRESSINGS - PRE STERILE,Musculo-Skeletal,NHS LOGISTICS,1019084203,0.54,
Department of Health,Salisbury NHS Foundation Trust,31-Jul-18,DRESSINGS - PRE STERILE,Musculo-Skeletal,NHS LOGISTICS,1019084203,0.24,
Department of Health,Salisbury NHS Foundation Trust,31-Jul-18,TOILETRIES PERSONAL HYGIENE PRODUCTS,Musculo-Skeletal,NHS LOGISTICS,1019084203,0.31,
Department of Health,Salisbury NHS Foundation Trust,31-Jul-18,TISSUES HAND TOWELS & TOILET PAPER,Musculo-Skeletal,NHS LOGISTICS,1019084203,0.99,
Department of Health,Salisbury NHS Foundation Trust,31-Jul-18,DRESSINGS - PRE STERILE,Musculo-Skeletal,NHS LOGISTICS,1019084203,0.36,
Department of Health,Salisbury NHS Foundation Trust,31-Jul-18,DRESSINGS - PRE STERILE,Musculo-Skeletal,NHS LOGISTICS,1019084203,13.41,
Department of Health,Salisbury NHS Foundation Trust,31-Jul-18,DRESSINGS - PRE STERILE,Musculo-Skeletal,NHS LOGISTICS,1019084203,71.87,
Department of Health,Salisbury NHS Foundation Trust,31-Jul-18,SERVICES FROM NHS BODIES,Musculo-Skeletal,NHS LOGISTICS,1019084203,0.89,
Department of Health,Salisbury NHS Foundation Trust,31-Jul-18,PATIENT APPLIANCES,Surgery,NHS LOGISTICS,1019084203,36.32,
Department of Health,Salisbury NHS Foundation Trust,31-Jul-18,MEDSURGCONS - OTHER,Clinical Support,NHS LOGISTICS,1019084203,1.91,
Department of Health,Salisbury NHS Foundation Trust,31-Jul-18,MEDSURGCONS - OTHER,Clinical Support,NHS LOGISTICS,1019084203,8.91,
Department of Health,Salisbury NHS Foundation Trust,31-Jul-18,MEDSURGCONS - OTHER,Musculo-Skeletal,NHS LOGISTICS,1019084203,31.05,
Department of Health,Salisbury NHS Foundation Trust,31-Jul-18,MEDSURGCONS - OTHER,Medicine,NHS LOGISTICS,1019084203,14.69,
Department of Health,Salisbury NHS Foundation Trust,31-Jul-18,TOILETRIES PERSONAL HYGIENE PRODUCTS,Medicine,NHS LOGISTICS,1019084203,0.58,
Department of Health,Salisbury NHS Foundation Trust,31-Jul-18,TOILETRIES PERSONAL HYGIENE PRODUCTS,Medicine,NHS LOGISTICS,1019084203,0.43,
Department of Health,Salisbury NHS Foundation Trust,31-Jul-18,OTHER MEDICAL SUPPLIES,Surgery,NHS LOGISTICS,1019084203,0.89,
Department of Health,Salisbury NHS Foundation Trust,31-Jul-18,ANAESTHETIC EQUIPMENT ACCESSORIES,Clinical Support,NHS LOGISTICS,1019084203,13.54,
Department of Health,Salisbury NHS Foundation Trust,31-Jul-18,SURGICAL INSTRUMENTS: GENERAL,Clinical Support,NHS LOGISTICS,1019084203,20,
Department of Health,Salisbury NHS Foundation Trust,31-Jul-18,MEDSURGCONS - OTHER,Clinical Support,NHS LOGISTICS,1019084203,6.39,
Department of Health,Salisbury NHS Foundation Trust,31-Jul-18,OTHER MEDICAL SUPPLIES,Surgery,NHS LOGISTICS,1019084203,8.32,
Department of Health,Salisbury NHS Foundation Trust,31-Jul-18,MEDSURGCONS-SUTURES,Surgery,NHS LOGISTICS,1019084203,9.61,
Department of Health,Salisbury NHS Foundation Trust,31-Jul-18,SURGICAL INSTRUMENTS: GENERAL,Surgery,NHS LOGISTICS,1019084203,17.18,
Department of Health,Salisbury NHS Foundation Trust,31-Jul-18,MEDSURGCONS - OTHER,Surgery,NHS LOGISTICS,1019084203,2.04,
Department of Health,Salisbury NHS Foundation Trust,31-Jul-18,OTHER MEDICAL SUPPLIES,Surgery,NHS LOGISTICS,1019084203,2.29,
Department of Health,Salisbury NHS Foundation Trust,31-Jul-18,MEDSURGCONS - OTHER,Surgery,NHS LOGISTICS,1019084203,18.26,
Department of Health,Salisbury NHS Foundation Trust,31-Jul-18,M & S EQUIPELECTEQUIPINST - OTHER,Surgery,NHS LOGISTICS,1019084203,55.1,
Department of Health,Salisbury NHS Foundation Trust,31-Jul-18,DRESSINGS - PRE STERILE,Surgery,NHS LOGISTICS,1019084203,16.89,
Department of Health,Salisbury NHS Foundation Trust,31-Jul-18,DRESSINGS - PRE STERILE,Surgery,NHS LOGISTICS,1019084203,13.9,
Department of Health,Salisbury NHS Foundation Trust,31-Jul-18,SURGICAL INSTRUMENTS: GENERAL,Surgery,NHS LOGISTICS,1019084203,22.18,
Department of Health,Salisbury NHS Foundation Trust,31-Jul-18,M & S EQUIPELECTEQUIPINST - OTHER,Surgery,NHS LOGISTICS,1019084203,45.83,
Department of Health,Salisbury NHS Foundation Trust,31-Jul-18,M & S EQUIPELECTEQUIPINST - OTHER,Surgery,NHS LOGISTICS,1019084203,22.92,
Department of Health,Salisbury NHS Foundation Trust,31-Jul-18,MEDSURGCONS - OTHER,Corporate - Finance & Procurement,NHS LOGISTICS,1019084203,319.15,
Department of Health,Salisbury NHS Foundation Trust,31-Jul-18,COOKING & KITCHEN UTENSILS,Corporate - Finance & Procurement,NHS LOGISTICS,1019084203,37,
Department of Health,Salisbury NHS Foundation Trust,31-Jul-18,ELECTRICAL EQUIPMENT x,Facilities,NHS LOGISTICS,1019084203,9.28,
Department of Health,Salisbury NHS Foundation Trust,31-Jul-18,SURGICAL INSTRUMENTS: GENERAL,Surgery,NHS LOGISTICS,1019084203,29.02,
Department of Health,Salisbury NHS Foundation Trust,31-Jul-18,TISSUES HAND TOWELS & TOILET PAPER,Medicine,NHS LOGISTICS,1019084203,0.5,
Department of Health,Salisbury NHS Foundation Trust,31-Jul-18,DRESSINGS - PRE STERILE,Medicine,NHS LOGISTICS,1019084203,0.19,
Department of Health,Salisbury NHS Foundation Trust,31-Jul-18,OTHER MEDICAL SUPPLIES,Medicine,NHS LOGISTICS,1019084203,1.64,
Department of Health,Salisbury NHS Foundation Trust,31-Jul-18,OTHER MEDICAL SUPPLIES,Medicine,NHS LOGISTICS,1019084203,0.75,
Department of Health,Salisbury NHS Foundation Trust,31-Jul-18,PATIENT APPLIANCES,Medicine,NHS LOGISTICS,1019084203,1.34,
Department of Health,Salisbury NHS Foundation Trust,31-Jul-18,PATIENT APPLIANCES,Medicine,NHS LOGISTICS,1019084203,0.67,
Department of Health,Salisbury NHS Foundation Trust,31-Jul-18,PATIENT APPLIANCES,Medicine,NHS LOGISTICS,1019084203,1.76,
Department of Health,Salisbury NHS Foundation Trust,31-Jul-18,MEDSURGCONS - OTHER,Medicine,NHS LOGISTICS,1019084203,1.18,
Department of Health,Salisbury NHS Foundation Trust,31-Jul-18,MEDSURGCONS - OTHER,Medicine,NHS LOGISTICS,1019084203,0.78,
Department of Health,Salisbury NHS Foundation Trust,31-Jul-18,MEDSURGCONS - OTHER,Medicine,NHS LOGISTICS,1019084203,1.36,
Department of Health,Salisbury NHS Foundation Trust,31-Jul-18,MEDSURGCONS - OTHER,Medicine,NHS LOGISTICS,1019084203,2.86,
Department of Health,Salisbury NHS Foundation Trust,31-Jul-18,MEDSURGCONS - OTHER,Medicine,NHS LOGISTICS,1019084203,0.18,
Department of Health,Salisbury NHS Foundation Trust,31-Jul-18,NON DISPOSABLE BED LINEN,Medicine,NHS LOGISTICS,1019084203,6,
Department of Health,Salisbury NHS Foundation Trust,31-Jul-18,DISPOSABLE THEATRE DRAPES WIPES,Medicine,NHS LOGISTICS,1019084203,0.71,
Department of Health,Salisbury NHS Foundation Trust,31-Jul-18,DRUGS,Corporate - Medical,NHS LOGISTICS,1019084203,2.24,
Department of Health,Salisbury NHS Foundation Trust,31-Jul-18,MEDSURGCONS - OTHER,Corporate - Medical,NHS LOGISTICS,1019084203,2.33,
Department of Health,Salisbury NHS Foundation Trust,31-Jul-18,DISPOSABLE THEATRE DRAPES WIPES,Corporate - Medical,NHS LOGISTICS,1019084203,0.71,
Department of Health,Salisbury NHS Foundation Trust,31-Jul-18,BAGS SACKS - OTHER,Facilities,NHS LOGISTICS,1019084203,25.8,
Department of Health,Salisbury NHS Foundation Trust,31-Jul-18,BAGS SACKS - OTHER,Facilities,NHS LOGISTICS,1019084203,2.03,
Department of Health,Salisbury NHS Foundation Trust,31-Jul-18,BAGS SACKS - OTHER,Facilities,NHS LOGISTICS,1019084203,0.8,
Department of Health,Salisbury NHS Foundation Trust,31-Jul-18,LIQUID REFRESHMENTS,Facilities,NHS LOGISTICS,1019084203,1.56,
Department of Health,Salisbury NHS Foundation Trust,31-Jul-18,CLEANING MATERIALS PRODUCTS SUNDRIES,Facilities,NHS LOGISTICS,1019084203,9.28,
Department of Health,Salisbury NHS Foundation Trust,31-Jul-18,TOILETRIES PERSONAL HYGIENE PRODUCTS,Facilities,NHS LOGISTICS,1019084203,24.28,
Department of Health,Salisbury NHS Foundation Trust,31-Jul-18,BAGS SACKS - OTHER,Facilities,NHS LOGISTICS,1019084203,4.21,
Department of Health,Salisbury NHS Foundation Trust,31-Jul-18,CLEANING MATERIALS PRODUCTS SUNDRIES,Facilities,NHS LOGISTICS,1019084203,15.96,
Department of Health,Salisbury NHS Foundation Trust,31-Jul-18,CLEANING MATERIALS PRODUCTS SUNDRIES,Facilities,NHS LOGISTICS,1019084203,4.51,
Department of Health,Salisbury NHS Foundation Trust,31-Jul-18,DISPOSABLE THEATRE DRAPES WIPES,Facilities,NHS LOGISTICS,1019084203,13.68,
Department of Health,Salisbury NHS Foundation Trust,31-Jul-18,DRESSINGS - PRE STERILE,Medicine,NHS LOGISTICS,1019084203,0.78,
Department of Health,Salisbury NHS Foundation Trust,31-Jul-18,DRESSINGS - PRE STERILE,Medicine,NHS LOGISTICS,1019084203,2.06,
Department of Health,Salisbury NHS Foundation Trust,31-Jul-18,SURGICAL INSTRUMENTS: DISPOSABLE,Medicine,NHS LOGISTICS,1019084203,2.55,
Department of Health,Salisbury NHS Foundation Trust,31-Jul-18,SURGICAL INSTRUMENTS: DISPOSABLE,Medicine,NHS LOGISTICS,1019084203,4.8,
Department of Health,Salisbury NHS Foundation Trust,31-Jul-18,ELECTRICAL EQUIPMENT x,Clinical Support,NHS LOGISTICS,1019084203,1.16,
Department of Health,Salisbury NHS Foundation Trust,31-Jul-18,LAB EQUIP-LABORATORY APPARATUS,Clinical Support,NHS LOGISTICS,1019084203,10.27,
Department of Health,Salisbury NHS Foundation Trust,31-Jul-18,OTHER MEDICAL SUPPLIES,Surgery,NHS LOGISTICS,1019084203,3.64,
Department of Health,Salisbury NHS Foundation Trust,31-Jul-18,OTHER MEDICAL SUPPLIES,Surgery,NHS LOGISTICS,1019084203,3.77,
Department of Health,Salisbury NHS Foundation Trust,31-Jul-18,OTHER MEDICAL SUPPLIES,Surgery,NHS LOGISTICS,1019084203,2.02,
Department of Health,Salisbury NHS Foundation Trust,31-Jul-18,OTHER MEDICAL SUPPLIES,Surgery,NHS LOGISTICS,1019084203,2.28,
Department of Health,Salisbury NHS Foundation Trust,31-Jul-18,ELECTRICAL EQUIPMENT x,Musculo-Skeletal,NHS LOGISTICS,1019084203,3.68,
Department of Health,Salisbury NHS Foundation Trust,31-Jul-18,TOILETRIES PERSONAL HYGIENE PRODUCTS,Medicine,NHS LOGISTICS,1019084203,0.62,
Department of Health,Salisbury NHS Foundation Trust,31-Jul-18,TISSUES HAND TOWELS & TOILET PAPER,Medicine,NHS LOGISTICS,1019084203,0.23,
Department of Health,Salisbury NHS Foundation Trust,31-Jul-18,DRESSINGS - PRE STERILE,Medicine,NHS LOGISTICS,1019084203,0.19,
Department of Health,Salisbury NHS Foundation Trust,31-Jul-18,PATIENT APPLIANCES,Medicine,NHS LOGISTICS,1019084203,0.67,
Department of Health,Salisbury NHS Foundation Trust,31-Jul-18,PATIENT APPLIANCES,Medicine,NHS LOGISTICS,1019084203,0.67,
Department of Health,Salisbury NHS Foundation Trust,31-Jul-18,PATIENT APPLIANCES,Medicine,NHS LOGISTICS,1019084203,0.67,
Department of Health,Salisbury NHS Foundation Trust,31-Jul-18,NON DISPOSABLE BED LINEN,Medicine,NHS LOGISTICS,1019084203,0.75,
Department of Health,Salisbury NHS Foundation Trust,31-Jul-18,OTHER MEDICAL SUPPLIES,Medicine,NHS LOGISTICS,1019084203,0.27,
Department of Health,Salisbury NHS Foundation Trust,31-Jul-18,NON DISPOSABLE BED LINEN,Medicine,NHS LOGISTICS,1019084203,3,
Department of Health,Salisbury NHS Foundation Trust,31-Jul-18,TISSUES HAND TOWELS & TOILET PAPER,Medicine,NHS LOGISTICS,1019084203,0.25,
Department of Health,Salisbury NHS Foundation Trust,31-Jul-18,DISPOSABLE THEATRE DRAPES WIPES,Medicine,NHS LOGISTICS,1019084203,1.2,
Department of Health,Salisbury NHS Foundation Trust,31-Jul-18,DRESSINGS - PRE STERILE,Medicine,NHS LOGISTICS,1019084203,30,
Department of Health,Salisbury NHS Foundation Trust,31-Jul-18,MEDSURGCONS - OTHER,Medicine,NHS LOGISTICS,1019084203,1.43,
Department of Health,Salisbury NHS Foundation Trust,31-Jul-18,DRESSINGS - PRE STERILE,Musculo-Skeletal,NHS LOGISTICS,1019084203,0.4,
Department of Health,Salisbury NHS Foundation Trust,31-Jul-18,TISSUES HAND TOWELS & TOILET PAPER,Musculo-Skeletal,NHS LOGISTICS,1019084203,0.25,
Department of Health,Salisbury NHS Foundation Trust,31-Jul-18,HEALTHCARE - WEAR,Musculo-Skeletal,NHS LOGISTICS,1019084203,1.5,
Department of Health,Salisbury NHS Foundation Trust,31-Jul-18,DRESSINGS - PRE STERILE,Musculo-Skeletal,NHS LOGISTICS,1019084203,0.37,
Department of Health,Salisbury NHS Foundation Trust,31-Jul-18,TISSUES HAND TOWELS & TOILET PAPER,Medicine,NHS LOGISTICS,1019084203,0.74,
Department of Health,Salisbury NHS Foundation Trust,31-Jul-18,DRESSINGS - PRE STERILE,Medicine,NHS LOGISTICS,1019084203,0.37,
Department of Health,Salisbury NHS Foundation Trust,31-Jul-18,COOKING & KITCHEN UTENSILS,Medicine,NHS LOGISTICS,1019084203,1.77,
Department of Health,Salisbury NHS Foundation Trust,31-Jul-18,OTHER MEDICAL SUPPLIES,Medicine,NHS LOGISTICS,1019084203,1.64,
Department of Health,Salisbury NHS Foundation Trust,31-Jul-18,DRESSINGS - PRE STERILE,Medicine,NHS LOGISTICS,1019084203,0.52,
Department of Health,Salisbury NHS Foundation Trust,31-Jul-18,DRESSINGS - PRE STERILE,Medicine,NHS LOGISTICS,1019084203,0.52,
Department of Health,Salisbury NHS Foundation Trust,31-Jul-18,DRESSINGS - PRE STERILE,Medicine,NHS LOGISTICS,1019084203,0.52,
Department of Health,Salisbury NHS Foundation Trust,31-Jul-18,DRESSINGS - PRE STERILE,Medicine,NHS LOGISTICS,1019084203,0.81,
Department of Health,Salisbury NHS Foundation Trust,31-Jul-18,MEDSURGCONS - OTHER,Medicine,NHS LOGISTICS,1019084203,0.78,
Department of Health,Salisbury NHS Foundation Trust,31-Jul-18,MEDSURGCONS - OTHER,Medicine,NHS LOGISTICS,1019084203,0.18,
Department of Health,Salisbury NHS Foundation Trust,31-Jul-18,OTHER MEDICAL SUPPLIES,Medicine,NHS LOGISTICS,1019084203,1.88,
Department of Health,Salisbury NHS Foundation Trust,31-Jul-18,CLEANING MATERIALS PRODUCTS SUNDRIES,Facilities,NHS LOGISTICS,1019084203,1.44,
Department of Health,Salisbury NHS Foundation Trust,31-Jul-18,TOILETRIES PERSONAL HYGIENE PRODUCTS,Surgery,NHS LOGISTICS,1019084203,1.85,
Department of Health,Salisbury NHS Foundation Trust,31-Jul-18,DISPOSABLE THEATRE DRAPES WIPES,Surgery,NHS LOGISTICS,1019084203,7.49,
Department of Health,Salisbury NHS Foundation Trust,31-Jul-18,NON DISPOSABLE THEATRE DRAPES WIPES,Surgery,NHS LOGISTICS,1019084203,21.78,
Department of Health,Salisbury NHS Foundation Trust,31-Jul-18,DRESSINGS - PRE STERILE,Surgery,NHS LOGISTICS,1019084203,111.23,
Department of Health,Salisbury NHS Foundation Trust,31-Jul-18,OTHER MEDICAL SUPPLIES,Surgery,NHS LOGISTICS,1019084203,1.64,
Department of Health,Salisbury NHS Foundation Trust,31-Jul-18,OTHER MEDICAL SUPPLIES,Surgery,NHS LOGISTICS,1019084203,44.74,
Department of Health,Salisbury NHS Foundation Trust,31-Jul-18,MEDSURGCONS - OTHER,Surgery,NHS LOGISTICS,1019084203,12.12,
Department of Health,Salisbury NHS Foundation Trust,31-Jul-18,MEDSURGCONS-SUTURES,Surgery,NHS LOGISTICS,1019084203,11.43,
Department of Health,Salisbury NHS Foundation Trust,31-Jul-18,NON DISPOSABLE BED LINEN,Surgery,NHS LOGISTICS,1019084203,9,
Department of Health,Salisbury NHS Foundation Trust,31-Jul-18,M & S EQUIPELECTEQUIPINST - OTHER,Clinical Support,NHS LOGISTICS,1019084203,70.1,
Department of Health,Salisbury NHS Foundation Trust,31-Jul-18,M & S EQUIPELECTEQUIPINST - OTHER,Clinical Support,NHS LOGISTICS,1019084203,115.47,
Department of Health,Salisbury NHS Foundation Trust,31-Jul-18,M & S EQUIPELECTEQUIPINST - OTHER,Clinical Support,NHS LOGISTICS,1019084203,30.93,
Department of Health,Salisbury NHS Foundation Trust,31-Jul-18,DRESSINGS - PRE STERILE,Medicine,NHS LOGISTICS,1019084203,0.88,
Department of Health,Salisbury NHS Foundation Trust,31-Jul-18,DRESSINGS - PRE STERILE,Medicine,NHS LOGISTICS,1019084203,1.2,
Department of Health,Salisbury NHS Foundation Trust,31-Jul-18,PATIENT APPLIANCES,Medicine,NHS LOGISTICS,1019084203,31.57,
Department of Health,Salisbury NHS Foundation Trust,31-Jul-18,DRESSINGS - PRE STERILE,Medicine,NHS LOGISTICS,1019084203,0.36,
Department of Health,Salisbury NHS Foundation Trust,31-Jul-18,DRESSINGS - PRE STERILE,Medicine,NHS LOGISTICS,1019084203,2.8,
Department of Health,Salisbury NHS Foundation Trust,31-Jul-18,DRESSINGS - PRE STERILE,Medicine,NHS LOGISTICS,1019084203,1.49,
Department of Health,Salisbury NHS Foundation Trust,31-Jul-18,OTHER MEDICAL SUPPLIES,Medicine,NHS LOGISTICS,1019084203,2.82,
Department of Health,Salisbury NHS Foundation Trust,31-Jul-18,PATIENT APPLIANCES,Medicine,NHS LOGISTICS,1019084203,0.81,
Department of Health,Salisbury NHS Foundation Trust,31-Jul-18,PATIENT APPLIANCES,Medicine,NHS LOGISTICS,1019084203,1.61,
Department of Health,Salisbury NHS Foundation Trust,31-Jul-18,PATIENT APPLIANCES,Medicine,NHS LOGISTICS,1019084203,1.61,
Department of Health,Salisbury NHS Foundation Trust,31-Jul-18,ANAESTHETIC EQUIPMENT ACCESSORIES,Medicine,NHS LOGISTICS,1019084203,1.88,
Department of Health,Salisbury NHS Foundation Trust,31-Jul-18,DRUGS,Medicine,NHS LOGISTICS,1019084203,1.87,
Department of Health,Salisbury NHS Foundation Trust,31-Jul-18,MEDSURGCONS - OTHER,Medicine,NHS LOGISTICS,1019084203,0.71,
Department of Health,Salisbury NHS Foundation Trust,31-Jul-18,NON DISPOSABLE BED LINEN,Medicine,NHS LOGISTICS,1019084203,0.75,
Department of Health,Salisbury NHS Foundation Trust,31-Jul-18,DISPOSABLE THEATRE DRAPES WIPES,Medicine,NHS LOGISTICS,1019084203,1.42,
Department of Health,Salisbury NHS Foundation Trust,31-Jul-18,TISSUES HAND TOWELS & TOILET PAPER,Clinical Support,NHS LOGISTICS,1019084203,0.5,
Department of Health,Salisbury NHS Foundation Trust,31-Jul-18,MED SURG EQUIP REP MAINT CLEANING,Clinical Support,NHS LOGISTICS,1019084203,43.71,
Department of Health,Salisbury NHS Foundation Trust,31-Jul-18,M & S EQUIPELECTEQUIPINST - OTHER,Clinical Support,NHS LOGISTICS,1019084203,72.17,
Department of Health,Salisbury NHS Foundation Trust,31-Jul-18,M & S EQUIPELECTEQUIPINST - OTHER,Clinical Support,NHS LOGISTICS,1019084203,86.8,
Department of Health,Salisbury NHS Foundation Trust,31-Jul-18,DRESSINGS - PRE STERILE,Clinical Support,NHS LOGISTICS,1019084203,1.82,
Department of Health,Salisbury NHS Foundation Trust,31-Jul-18,OTHER MEDICAL SUPPLIES,Clinical Support,NHS LOGISTICS,1019084203,14.99,
Department of Health,Salisbury NHS Foundation Trust,31-Jul-18,NON DISPOSABLE BED LINEN,Clinical Support,NHS LOGISTICS,1019084203,1.5,
Department of Health,Salisbury NHS Foundation Trust,31-Jul-18,DISPOSABLE THEATRE DRAPES WIPES,Clinical Support,NHS LOGISTICS,1019084203,0.71,
Department of Health,Salisbury NHS Foundation Trust,31-Jul-18,DENTAL SURGERY SUNDRIES,Musculo-Skeletal,NHS LOGISTICS,1019084203,0.58,
Department of Health,Salisbury NHS Foundation Trust,31-Jul-18,DENTAL SURGERY SUNDRIES,Musculo-Skeletal,NHS LOGISTICS,1019084203,0.35,
Department of Health,Salisbury NHS Foundation Trust,31-Jul-18,DENTAL SURGERY SUNDRIES,Musculo-Skeletal,NHS LOGISTICS,1019084203,0.69,
Department of Health,Salisbury NHS Foundation Trust,31-Jul-18,DISPOSABLE THEATRE DRAPES WIPES,Surgery,NHS LOGISTICS,1019084203,2.13,
Department of Health,Salisbury NHS Foundation Trust,31-Jul-18,TISSUES HAND TOWELS & TOILET PAPER,Clinical Support,NHS LOGISTICS,1019084203,4.26,
Department of Health,Salisbury NHS Foundation Trust,31-Jul-18,OTHER MEDICAL SUPPLIES,Clinical Support,NHS LOGISTICS,1019084203,1.37,
Department of Health,Salisbury NHS Foundation Trust,31-Jul-18,DRESSINGS - PRE STERILE,Clinical Support,NHS LOGISTICS,1019084203,0.55,
Department of Health,Salisbury NHS Foundation Trust,31-Jul-18,NON DISPOSABLE BED LINEN,Clinical Support,NHS LOGISTICS,1019084203,2.37,
Department of Health,Salisbury NHS Foundation Trust,31-Jul-18,NON DISPOSABLE BED LINEN,Clinical Support,NHS LOGISTICS,1019084203,3,
Department of Health,Salisbury NHS Foundation Trust,31-Jul-18,DISPOSABLE THEATRE DRAPES WIPES,Clinical Support,NHS LOGISTICS,1019084203,0.71,
Department of Health,Salisbury NHS Foundation Trust,31-Jul-18,DRESSINGS - PRE STERILE,Musculo-Skeletal,NHS LOGISTICS,1019084203,1.2,
Department of Health,Salisbury NHS Foundation Trust,31-Jul-18,DRESSINGS - PRE STERILE,Musculo-Skeletal,NHS LOGISTICS,1019084203,0.24,
Department of Health,Salisbury NHS Foundation Trust,31-Jul-18,TOILETRIES PERSONAL HYGIENE PRODUCTS,Musculo-Skeletal,NHS LOGISTICS,1019084203,0.31,
Department of Health,Salisbury NHS Foundation Trust,31-Jul-18,TISSUES HAND TOWELS & TOILET PAPER,Musculo-Skeletal,NHS LOGISTICS,1019084203,0.5,
Department of Health,Salisbury NHS Foundation Trust,31-Jul-18,DRESSINGS - PRE STERILE,Musculo-Skeletal,NHS LOGISTICS,1019084203,0.36,
Department of Health,Salisbury NHS Foundation Trust,31-Jul-18,DRESSINGS - PRE STERILE,Musculo-Skeletal,NHS LOGISTICS,1019084203,0.5,
Department of Health,Salisbury NHS Foundation Trust,31-Jul-18,DRESSINGS - PRE STERILE,Musculo-Skeletal,NHS LOGISTICS,1019084203,47.91,
Department of Health,Salisbury NHS Foundation Trust,31-Jul-18,MEDSURGCONS - OTHER,Musculo-Skeletal,NHS LOGISTICS,1019084203,11.96,
Department of Health,Salisbury NHS Foundation Trust,31-Jul-18,MEDSURGCONS - OTHER,Musculo-Skeletal,NHS LOGISTICS,1019084203,2.86,
Department of Health,Salisbury NHS Foundation Trust,31-Jul-18,MEDSURGCONS - OTHER,Musculo-Skeletal,NHS LOGISTICS,1019084203,0.18,
Department of Health,Salisbury NHS Foundation Trust,31-Jul-18,NON DISPOSABLE BED LINEN,Musculo-Skeletal,NHS LOGISTICS,1019084203,1.5,
Department of Health,Salisbury NHS Foundation Trust,31-Jul-18,SOFT FURNISHINGS,Surgery,NHS LOGISTICS,1019084203,40.65,
Department of Health,Salisbury NHS Foundation Trust,31-Jul-18,LAB EQUIP-LABORATORY APPARATUS,Clinical Support,NHS LOGISTICS,1019084203,4,
Department of Health,Salisbury NHS Foundation Trust,31-Jul-18,DRESSINGS - PRE STERILE,Musculo-Skeletal,NHS LOGISTICS,1019084203,0.36,
Department of Health,Salisbury NHS Foundation Trust,31-Jul-18,DRESSINGS - PRE STERILE,Musculo-Skeletal,NHS LOGISTICS,1019084203,0.79,
Department of Health,Salisbury NHS Foundation Trust,31-Jul-18,OTHER MEDICAL SUPPLIES,Musculo-Skeletal,NHS LOGISTICS,1019084203,1.51,
Department of Health,Salisbury NHS Foundation Trust,31-Jul-18,NON DISPOSABLE BED LINEN,Musculo-Skeletal,NHS LOGISTICS,1019084203,3,
Department of Health,Salisbury NHS Foundation Trust,31-Jul-18,M & S EQUIPELECTEQUIPINST - OTHER,Musculo-Skeletal,NHS LOGISTICS,1019084203,1.93,
Department of Health,Salisbury NHS Foundation Trust,31-Jul-18,DRESSINGS - PRE STERILE,Clinical Support,NHS LOGISTICS,1019084203,8.88,
Department of Health,Salisbury NHS Foundation Trust,31-Jul-18,DRESSINGS - PRE STERILE,Clinical Support,NHS LOGISTICS,1019084203,24.98,
Department of Health,Salisbury NHS Foundation Trust,31-Jul-18,DRESSINGS - PRE STERILE,Clinical Support,NHS LOGISTICS,1019084203,7.3,
Department of Health,Salisbury NHS Foundation Trust,31-Jul-18,DRESSINGS - PRE STERILE,Clinical Support,NHS LOGISTICS,1019084203,1.23,
Department of Health,Salisbury NHS Foundation Trust,31-Jul-18,TOILETRIES PERSONAL HYGIENE PRODUCTS,Clinical Support,NHS LOGISTICS,1019084203,1.45,
Department of Health,Salisbury NHS Foundation Trust,31-Jul-18,DISPOSABLE THEATRE DRAPES WIPES,Clinical Support,NHS LOGISTICS,1019084203,0.71,
Department of Health,Salisbury NHS Foundation Trust,31-Jul-18,M & S EQUIPELECTEQUIPINST - OTHER,Surgery,NHS LOGISTICS,1019084203,10.2,
Department of Health,Salisbury NHS Foundation Trust,31-Jul-18,DRESSINGS - PRE STERILE,Clinical Support,NHS LOGISTICS,1019084203,10.27,
Department of Health,Salisbury NHS Foundation Trust,31-Jul-18,DRESSINGS - PRE STERILE,Clinical Support,NHS LOGISTICS,1019084203,4.69,
Department of Health,Salisbury NHS Foundation Trust,31-Jul-18,DRUGS,Clinical Support,NHS LOGISTICS,1019084203,16.56,
Department of Health,Salisbury NHS Foundation Trust,31-Jul-18,DRUGS,Clinical Support,NHS LOGISTICS,1019084203,3.74,
Department of Health,Salisbury NHS Foundation Trust,31-Jul-18,DISPOSABLE THEATRE DRAPES WIPES,Clinical Support,NHS LOGISTICS,1019084203,1.42,
Department of Health,Salisbury NHS Foundation Trust,31-Jul-18,TOILETRIES PERSONAL HYGIENE PRODUCTS,Medicine,NHS LOGISTICS,1019084203,1.85,
Department of Health,Salisbury NHS Foundation Trust,31-Jul-18,DRESSINGS - PRE STERILE,Surgery,NHS LOGISTICS,1019084203,5.52,
Department of Health,Salisbury NHS Foundation Trust,31-Jul-18,TISSUES HAND TOWELS & TOILET PAPER,Clinical Support,NHS LOGISTICS,1019084203,1.49,
Department of Health,Salisbury NHS Foundation Trust,31-Jul-18,MEDSURGCONS - OTHER,Clinical Support,NHS LOGISTICS,1019084203,41.66,
Department of Health,Salisbury NHS Foundation Trust,31-Jul-18,LAB EQUIP-LABORATORY APPARATUS,Clinical Support,NHS LOGISTICS,1019084203,2.58,
Department of Health,Salisbury NHS Foundation Trust,31-Jul-18,LAB EQUIP-ANALYSERS,Clinical Support,NHS LOGISTICS,1019084203,2.04,
Department of Health,Salisbury NHS Foundation Trust,31-Jul-18,DRESSINGS  -  PROCEDURE PACKS,Clinical Support,NHS LOGISTICS,1019084203,8.51,
Department of Health,Salisbury NHS Foundation Trust,31-Jul-18,M & S EQUIPELECTEQUIPINST - OTHER,Clinical Support,NHS LOGISTICS,1019084203,40.82,
Department of Health,Salisbury NHS Foundation Trust,31-Jul-18,DRESSINGS - PRE STERILE,Surgery,NHS LOGISTICS,1019084203,5.99,
Department of Health,Salisbury NHS Foundation Trust,31-Jul-18,MEDSURGCONS-SUTURES,Surgery,NHS LOGISTICS,1019084203,12.09,
Department of Health,Salisbury NHS Foundation Trust,31-Jul-18,MEDSURGCONS-SUTURES,Surgery,NHS LOGISTICS,1019084203,10.53,
Department of Health,Salisbury NHS Foundation Trust,31-Jul-18,TISSUES HAND TOWELS & TOILET PAPER,Medicine,NHS LOGISTICS,1019084203,0.25,
Department of Health,Salisbury NHS Foundation Trust,31-Jul-18,DRESSINGS - PRE STERILE,Medicine,NHS LOGISTICS,1019084203,2.8,
Department of Health,Salisbury NHS Foundation Trust,31-Jul-18,DRESSINGS - PRE STERILE,Medicine,NHS LOGISTICS,1019084203,0.5,
Department of Health,Salisbury NHS Foundation Trust,31-Jul-18,DRESSINGS - PRE STERILE,Medicine,NHS LOGISTICS,1019084203,0.19,
Department of Health,Salisbury NHS Foundation Trust,31-Jul-18,OTHER MEDICAL SUPPLIES,Medicine,NHS LOGISTICS,1019084203,1.64,
Department of Health,Salisbury NHS Foundation Trust,31-Jul-18,OTHER MEDICAL SUPPLIES,Medicine,NHS LOGISTICS,1019084203,1.13,
Department of Health,Salisbury NHS Foundation Trust,31-Jul-18,DISPOSABLE TABLE LINEN,Medicine,NHS LOGISTICS,1019084203,0.28,
Department of Health,Salisbury NHS Foundation Trust,31-Jul-18,PATIENT APPLIANCES,Medicine,NHS LOGISTICS,1019084203,0.67,
Department of Health,Salisbury NHS Foundation Trust,31-Jul-18,PATIENT APPLIANCES,Medicine,NHS LOGISTICS,1019084203,0.88,
Department of Health,Salisbury NHS Foundation Trust,31-Jul-18,MEDSURGCONS - OTHER,Medicine,NHS LOGISTICS,1019084203,1.18,
Department of Health,Salisbury NHS Foundation Trust,31-Jul-18,MEDSURGCONS - OTHER,Medicine,NHS LOGISTICS,1019084203,1.36,
Department of Health,Salisbury NHS Foundation Trust,31-Jul-18,TISSUES HAND TOWELS & TOILET PAPER,Medicine,NHS LOGISTICS,1019084203,0.27,
Department of Health,Salisbury NHS Foundation Trust,31-Jul-18,MEDSURGCONS - OTHER,Medicine,NHS LOGISTICS,1019084203,0.18,
Department of Health,Salisbury NHS Foundation Trust,31-Jul-18,ADULTS HEARING AIDS,Surgery,NHS LOGISTICS,1019084203,723.88,
Department of Health,Salisbury NHS Foundation Trust,31-Jul-18,DRESSINGS - PRE STERILE,Surgery,NHS LOGISTICS,1019084203,5.52,
Department of Health,Salisbury NHS Foundation Trust,31-Jul-18,DRESSINGS - PRE STERILE,Surgery,NHS LOGISTICS,1019084203,27.81,
Department of Health,Salisbury NHS Foundation Trust,31-Jul-18,OTHER MEDICAL SUPPLIES,Surgery,NHS LOGISTICS,1019084203,4.47,
Department of Health,Salisbury NHS Foundation Trust,31-Jul-18,M & S EQUIPELECTEQUIPINST - OTHER,Clinical Support,NHS LOGISTICS,1019084203,2.43,
Department of Health,Salisbury NHS Foundation Trust,31-Jul-18,M & S EQUIPELECTEQUIPINST - OTHER,Clinical Support,NHS LOGISTICS,1019084203,2.95,
Department of Health,Salisbury NHS Foundation Trust,31-Jul-18,M & S EQUIPELECTEQUIPINST - OTHER,Medicine,NHS LOGISTICS,1019084203,22.78,
Department of Health,Salisbury NHS Foundation Trust,31-Jul-18,MEDSURGCONS - OTHER,Surgery,NHS LOGISTICS,1019084203,40.82,
Department of Health,Salisbury NHS Foundation Trust,31-Jul-18,DRESSINGS - PRE STERILE,Surgery,NHS LOGISTICS,1019084203,0.5,
Department of Health,Salisbury NHS Foundation Trust,31-Jul-18,MEDSURGCONS - OTHER,Surgery,NHS LOGISTICS,1019084203,4.28,
Department of Health,Salisbury NHS Foundation Trust,31-Jul-18,OTHER MEDICAL SUPPLIES,Surgery,NHS LOGISTICS,1019084203,11.76,
Department of Health,Salisbury NHS Foundation Trust,31-Jul-18,DRESSINGS - PRE STERILE,Surgery,NHS LOGISTICS,1019084203,4.96,
Department of Health,Salisbury NHS Foundation Trust,31-Jul-18,TOILETRIES PERSONAL HYGIENE PRODUCTS,Surgery,NHS LOGISTICS,1019084203,0.83,
Department of Health,Salisbury NHS Foundation Trust,31-Jul-18,DRESSINGS - PRE STERILE,Surgery,NHS LOGISTICS,1019084203,1.03,
Department of Health,Salisbury NHS Foundation Trust,31-Jul-18,DRESSINGS - PRE STERILE,Surgery,NHS LOGISTICS,1019084203,1.03,
Department of Health,Salisbury NHS Foundation Trust,31-Jul-18,DRESSINGS - PRE STERILE,Surgery,NHS LOGISTICS,1019084203,0.81,
Department of Health,Salisbury NHS Foundation Trust,31-Jul-18,DRESSINGS - PRE STERILE,Surgery,NHS LOGISTICS,1019084203,0.81,
Department of Health,Salisbury NHS Foundation Trust,31-Jul-18,MEDSURGCONS - OTHER,Surgery,NHS LOGISTICS,1019084203,9.57,
Department of Health,Salisbury NHS Foundation Trust,31-Jul-18,OTHER MEDICAL SUPPLIES,Surgery,NHS LOGISTICS,1019084203,18.89,
Department of Health,Salisbury NHS Foundation Trust,31-Jul-18,OTHER MEDICAL SUPPLIES,Surgery,NHS LOGISTICS,1019084203,4.53,
Department of Health,Salisbury NHS Foundation Trust,31-Jul-18,NON DISPOSABLE BED LINEN,Surgery,NHS LOGISTICS,1019084203,3,
Department of Health,Salisbury NHS Foundation Trust,31-Jul-18,PATIENT APPLIANCES,Surgery,NHS LOGISTICS,1019084203,3.12,
Department of Health,Salisbury NHS Foundation Trust,31-Jul-18,MEDSURGCONS - OTHER,Surgery,NHS LOGISTICS,1019084203,3.2,
Department of Health,Salisbury NHS Foundation Trust,31-Jul-18,DISPOSABLE THEATRE DRAPES WIPES,Surgery,NHS LOGISTICS,1019084203,0.45,
Department of Health,Salisbury NHS Foundation Trust,31-Jul-18,DISPOSABLE THEATRE DRAPES WIPES,Surgery,NHS LOGISTICS,1019084203,2.13,
Department of Health,Salisbury NHS Foundation Trust,31-Jul-18,DRESSINGS - PRE STERILE,Clinical Support,NHS LOGISTICS,1019084203,0.58,
Department of Health,Salisbury NHS Foundation Trust,31-Jul-18,TOILETRIES PERSONAL HYGIENE PRODUCTS,Clinical Support,NHS LOGISTICS,1019084203,1.85,
Department of Health,Salisbury NHS Foundation Trust,31-Jul-18,TISSUES HAND TOWELS & TOILET PAPER,Clinical Support,NHS LOGISTICS,1019084203,0.99,
Department of Health,Salisbury NHS Foundation Trust,31-Jul-18,DRESSINGS - PRE STERILE,Clinical Support,NHS LOGISTICS,1019084203,10.12,
Department of Health,Salisbury NHS Foundation Trust,31-Jul-18,DRESSINGS - PRE STERILE,Clinical Support,NHS LOGISTICS,1019084203,11.98,
Department of Health,Salisbury NHS Foundation Trust,31-Jul-18,MEDSURGCONS - OTHER,Clinical Support,NHS LOGISTICS,1019084203,2.73,
Department of Health,Salisbury NHS Foundation Trust,31-Jul-18,DRESSINGS - PRE STERILE,Medicine,NHS LOGISTICS,1019084203,0.5,
Department of Health,Salisbury NHS Foundation Trust,31-Jul-18,TUBES,Medicine,NHS LOGISTICS,1019084203,1.37,
Department of Health,Salisbury NHS Foundation Trust,31-Jul-18,DRESSINGS - PRE STERILE,Medicine,NHS LOGISTICS,1019084203,0.19,
Department of Health,Salisbury NHS Foundation Trust,31-Jul-18,ANAESTHETIC EQUIPMENT ACCESSORIES,Medicine,NHS LOGISTICS,1019084203,0.75,
Department of Health,Salisbury NHS Foundation Trust,31-Jul-18,OTHER MEDICAL SUPPLIES,Medicine,NHS LOGISTICS,1019084203,0.38,
Department of Health,Salisbury NHS Foundation Trust,31-Jul-18,PATIENT APPLIANCES,Medicine,NHS LOGISTICS,1019084203,0.67,
Department of Health,Salisbury NHS Foundation Trust,31-Jul-18,PATIENT APPLIANCES,Medicine,NHS LOGISTICS,1019084203,0.67,
Department of Health,Salisbury NHS Foundation Trust,31-Jul-18,PATIENT APPLIANCES,Medicine,NHS LOGISTICS,1019084203,0.67,
Department of Health,Salisbury NHS Foundation Trust,31-Jul-18,TISSUES HAND TOWELS & TOILET PAPER,Medicine,NHS LOGISTICS,1019084203,0.27,
Department of Health,Salisbury NHS Foundation Trust,31-Jul-18,TOILETRIES PERSONAL HYGIENE PRODUCTS,Medicine,NHS LOGISTICS,1019084203,0.83,
Department of Health,Salisbury NHS Foundation Trust,31-Jul-18,NON DISPOSABLE BED LINEN,Medicine,NHS LOGISTICS,1019084203,3,
Department of Health,Salisbury NHS Foundation Trust,31-Jul-18,DRESSINGS - PRE STERILE,Surgery,NHS LOGISTICS,1019084203,3.22,
Department of Health,Salisbury NHS Foundation Trust,31-Jul-18,DRESSINGS - PRE STERILE,Surgery,NHS LOGISTICS,1019084203,5.22,
Department of Health,Salisbury NHS Foundation Trust,31-Jul-18,M & S EQUIPELECTEQUIPINST - OTHER,Medicine,NHS LOGISTICS,1019084203,1.68,
Department of Health,Salisbury NHS Foundation Trust,31-Jul-18,TOILETRIES PERSONAL HYGIENE PRODUCTS,Medicine,NHS LOGISTICS,1019084203,1.85,
Department of Health,Salisbury NHS Foundation Trust,31-Jul-18,CLEANING MATERIALS PRODUCTS SUNDRIES,Medicine,NHS LOGISTICS,1019084203,1.13,
Department of Health,Salisbury NHS Foundation Trust,31-Jul-18,CLEANING MATERIALS PRODUCTS SUNDRIES,Medicine,NHS LOGISTICS,1019084203,1.76,
Department of Health,Salisbury NHS Foundation Trust,31-Jul-18,DRESSINGS - PRE STERILE,Medicine,NHS LOGISTICS,1019084203,2.8,
Department of Health,Salisbury NHS Foundation Trust,31-Jul-18,DRESSINGS - PRE STERILE,Medicine,NHS LOGISTICS,1019084203,1.15,
Department of Health,Salisbury NHS Foundation Trust,31-Jul-18,M & S EQUIPELECTEQUIPINST - OTHER,Medicine,NHS LOGISTICS,1019084203,1.35,
Department of Health,Salisbury NHS Foundation Trust,31-Jul-18,OTHER MEDICAL SUPPLIES,Medicine,NHS LOGISTICS,1019084203,3.27,
Department of Health,Salisbury NHS Foundation Trust,31-Jul-18,OTHER MEDICAL SUPPLIES,Medicine,NHS LOGISTICS,1019084203,1.51,
Department of Health,Salisbury NHS Foundation Trust,31-Jul-18,MEDSURGCONS - OTHER,Medicine,NHS LOGISTICS,1019084203,5.42,
Department of Health,Salisbury NHS Foundation Trust,31-Jul-18,TISSUES HAND TOWELS & TOILET PAPER,Medicine,NHS LOGISTICS,1019084203,0.14,
Department of Health,Salisbury NHS Foundation Trust,31-Jul-18,MEDSURGCONS - OTHER,Medicine,NHS LOGISTICS,1019084203,0.18,
Department of Health,Salisbury NHS Foundation Trust,31-Jul-18,NON DISPOSABLE BED LINEN,Medicine,NHS LOGISTICS,1019084203,1.5,
Department of Health,Salisbury NHS Foundation Trust,31-Jul-18,DISPOSABLE THEATRE DRAPES WIPES,Medicine,NHS LOGISTICS,1019084203,2.86,
Department of Health,Salisbury NHS Foundation Trust,31-Jul-18,DISPOSABLE THEATRE DRAPES WIPES,Medicine,NHS LOGISTICS,1019084203,1.42,
Department of Health,Salisbury NHS Foundation Trust,31-Jul-18,MED SURG EQUIP REP MAINT CLEANING,Musculo-Skeletal,NHS LOGISTICS,1019084203,21.94,
Department of Health,Salisbury NHS Foundation Trust,31-Jul-18,OTHER MEDICAL SUPPLIES,Musculo-Skeletal,NHS LOGISTICS,1019084203,48,
Department of Health,Salisbury NHS Foundation Trust,31-Jul-18,TOILETRIES PERSONAL HYGIENE PRODUCTS,Medicine,NHS LOGISTICS,1019084203,0.62,
Department of Health,Salisbury NHS Foundation Trust,31-Jul-18,TISSUES HAND TOWELS & TOILET PAPER,Medicine,NHS LOGISTICS,1019084203,0.25,
Department of Health,Salisbury NHS Foundation Trust,31-Jul-18,DRESSINGS - PRE STERILE,Medicine,NHS LOGISTICS,1019084203,2.8,
Department of Health,Salisbury NHS Foundation Trust,31-Jul-18,DRESSINGS - PRE STERILE,Medicine,NHS LOGISTICS,1019084203,0.19,
Department of Health,Salisbury NHS Foundation Trust,31-Jul-18,OTHER MEDICAL SUPPLIES,Medicine,NHS LOGISTICS,1019084203,1.12,
Department of Health,Salisbury NHS Foundation Trust,31-Jul-18,OTHER MEDICAL SUPPLIES,Medicine,NHS LOGISTICS,1019084203,1.64,
Department of Health,Salisbury NHS Foundation Trust,31-Jul-18,OTHER MEDICAL SUPPLIES,Medicine,NHS LOGISTICS,1019084203,1.37,
Department of Health,Salisbury NHS Foundation Trust,31-Jul-18,OTHER MEDICAL SUPPLIES,Medicine,NHS LOGISTICS,1019084203,0.75,
Department of Health,Salisbury NHS Foundation Trust,31-Jul-18,PATIENT APPLIANCES,Medicine,NHS LOGISTICS,1019084203,1.34,
Department of Health,Salisbury NHS Foundation Trust,31-Jul-18,PATIENT APPLIANCES,Medicine,NHS LOGISTICS,1019084203,0.88,
Department of Health,Salisbury NHS Foundation Trust,31-Jul-18,MEDSURGCONS - OTHER,Medicine,NHS LOGISTICS,1019084203,1.18,
Department of Health,Salisbury NHS Foundation Trust,31-Jul-18,MEDSURGCONS - OTHER,Medicine,NHS LOGISTICS,1019084203,0.78,
Department of Health,Salisbury NHS Foundation Trust,31-Jul-18,MEDSURGCONS - OTHER,Medicine,NHS LOGISTICS,1019084203,0.18,
Department of Health,Salisbury NHS Foundation Trust,31-Jul-18,NON DISPOSABLE BED LINEN,Medicine,NHS LOGISTICS,1019084203,2.25,
Department of Health,Salisbury NHS Foundation Trust,31-Jul-18,DISPOSABLE THEATRE DRAPES WIPES,Medicine,NHS LOGISTICS,1019084203,0.71,
Department of Health,Salisbury NHS Foundation Trust,31-Jul-18,TOILETRIES PERSONAL HYGIENE PRODUCTS,Medicine,NHS LOGISTICS,1019084203,1.85,
Department of Health,Salisbury NHS Foundation Trust,31-Jul-18,CLEANING MATERIALS PRODUCTS SUNDRIES,Medicine,NHS LOGISTICS,1019084203,1.13,
Department of Health,Salisbury NHS Foundation Trust,31-Jul-18,CLEANING MATERIALS PRODUCTS SUNDRIES,Medicine,NHS LOGISTICS,1019084203,1.76,
Department of Health,Salisbury NHS Foundation Trust,31-Jul-18,DRESSINGS - PRE STERILE,Medicine,NHS LOGISTICS,1019084203,5.6,
Department of Health,Salisbury NHS Foundation Trust,31-Jul-18,DRESSINGS - PRE STERILE,Medicine,NHS LOGISTICS,1019084203,0.56,
Department of Health,Salisbury NHS Foundation Trust,31-Jul-18,OTHER MEDICAL SUPPLIES,Medicine,NHS LOGISTICS,1019084203,2.82,
Department of Health,Salisbury NHS Foundation Trust,31-Jul-18,ANAESTHETIC EQUIPMENT ACCESSORIES,Medicine,NHS LOGISTICS,1019084203,0.25,
Department of Health,Salisbury NHS Foundation Trust,31-Jul-18,OTHER MEDICAL SUPPLIES,Medicine,NHS LOGISTICS,1019084203,1.12,
Department of Health,Salisbury NHS Foundation Trust,31-Jul-18,OTHER MEDICAL SUPPLIES,Medicine,NHS LOGISTICS,1019084203,1.37,
Department of Health,Salisbury NHS Foundation Trust,31-Jul-18,OTHER MEDICAL SUPPLIES,Medicine,NHS LOGISTICS,1019084203,1.51,
Department of Health,Salisbury NHS Foundation Trust,31-Jul-18,PATIENT APPLIANCES,Medicine,NHS LOGISTICS,1019084203,0.67,
Department of Health,Salisbury NHS Foundation Trust,31-Jul-18,PATIENT APPLIANCES,Medicine,NHS LOGISTICS,1019084203,0.67,
Department of Health,Salisbury NHS Foundation Trust,31-Jul-18,TOILETRIES PERSONAL HYGIENE PRODUCTS,Medicine,NHS LOGISTICS,1019084203,0.73,
Department of Health,Salisbury NHS Foundation Trust,31-Jul-18,MEDSURGCONS - OTHER,Medicine,NHS LOGISTICS,1019084203,11.96,
Department of Health,Salisbury NHS Foundation Trust,31-Jul-18,MEDSURGCONS - OTHER,Medicine,NHS LOGISTICS,1019084203,0.35,
Department of Health,Salisbury NHS Foundation Trust,31-Jul-18,NON DISPOSABLE BED LINEN,Medicine,NHS LOGISTICS,1019084203,3,
Department of Health,Salisbury NHS Foundation Trust,31-Jul-18,DISPOSABLE THEATRE DRAPES WIPES,Medicine,NHS LOGISTICS,1019084203,1.42,
Department of Health,Salisbury NHS Foundation Trust,31-Jul-18,DRESSINGS  -  PROCEDURE PACKS,Medicine,NHS LOGISTICS,1019084203,114.59,
Department of Health,Salisbury NHS Foundation Trust,31-Jul-18,TUBES,Medicine,NHS LOGISTICS,1019084203,1.41,
Department of Health,Salisbury NHS Foundation Trust,31-Jul-18,DISPOSABLE THEATRE DRAPES WIPES,Medicine,NHS LOGISTICS,1019084203,7.57,
Department of Health,Salisbury NHS Foundation Trust,31-Jul-18,DRESSINGS - PRE STERILE,Medicine,NHS LOGISTICS,1019084203,0.36,
Department of Health,Salisbury NHS Foundation Trust,31-Jul-18,DRESSINGS - PRE STERILE,Medicine,NHS LOGISTICS,1019084203,2.8,
Department of Health,Salisbury NHS Foundation Trust,31-Jul-18,DRESSINGS - PRE STERILE,Medicine,NHS LOGISTICS,1019084203,1.74,
Department of Health,Salisbury NHS Foundation Trust,31-Jul-18,MED SURG EQUIP REP MAINT CLEANING,Medicine,NHS LOGISTICS,1019084203,8.36,
Department of Health,Salisbury NHS Foundation Trust,31-Jul-18,M & S EQUIPELECTEQUIPINST - OTHER,Medicine,NHS LOGISTICS,1019084203,8.36,
Department of Health,Salisbury NHS Foundation Trust,31-Jul-18,ANAESTHETIC EQUIPMENT ACCESSORIES,Medicine,NHS LOGISTICS,1019084203,0.25,
Department of Health,Salisbury NHS Foundation Trust,31-Jul-18,OTHER MEDICAL SUPPLIES,Medicine,NHS LOGISTICS,1019084203,1.37,
Department of Health,Salisbury NHS Foundation Trust,31-Jul-18,MEDSURGCONS-SUTURES,Medicine,NHS LOGISTICS,1019084203,11.86,
Department of Health,Salisbury NHS Foundation Trust,31-Jul-18,DRESSINGS - PRE STERILE,Medicine,NHS LOGISTICS,1019084203,4.95,
Department of Health,Salisbury NHS Foundation Trust,31-Jul-18,BEVERAGES & AMBIENT FOOD,Medicine,NHS LOGISTICS,1019084203,0.78,
Department of Health,Salisbury NHS Foundation Trust,31-Jul-18,DISPOSABLE THEATRE DRAPES WIPES,Medicine,NHS LOGISTICS,1019084203,1.42,
Department of Health,Salisbury NHS Foundation Trust,31-Jul-18,M & S EQUIPELECTEQUIPINST - OTHER,Surgery,NHS LOGISTICS,1019084203,4.05,
Department of Health,Salisbury NHS Foundation Trust,31-Jul-18,MEDSURGCONS - OTHER,Surgery,NHS LOGISTICS,1019084203,0.97,
Department of Health,Salisbury NHS Foundation Trust,31-Jul-18,MEDSURGCONS - OTHER,Surgery,NHS LOGISTICS,1019084203,0.78,
Department of Health,Salisbury NHS Foundation Trust,31-Jul-18,TISSUES HAND TOWELS & TOILET PAPER,Surgery,NHS LOGISTICS,1019084203,0.14,
Department of Health,Salisbury NHS Foundation Trust,31-Jul-18,NON DISPOSABLE BED LINEN,Surgery,NHS LOGISTICS,1019084203,1.5,
Department of Health,Salisbury NHS Foundation Trust,31-Jul-18,TISSUES HAND TOWELS & TOILET PAPER,Surgery,NHS LOGISTICS,1019084203,0.5,
Department of Health,Salisbury NHS Foundation Trust,31-Jul-18,MEDSURGCONS - OTHER,Surgery,NHS LOGISTICS,1019084203,0.18,
Department of Health,Salisbury NHS Foundation Trust,31-Jul-18,M & S EQUIPELECTEQUIPINST - OTHER,Surgery,NHS LOGISTICS,1019084203,1.35,
Department of Health,Salisbury NHS Foundation Trust,31-Jul-18,PATIENT APPLIANCES,Surgery,NHS LOGISTICS,1019084203,0.67,
Department of Health,Salisbury NHS Foundation Trust,31-Jul-18,PATIENT APPLIANCES,Surgery,NHS LOGISTICS,1019084203,0.67,
Department of Health,Salisbury NHS Foundation Trust,31-Jul-18,TOILETRIES PERSONAL HYGIENE PRODUCTS,Surgery,NHS LOGISTICS,1019084203,0.83,
Department of Health,Salisbury NHS Foundation Trust,31-Jul-18,SERVICES FROM NHS BODIES,Surgery,NHS LOGISTICS,1019084203,0.89,
Department of Health,Salisbury NHS Foundation Trust,31-Jul-18,DRESSINGS  -  PROCEDURE PACKS,Clinical Support,NHS LOGISTICS,1019084203,0.76,
Department of Health,Salisbury NHS Foundation Trust,31-Jul-18,DRESSINGS  -  PROCEDURE PACKS,Clinical Support,NHS LOGISTICS,1019084203,0.33,
Department of Health,Salisbury NHS Foundation Trust,31-Jul-18,DRESSINGS - PRE STERILE,Surgery,NHS LOGISTICS,1019084203,1.2,
Department of Health,Salisbury NHS Foundation Trust,31-Jul-18,TOILETRIES PERSONAL HYGIENE PRODUCTS,Surgery,NHS LOGISTICS,1019084203,3.38,
Department of Health,Salisbury NHS Foundation Trust,31-Jul-18,TISSUES HAND TOWELS & TOILET PAPER,Surgery,NHS LOGISTICS,1019084203,0.5,
Department of Health,Salisbury NHS Foundation Trust,31-Jul-18,DRESSINGS - PRE STERILE,Surgery,NHS LOGISTICS,1019084203,0.59,
Department of Health,Salisbury NHS Foundation Trust,31-Jul-18,DRESSINGS - PRE STERILE,Surgery,NHS LOGISTICS,1019084203,0.21,
Department of Health,Salisbury NHS Foundation Trust,31-Jul-18,DRESSINGS - PRE STERILE,Surgery,NHS LOGISTICS,1019084203,0.36,
Department of Health,Salisbury NHS Foundation Trust,31-Jul-18,ANAESTHETIC EQUIPMENT ACCESSORIES,Surgery,NHS LOGISTICS,1019084203,0.13,
Department of Health,Salisbury NHS Foundation Trust,31-Jul-18,OTHER MEDICAL SUPPLIES,Surgery,NHS LOGISTICS,1019084203,0.38,
Department of Health,Salisbury NHS Foundation Trust,31-Jul-18,DRESSINGS - PRE STERILE,Surgery,NHS LOGISTICS,1019084203,0.54,
Department of Health,Salisbury NHS Foundation Trust,31-Jul-18,DISPOSABLE THEATRE DRAPES WIPES,Surgery,NHS LOGISTICS,1019084203,0.67,
Department of Health,Salisbury NHS Foundation Trust,31-Jul-18,OTHER MEDICAL SUPPLIES,Surgery,NHS LOGISTICS,1019084203,5.95,
Department of Health,Salisbury NHS Foundation Trust,31-Jul-18,DRESSINGS - PRE STERILE,Surgery,NHS LOGISTICS,1019084203,5.6,
Department of Health,Salisbury NHS Foundation Trust,31-Jul-18,OTHER MEDICAL SUPPLIES,Surgery,NHS LOGISTICS,1019084203,3.77,
Department of Health,Salisbury NHS Foundation Trust,31-Jul-18,OTHER MEDICAL SUPPLIES,Surgery,NHS LOGISTICS,1019084203,2.28,
Department of Health,Salisbury NHS Foundation Trust,31-Jul-18,OTHER MEDICAL SUPPLIES,Surgery,NHS LOGISTICS,1019084203,4.47,
Department of Health,Salisbury NHS Foundation Trust,31-Jul-18,LAB EQUIP-LABORATORY APPARATUS,Clinical Support,NHS LOGISTICS,1019084203,74.87,
Department of Health,Salisbury NHS Foundation Trust,31-Jul-18,LAB EQUIP-LABORATORY APPARATUS,Clinical Support,NHS LOGISTICS,1019084203,6.14,
Department of Health,Salisbury NHS Foundation Trust,31-Jul-18,M & S EQUIPELECTEQUIPINST - OTHER,Clinical Support,NHS LOGISTICS,1019084203,115.47,
Department of Health,Salisbury NHS Foundation Trust,31-Jul-18,LIQUID REFRESHMENTS,Facilities,NHS LOGISTICS,1019084203,2.65,
Department of Health,Salisbury NHS Foundation Trust,31-Jul-18,LIQUID REFRESHMENTS,Facilities,NHS LOGISTICS,1019084203,0.93,
Department of Health,Salisbury NHS Foundation Trust,31-Jul-18,LIQUID REFRESHMENTS,Facilities,NHS LOGISTICS,1019084203,7.1,
Department of Health,Salisbury NHS Foundation Trust,31-Jul-18,LIQUID REFRESHMENTS,Facilities,NHS LOGISTICS,1019084203,2.65,
Department of Health,Salisbury NHS Foundation Trust,31-Jul-18,LIQUID REFRESHMENTS,Facilities,NHS LOGISTICS,1019084203,1,
Department of Health,Salisbury NHS Foundation Trust,31-Jul-18,BEVERAGES & AMBIENT FOOD,Facilities,NHS LOGISTICS,1019084203,2.68,
Department of Health,Salisbury NHS Foundation Trust,31-Jul-18,HEALTHCARE - WEAR,Facilities,NHS LOGISTICS,1019084203,17.27,
Department of Health,Salisbury NHS Foundation Trust,31-Jul-18,BEVERAGES & AMBIENT FOOD,Facilities,NHS LOGISTICS,1019084203,6.47,
Department of Health,Salisbury NHS Foundation Trust,31-Jul-18,BEVERAGES & AMBIENT FOOD,Facilities,NHS LOGISTICS,1019084203,8.28,
Department of Health,Salisbury NHS Foundation Trust,31-Jul-18,BEVERAGES & AMBIENT FOOD,Facilities,NHS LOGISTICS,1019084203,1.39,
Department of Health,Salisbury NHS Foundation Trust,31-Jul-18,LIQUID REFRESHMENTS,Facilities,NHS LOGISTICS,1019084203,3.29,
Department of Health,Salisbury NHS Foundation Trust,31-Jul-18,LIQUID REFRESHMENTS,Facilities,NHS LOGISTICS,1019084203,0.51,
Department of Health,Salisbury NHS Foundation Trust,31-Jul-18,LIQUID REFRESHMENTS,Facilities,NHS LOGISTICS,1019084203,0.51,
Department of Health,Salisbury NHS Foundation Trust,31-Jul-18,BEVERAGES & AMBIENT FOOD,Facilities,NHS LOGISTICS,1019084203,21.1,
Department of Health,Salisbury NHS Foundation Trust,31-Jul-18,FLAVOURINGS HERBS SPICES,Facilities,NHS LOGISTICS,1019084203,2.01,
Department of Health,Salisbury NHS Foundation Trust,31-Jul-18,LIQUID REFRESHMENTS,Facilities,NHS LOGISTICS,1019084203,19.44,
Department of Health,Salisbury NHS Foundation Trust,31-Jul-18,BEVERAGES & AMBIENT FOOD,Facilities,NHS LOGISTICS,1019084203,0.53,
Department of Health,Salisbury NHS Foundation Trust,31-Jul-18,LIQUID REFRESHMENTS,Facilities,NHS LOGISTICS,1019084203,3.1,
Department of Health,Salisbury NHS Foundation Trust,31-Jul-18,LIQUID REFRESHMENTS,Facilities,NHS LOGISTICS,1019084203,1.75,
Department of Health,Salisbury NHS Foundation Trust,31-Jul-18,LIQUID REFRESHMENTS,Facilities,NHS LOGISTICS,1019084203,3.09,
Department of Health,Salisbury NHS Foundation Trust,31-Jul-18,CLEANING MATERIALS PRODUCTS SUNDRIES,Facilities,NHS LOGISTICS,1019084203,1.13,
Department of Health,Salisbury NHS Foundation Trust,31-Jul-18,MEDSURGCONS - OTHER,Surgery,NHS LOGISTICS,1019084203,1.43,
Department of Health,Salisbury NHS Foundation Trust,31-Jul-18,DRESSINGS - PRE STERILE,Surgery,NHS LOGISTICS,1019084203,1.2,
Department of Health,Salisbury NHS Foundation Trust,31-Jul-18,DRESSINGS - PRE STERILE,Surgery,NHS LOGISTICS,1019084203,0.54,
Department of Health,Salisbury NHS Foundation Trust,31-Jul-18,STATIONERY SUNDRIES,Facilities,NHS LOGISTICS,1019084203,1.2,
Department of Health,Salisbury NHS Foundation Trust,31-Jul-18,STATIONERY SUNDRIES,Facilities,NHS LOGISTICS,1019084203,0.37,
Department of Health,Salisbury NHS Foundation Trust,31-Jul-18,LAB EQUIP-LABORATORY APPARATUS,Surgery,NHS LOGISTICS,1019084203,0.92,
Department of Health,Salisbury NHS Foundation Trust,31-Jul-18,TOILETRIES PERSONAL HYGIENE PRODUCTS,Medicine,NHS LOGISTICS,1019084203,0.31,
Department of Health,Salisbury NHS Foundation Trust,31-Jul-18,TISSUES HAND TOWELS & TOILET PAPER,Medicine,NHS LOGISTICS,1019084203,2.13,
Department of Health,Salisbury NHS Foundation Trust,31-Jul-18,TISSUES HAND TOWELS & TOILET PAPER,Medicine,NHS LOGISTICS,1019084203,0.08,
Department of Health,Salisbury NHS Foundation Trust,31-Jul-18,DRESSINGS - PRE STERILE,Surgery,NHS LOGISTICS,1019084203,1.88,
Department of Health,Salisbury NHS Foundation Trust,31-Jul-18,DRESSINGS - PRE STERILE,Surgery,NHS LOGISTICS,1019084203,1.13,
Department of Health,Salisbury NHS Foundation Trust,31-Jul-18,DRESSINGS - PRE STERILE,Surgery,NHS LOGISTICS,1019084203,1.99,
Department of Health,Salisbury NHS Foundation Trust,31-Jul-18,DRESSINGS - PRE STERILE,Surgery,NHS LOGISTICS,1019084203,2.29,
Department of Health,Salisbury NHS Foundation Trust,31-Jul-18,DRESSINGS - PRE STERILE,Surgery,NHS LOGISTICS,1019084203,2.41,
Department of Health,Salisbury NHS Foundation Trust,31-Jul-18,DISPOSABLE THEATRE DRAPES WIPES,Surgery,NHS LOGISTICS,1019084203,7.08,
Department of Health,Salisbury NHS Foundation Trust,31-Jul-18,DRESSINGS - PRE STERILE,Surgery,NHS LOGISTICS,1019084203,3.37,
Department of Health,Salisbury NHS Foundation Trust,31-Jul-18,SURGICAL INSTRUMENTS: DISPOSABLE,Surgery,NHS LOGISTICS,1019084203,10.75,
Department of Health,Salisbury NHS Foundation Trust,31-Jul-18,MEDSURGCONS - OTHER,Medicine,NHS LOGISTICS,1019084203,24.49,
Department of Health,Salisbury NHS Foundation Trust,31-Jul-18,MEDSURGCONS - OTHER,Medicine,NHS LOGISTICS,1019084203,11.22,
Department of Health,Salisbury NHS Foundation Trust,31-Jul-18,MEDSURGCONS - OTHER,Medicine,NHS LOGISTICS,1019084203,40.82,
Department of Health,Salisbury NHS Foundation Trust,31-Jul-18,MEDSURGCONS - OTHER,Medicine,NHS LOGISTICS,1019084203,40.82,
Department of Health,Salisbury NHS Foundation Trust,31-Jul-18,M & S EQUIPELECTEQUIPINST - OTHER,Clinical Support,NHS LOGISTICS,1019084203,22.68,
Department of Health,Salisbury NHS Foundation Trust,31-Jul-18,DRESSINGS - PRE STERILE,Clinical Support,NHS LOGISTICS,1019084203,2.8,
Department of Health,Salisbury NHS Foundation Trust,31-Jul-18,M & S EQUIPELECTEQUIPINST - OTHER,Clinical Support,NHS LOGISTICS,1019084203,20.62,
Department of Health,Salisbury NHS Foundation Trust,31-Jul-18,M & S EQUIPELECTEQUIPINST - OTHER,Clinical Support,NHS LOGISTICS,1019084203,15.46,
Department of Health,Salisbury NHS Foundation Trust,31-Jul-18,M & S EQUIPELECTEQUIPINST - OTHER,Clinical Support,NHS LOGISTICS,1019084203,15.46,
Department of Health,Salisbury NHS Foundation Trust,31-Jul-18,HEALTHCARE - WEAR,Clinical Support,NHS LOGISTICS,1019084203,6.38,
Department of Health,Salisbury NHS Foundation Trust,31-Jul-18,OTHER MEDICAL SUPPLIES,Clinical Support,NHS LOGISTICS,1019084203,14.99,
Department of Health,Salisbury NHS Foundation Trust,31-Jul-18,NON DISPOSABLE BED LINEN,Clinical Support,NHS LOGISTICS,1019084203,0.75,
Department of Health,Salisbury NHS Foundation Trust,31-Jul-18,OTHER MEDICAL SUPPLIES,Medicine,NHS LOGISTICS,1019084203,0.27,
Department of Health,Salisbury NHS Foundation Trust,31-Jul-18,TISSUES HAND TOWELS & TOILET PAPER,Surgery,NHS LOGISTICS,1019084203,0.74,
Department of Health,Salisbury NHS Foundation Trust,31-Jul-18,TISSUES HAND TOWELS & TOILET PAPER,Surgery,NHS LOGISTICS,1019084203,0.47,
Department of Health,Salisbury NHS Foundation Trust,31-Jul-18,MED SURG EQUIP REP MAINT CLEANING,Surgery,NHS LOGISTICS,1019084203,42.12,
Department of Health,Salisbury NHS Foundation Trust,31-Jul-18,CLEANING MATERIALS PRODUCTS SUNDRIES,Facilities,NHS LOGISTICS,1019084203,2.37,
Department of Health,Salisbury NHS Foundation Trust,31-Jul-18,DISPOSABLE THEATRE DRAPES WIPES,Surgery,NHS LOGISTICS,1019084203,0.75,
Department of Health,Salisbury NHS Foundation Trust,31-Jul-18,BAGS SACKS - OTHER,Surgery,NHS LOGISTICS,1019084203,0.41,
Department of Health,Salisbury NHS Foundation Trust,31-Jul-18,DRESSINGS - PRE STERILE,Surgery,NHS LOGISTICS,1019084203,1.71,
Department of Health,Salisbury NHS Foundation Trust,31-Jul-18,TISSUES HAND TOWELS & TOILET PAPER,Surgery,NHS LOGISTICS,1019084203,0.75,
Department of Health,Salisbury NHS Foundation Trust,31-Jul-18,TISSUES HAND TOWELS & TOILET PAPER,Surgery,NHS LOGISTICS,1019084203,0.99,
Department of Health,Salisbury NHS Foundation Trust,31-Jul-18,DRESSINGS - PRE STERILE,Surgery,NHS LOGISTICS,1019084203,0.21,
Department of Health,Salisbury NHS Foundation Trust,31-Jul-18,DRESSINGS - PRE STERILE,Surgery,NHS LOGISTICS,1019084203,0.36,
Department of Health,Salisbury NHS Foundation Trust,31-Jul-18,DRESSINGS - PRE STERILE,Surgery,NHS LOGISTICS,1019084203,0.37,
Department of Health,Salisbury NHS Foundation Trust,31-Jul-18,DRESSINGS - PRE STERILE,Surgery,NHS LOGISTICS,1019084203,2.42,
Department of Health,Salisbury NHS Foundation Trust,31-Jul-18,TISSUES HAND TOWELS & TOILET PAPER,Musculo-Skeletal,NHS LOGISTICS,1019084203,0.25,
Department of Health,Salisbury NHS Foundation Trust,31-Jul-18,DISPOSABLE THEATRE DRAPES WIPES,Musculo-Skeletal,NHS LOGISTICS,1019084203,0.71,
Department of Health,Salisbury NHS Foundation Trust,31-Jul-18,NON DISPOSABLE BED LINEN,Medicine,NHS LOGISTICS,1019084203,0.75,
Department of Health,Salisbury NHS Foundation Trust,31-Jul-18,DISPOSABLE THEATRE DRAPES WIPES,Medicine,NHS LOGISTICS,1019084203,0.71,
Department of Health,Salisbury NHS Foundation Trust,31-Jul-18,COOKING & KITCHEN UTENSILS,Clinical Support,NHS LOGISTICS,1019084203,5.07,
Department of Health,Salisbury NHS Foundation Trust,31-Jul-18,COOKING & KITCHEN UTENSILS,Clinical Support,NHS LOGISTICS,1019084203,1.01,
Department of Health,Salisbury NHS Foundation Trust,31-Jul-18,DISPOSABLE THEATRE DRAPES WIPES,Medicine,NHS LOGISTICS,1019084203,3.55,
Department of Health,Salisbury NHS Foundation Trust,31-Jul-18,DISPOSABLE THEATRE DRAPES WIPES,Medicine,NHS LOGISTICS,1019084203,3.55,
Department of Health,Salisbury NHS Foundation Trust,31-Jul-18,DISPOSABLE THEATRE DRAPES WIPES,Medicine,NHS LOGISTICS,1019084203,0.71,
Department of Health,Salisbury NHS Foundation Trust,31-Jul-18,MED SURG EQUIP REP MAINT CLEANING,Surgery,NHS LOGISTICS,1019084203,210.58,
Department of Health,Salisbury NHS Foundation Trust,31-Jul-18,SERVICES FROM NHS BODIES,Clinical Support,NHS LOGISTICS,1019084203,159.65,
Department of Health,Salisbury NHS Foundation Trust,31-Jul-18,MED SURG EQUIP REP MAINT CLEANING,Surgery,NHS LOGISTICS,1019084203,42.12,
Department of Health,Salisbury NHS Foundation Trust,31-Jul-18,OTHER MEDICAL SUPPLIES,Surgery,NHS LOGISTICS,1019084203,1.88,
Department of Health,Salisbury NHS Foundation Trust,31-Jul-18,OTHER MEDICAL SUPPLIES,Surgery,NHS LOGISTICS,1019084203,1.6,
Department of Health,Salisbury NHS Foundation Trust,31-Jul-18,OTHER MEDICAL SUPPLIES,Surgery,NHS LOGISTICS,1019084203,0.38,
Department of Health,Salisbury NHS Foundation Trust,31-Jul-18,OTHER MEDICAL SUPPLIES,Surgery,NHS LOGISTICS,1019084203,0.32,
Department of Health,Salisbury NHS Foundation Trust,31-Jul-18,NON DISPOSABLE BED LINEN,Surgery,NHS LOGISTICS,1019084203,3.75,
Department of Health,Salisbury NHS Foundation Trust,31-Jul-18,NON DISPOSABLE BED LINEN,Clinical Support,NHS LOGISTICS,1019084203,11.25,
Department of Health,Salisbury NHS Foundation Trust,31-Jul-18,NON DISPOSABLE BED LINEN,Surgery,NHS LOGISTICS,1019084203,0.75,
Department of Health,Salisbury NHS Foundation Trust,31-Jul-18,LAB EQUIP-ANALYSERS,Clinical Support,NHS LOGISTICS,1019084203,30.98,
Department of Health,Salisbury NHS Foundation Trust,31-Jul-18,LAB EQUIP-ANALYSERS,Clinical Support,NHS LOGISTICS,1019084203,6.2,
Department of Health,Salisbury NHS Foundation Trust,31-Jul-18,MEDSURGCONS - OTHER,Clinical Support,NHS LOGISTICS,1019084203,37.83,
Department of Health,Salisbury NHS Foundation Trust,31-Jul-18,MEDSURGCONS - OTHER,Clinical Support,NHS LOGISTICS,1019084203,90.33,
Department of Health,Salisbury NHS Foundation Trust,31-Jul-18,MEDSURGCONS - OTHER,Clinical Support,NHS LOGISTICS,1019084203,7.57,
Department of Health,Salisbury NHS Foundation Trust,31-Jul-18,MEDSURGCONS - OTHER,Clinical Support,NHS LOGISTICS,1019084203,18.07,
Department of Health,Salisbury NHS Foundation Trust,31-Jul-18,NON DISPOSABLE BED LINEN,Musculo-Skeletal,NHS LOGISTICS,1019084203,3.75,
Department of Health,Salisbury NHS Foundation Trust,31-Jul-18,SERVICES FROM NHS BODIES,Medicine,NHS LOGISTICS,1019084203,4.44,
Department of Health,Salisbury NHS Foundation Trust,31-Jul-18,MEDSURGCONS - OTHER,Surgery,NHS LOGISTICS,1019084203,0.88,
Department of Health,Salisbury NHS Foundation Trust,31-Jul-18,DISPOSABLE THEATRE DRAPES WIPES,Surgery,NHS LOGISTICS,1019084203,3.55,
Department of Health,Salisbury NHS Foundation Trust,31-Jul-18,SERVICES FROM NHS BODIES,Clinical Support,NHS LOGISTICS,1019084203,39.83,
Department of Health,Salisbury NHS Foundation Trust,31-Jul-18,BABY TEXTURE MODIFIED FOODS,Clinical Support,NHS LOGISTICS,1019084203,16.66,
Department of Health,Salisbury NHS Foundation Trust,31-Jul-18,BABY TEXTURE MODIFIED FOODS,Clinical Support,NHS LOGISTICS,1019084203,33.32,
Department of Health,Salisbury NHS Foundation Trust,31-Jul-18,NON DISPOSABLE BED LINEN,Medicine,NHS LOGISTICS,1019084203,3.75,
Department of Health,Salisbury NHS Foundation Trust,31-Jul-18,DRUGS,Surgery,NHS LOGISTICS,1019084203,8.8,
Department of Health,Salisbury NHS Foundation Trust,31-Jul-18,OPTICAL  -  OTHER,Surgery,NHS LOGISTICS,1019084203,74.23,
Department of Health,Salisbury NHS Foundation Trust,31-Jul-18,PATIENT APPLIANCES,Surgery,NHS LOGISTICS,1019084203,0.65,
Department of Health,Salisbury NHS Foundation Trust,31-Jul-18,DRESSINGS - PRE STERILE,Musculo-Skeletal,NHS LOGISTICS,1019084203,3.01,
Department of Health,Salisbury NHS Foundation Trust,31-Jul-18,DRESSINGS - PRE STERILE,Musculo-Skeletal,NHS LOGISTICS,1019084203,1.2,
Department of Health,Salisbury NHS Foundation Trust,31-Jul-18,DRESSINGS - PRE STERILE,Musculo-Skeletal,NHS LOGISTICS,1019084203,2.8,
Department of Health,Salisbury NHS Foundation Trust,31-Jul-18,DRESSINGS - PRE STERILE,Musculo-Skeletal,NHS LOGISTICS,1019084203,1.88,
Department of Health,Salisbury NHS Foundation Trust,31-Jul-18,DRESSINGS - PRE STERILE,Musculo-Skeletal,NHS LOGISTICS,1019084203,1.12,
Department of Health,Salisbury NHS Foundation Trust,31-Jul-18,OTHER MEDICAL SUPPLIES,Musculo-Skeletal,NHS LOGISTICS,1019084203,0.75,
Department of Health,Salisbury NHS Foundation Trust,31-Jul-18,OTHER MEDICAL SUPPLIES,Musculo-Skeletal,NHS LOGISTICS,1019084203,1.53,
Department of Health,Salisbury NHS Foundation Trust,31-Jul-18,SERVICES FROM NHS BODIES,Musculo-Skeletal,NHS LOGISTICS,1019084203,0.89,
Department of Health,Salisbury NHS Foundation Trust,31-Jul-18,DRESSINGS - PRE STERILE,Musculo-Skeletal,NHS LOGISTICS,1019084203,0.54,
Department of Health,Salisbury NHS Foundation Trust,31-Jul-18,MEDSURGCONS - OTHER,Musculo-Skeletal,NHS LOGISTICS,1019084203,5.42,
Department of Health,Salisbury NHS Foundation Trust,31-Jul-18,MEDSURGCONS - OTHER,Musculo-Skeletal,NHS LOGISTICS,1019084203,0.18,
Department of Health,Salisbury NHS Foundation Trust,31-Jul-18,NON DISPOSABLE BED LINEN,Musculo-Skeletal,NHS LOGISTICS,1019084203,3,
Department of Health,Salisbury NHS Foundation Trust,31-Jul-18,DISPOSABLE THEATRE DRAPES WIPES,Musculo-Skeletal,NHS LOGISTICS,1019084203,9.24,
Department of Health,Salisbury NHS Foundation Trust,31-Jul-18,DISPOSABLE THEATRE DRAPES WIPES,Musculo-Skeletal,NHS LOGISTICS,1019084203,0.71,
Department of Health,Salisbury NHS Foundation Trust,31-Jul-18,COOKING & KITCHEN UTENSILS,Medicine,NHS LOGISTICS,1019084203,3.54,
Department of Health,Salisbury NHS Foundation Trust,31-Jul-18,DRESSINGS - PRE STERILE,Musculo-Skeletal,NHS LOGISTICS,1019084203,6.01,
Department of Health,Salisbury NHS Foundation Trust,31-Jul-18,TISSUES HAND TOWELS & TOILET PAPER,Musculo-Skeletal,NHS LOGISTICS,1019084203,2.13,
Department of Health,Salisbury NHS Foundation Trust,31-Jul-18,DRESSINGS - PRE STERILE,Musculo-Skeletal,NHS LOGISTICS,1019084203,0.59,
Department of Health,Salisbury NHS Foundation Trust,31-Jul-18,DRESSINGS - PRE STERILE,Musculo-Skeletal,NHS LOGISTICS,1019084203,0.43,
Department of Health,Salisbury NHS Foundation Trust,31-Jul-18,DISPOSABLE THEATRE DRAPES WIPES,Musculo-Skeletal,NHS LOGISTICS,1019084203,0.71,
Department of Health,Salisbury NHS Foundation Trust,31-Jul-18,BAGS SACKS - OTHER,Musculo-Skeletal,NHS LOGISTICS,1019084203,0.6,
Department of Health,Salisbury NHS Foundation Trust,31-Jul-18,NON DISPOSABLE BED LINEN,Musculo-Skeletal,NHS LOGISTICS,1019084203,0.75,
Department of Health,Salisbury NHS Foundation Trust,31-Jul-18,DRESSINGS - PRE STERILE,Musculo-Skeletal,NHS LOGISTICS,1019084203,15.03,
Department of Health,Salisbury NHS Foundation Trust,31-Jul-18,DRESSINGS - PRE STERILE,Musculo-Skeletal,NHS LOGISTICS,1019084203,4.8,
Department of Health,Salisbury NHS Foundation Trust,31-Jul-18,M & S EQUIPELECTEQUIPINST - OTHER,Musculo-Skeletal,NHS LOGISTICS,1019084203,1.68,
Department of Health,Salisbury NHS Foundation Trust,31-Jul-18,TOILETRIES PERSONAL HYGIENE PRODUCTS,Musculo-Skeletal,NHS LOGISTICS,1019084203,0.62,
Department of Health,Salisbury NHS Foundation Trust,31-Jul-18,OTHER MEDICAL SUPPLIES,Musculo-Skeletal,NHS LOGISTICS,1019084203,1.13,
Department of Health,Salisbury NHS Foundation Trust,31-Jul-18,DRESSINGS - PRE STERILE,Musculo-Skeletal,NHS LOGISTICS,1019084203,16.36,
Department of Health,Salisbury NHS Foundation Trust,31-Jul-18,DRESSINGS - PRE STERILE,Musculo-Skeletal,NHS LOGISTICS,1019084203,18,
Department of Health,Salisbury NHS Foundation Trust,31-Jul-18,DRESSINGS - PRE STERILE,Musculo-Skeletal,NHS LOGISTICS,1019084203,0.54,
Department of Health,Salisbury NHS Foundation Trust,31-Jul-18,NON DISPOSABLE BED LINEN,Surgery,NHS LOGISTICS,1019084203,0.75,
Department of Health,Salisbury NHS Foundation Trust,31-Jul-18,TISSUES HAND TOWELS & TOILET PAPER,Clinical Support,NHS LOGISTICS,1019084203,6.39,
Department of Health,Salisbury NHS Foundation Trust,31-Jul-18,MED SURG EQUIP REP MAINT CLEANING,Clinical Support,NHS LOGISTICS,1019084203,42.12,
Department of Health,Salisbury NHS Foundation Trust,31-Jul-18,TUBES,Clinical Support,NHS LOGISTICS,1019084203,1.37,
Department of Health,Salisbury NHS Foundation Trust,31-Jul-18,NON DISPOSABLE BED LINEN,Clinical Support,NHS LOGISTICS,1019084203,0.75,
Department of Health,Salisbury NHS Foundation Trust,31-Jul-18,DISPOSABLE THEATRE DRAPES WIPES,Clinical Support,NHS LOGISTICS,1019084203,0.71,
Department of Health,Salisbury NHS Foundation Trust,31-Jul-18,TOILETRIES PERSONAL HYGIENE PRODUCTS,Medicine,NHS LOGISTICS,1019084203,1.85,
Department of Health,Salisbury NHS Foundation Trust,31-Jul-18,PATIENT APPLIANCES,Medicine,NHS LOGISTICS,1019084203,9.47,
Department of Health,Salisbury NHS Foundation Trust,31-Jul-18,DRESSINGS - PRE STERILE,Medicine,NHS LOGISTICS,1019084203,0.59,
Department of Health,Salisbury NHS Foundation Trust,31-Jul-18,DRESSINGS - PRE STERILE,Medicine,NHS LOGISTICS,1019084203,0.36,
Department of Health,Salisbury NHS Foundation Trust,31-Jul-18,DRESSINGS - PRE STERILE,Medicine,NHS LOGISTICS,1019084203,5.6,
Department of Health,Salisbury NHS Foundation Trust,31-Jul-18,ANAESTHETIC EQUIPMENT ACCESSORIES,Medicine,NHS LOGISTICS,1019084203,0.46,
Department of Health,Salisbury NHS Foundation Trust,31-Jul-18,M & S EQUIPELECTEQUIPINST - OTHER,Medicine,NHS LOGISTICS,1019084203,2.7,
Department of Health,Salisbury NHS Foundation Trust,31-Jul-18,DRESSINGS - PRE STERILE,Medicine,NHS LOGISTICS,1019084203,2.24,
Department of Health,Salisbury NHS Foundation Trust,31-Jul-18,MEDSURGCONS - OTHER,Medicine,NHS LOGISTICS,1019084203,1.29,
Department of Health,Salisbury NHS Foundation Trust,31-Jul-18,PATIENT APPLIANCES,Medicine,NHS LOGISTICS,1019084203,2.42,
Department of Health,Salisbury NHS Foundation Trust,31-Jul-18,PATIENT APPLIANCES,Medicine,NHS LOGISTICS,1019084203,0.81,
Department of Health,Salisbury NHS Foundation Trust,31-Jul-18,ANAESTHETIC EQUIPMENT ACCESSORIES,Medicine,NHS LOGISTICS,1019084203,1.25,
Department of Health,Salisbury NHS Foundation Trust,31-Jul-18,OTHER MEDICAL SUPPLIES,Medicine,NHS LOGISTICS,1019084203,0.38,
Department of Health,Salisbury NHS Foundation Trust,31-Jul-18,DRUGS,Medicine,NHS LOGISTICS,1019084203,1.87,
Department of Health,Salisbury NHS Foundation Trust,31-Jul-18,SERVICES FROM NHS BODIES,Medicine,NHS LOGISTICS,1019084203,0.89,
Department of Health,Salisbury NHS Foundation Trust,31-Jul-18,MEDSURGCONS - OTHER,Medicine,NHS LOGISTICS,1019084203,0.97,
Department of Health,Salisbury NHS Foundation Trust,31-Jul-18,MEDSURGCONS - OTHER,Medicine,NHS LOGISTICS,1019084203,0.78,
Department of Health,Salisbury NHS Foundation Trust,31-Jul-18,DRESSINGS - PRE STERILE,Medicine,NHS LOGISTICS,1019084203,2.07,
Department of Health,Salisbury NHS Foundation Trust,31-Jul-18,DRESSINGS - PRE STERILE,Medicine,NHS LOGISTICS,1019084203,4.14,
Department of Health,Salisbury NHS Foundation Trust,31-Jul-18,DRESSINGS - PRE STERILE,Medicine,NHS LOGISTICS,1019084203,0.5,
Department of Health,Salisbury NHS Foundation Trust,31-Jul-18,DRESSINGS - PRE STERILE,Medicine,NHS LOGISTICS,1019084203,0.5,
Department of Health,Salisbury NHS Foundation Trust,31-Jul-18,MEDSURGCONS - OTHER,Medicine,NHS LOGISTICS,1019084203,1.06,
Department of Health,Salisbury NHS Foundation Trust,31-Jul-18,NON DISPOSABLE BED LINEN,Medicine,NHS LOGISTICS,1019084203,2.25,
Department of Health,Salisbury NHS Foundation Trust,31-Jul-18,DISPOSABLE THEATRE DRAPES WIPES,Medicine,NHS LOGISTICS,1019084203,2.13,
Department of Health,Salisbury NHS Foundation Trust,31-Jul-18,PATIENTS BABY WEAR,Medicine,NHS LOGISTICS,1019084203,6.43,
Department of Health,Salisbury NHS Foundation Trust,31-Jul-18,DRESSINGS - PRE STERILE,Medicine,NHS LOGISTICS,1019084203,0.75,
Department of Health,Salisbury NHS Foundation Trust,31-Jul-18,MEDSURGCONS - OTHER,Medicine,NHS LOGISTICS,1019084203,0.35,
Department of Health,Salisbury NHS Foundation Trust,31-Jul-18,NON DISPOSABLE BED LINEN,Medicine,NHS LOGISTICS,1019084203,5.25,
Department of Health,Salisbury NHS Foundation Trust,31-Jul-18,M & S EQUIPELECTEQUIPINST - OTHER,Surgery,NHS LOGISTICS,1019084203,5.15,
Department of Health,Salisbury NHS Foundation Trust,31-Jul-18,DRESSINGS - PRE STERILE,Musculo-Skeletal,NHS LOGISTICS,1019084203,0.21,
Department of Health,Salisbury NHS Foundation Trust,31-Jul-18,DRESSINGS - PRE STERILE,Musculo-Skeletal,NHS LOGISTICS,1019084203,6.78,
Department of Health,Salisbury NHS Foundation Trust,31-Jul-18,DRESSINGS - PRE STERILE,Musculo-Skeletal,NHS LOGISTICS,1019084203,6.01,
Department of Health,Salisbury NHS Foundation Trust,31-Jul-18,DRESSINGS - PRE STERILE,Musculo-Skeletal,NHS LOGISTICS,1019084203,4.38,
Department of Health,Salisbury NHS Foundation Trust,31-Jul-18,DRESSINGS - PRE STERILE,Musculo-Skeletal,NHS LOGISTICS,1019084203,4.66,
Department of Health,Salisbury NHS Foundation Trust,31-Jul-18,DRESSINGS - PRE STERILE,Musculo-Skeletal,NHS LOGISTICS,1019084203,15.02,
Department of Health,Salisbury NHS Foundation Trust,31-Jul-18,DRESSINGS - PRE STERILE,Musculo-Skeletal,NHS LOGISTICS,1019084203,1.26,
Department of Health,Salisbury NHS Foundation Trust,31-Jul-18,DRESSINGS - PRE STERILE,Musculo-Skeletal,NHS LOGISTICS,1019084203,0.69,
Department of Health,Salisbury NHS Foundation Trust,31-Jul-18,DRESSINGS - PRE STERILE,Musculo-Skeletal,NHS LOGISTICS,1019084203,0.5,
Department of Health,Salisbury NHS Foundation Trust,31-Jul-18,DRESSINGS - PRE STERILE,Musculo-Skeletal,NHS LOGISTICS,1019084203,0.5,
Department of Health,Salisbury NHS Foundation Trust,31-Jul-18,OTHER MEDICAL SUPPLIES,Musculo-Skeletal,NHS LOGISTICS,1019084203,21.33,
Department of Health,Salisbury NHS Foundation Trust,31-Jul-18,MEDSURGCONS - OTHER,Surgery,NHS LOGISTICS,1019084203,0.18,
Department of Health,Salisbury NHS Foundation Trust,31-Jul-18,DISPOSABLE THEATRE DRAPES WIPES,Surgery,NHS LOGISTICS,1019084203,0.71,
Department of Health,Salisbury NHS Foundation Trust,31-Jul-18,NON DISPOSABLE BED LINEN,Surgery,NHS LOGISTICS,1019084203,15,
Department of Health,Salisbury NHS Foundation Trust,31-Jul-18,TISSUES HAND TOWELS & TOILET PAPER,Surgery,NHS LOGISTICS,1019084203,1.74,
Department of Health,Salisbury NHS Foundation Trust,31-Jul-18,DRESSINGS - PRE STERILE,Surgery,NHS LOGISTICS,1019084203,1.88,
Department of Health,Salisbury NHS Foundation Trust,31-Jul-18,DRESSINGS - PRE STERILE,Surgery,NHS LOGISTICS,1019084203,0.79,
Department of Health,Salisbury NHS Foundation Trust,31-Jul-18,DRESSINGS - PRE STERILE,Surgery,NHS LOGISTICS,1019084203,0.36,
Department of Health,Salisbury NHS Foundation Trust,31-Jul-18,DISPOSABLE THEATRE DRAPES WIPES,Surgery,NHS LOGISTICS,1019084203,1.42,
Department of Health,Salisbury NHS Foundation Trust,31-Jul-18,M & S EQUIPELECTEQUIPINST - OTHER,Musculo-Skeletal,NHS LOGISTICS,1019084203,3.36,
Department of Health,Salisbury NHS Foundation Trust,31-Jul-18,TISSUES HAND TOWELS & TOILET PAPER,Musculo-Skeletal,NHS LOGISTICS,1019084203,2.88,
Department of Health,Salisbury NHS Foundation Trust,31-Jul-18,NON DISPOSABLE BED LINEN,Musculo-Skeletal,NHS LOGISTICS,1019084203,6.64,
Department of Health,Salisbury NHS Foundation Trust,31-Jul-18,DRESSINGS - PRE STERILE,Musculo-Skeletal,NHS LOGISTICS,1019084203,0.81,
Department of Health,Salisbury NHS Foundation Trust,31-Jul-18,MEDSURGCONS - OTHER,Musculo-Skeletal,NHS LOGISTICS,1019084203,2.86,
Department of Health,Salisbury NHS Foundation Trust,31-Jul-18,NON DISPOSABLE BED LINEN,Musculo-Skeletal,NHS LOGISTICS,1019084203,3,
Department of Health,Salisbury NHS Foundation Trust,31-Jul-18,PATIENT APPLIANCES,Musculo-Skeletal,NHS LOGISTICS,1019084203,17.27,
Department of Health,Salisbury NHS Foundation Trust,31-Jul-18,DISPOSABLE THEATRE DRAPES WIPES,Musculo-Skeletal,NHS LOGISTICS,1019084203,1.32,
Department of Health,Salisbury NHS Foundation Trust,31-Jul-18,DISPOSABLE THEATRE DRAPES WIPES,Musculo-Skeletal,NHS LOGISTICS,1019084203,2.13,
Department of Health,Salisbury NHS Foundation Trust,31-Jul-18,OTHER MEDICAL SUPPLIES,Surgery,NHS LOGISTICS,1019084203,1.64,
Department of Health,Salisbury NHS Foundation Trust,31-Jul-18,MEDSURGCONS - OTHER,Surgery,NHS LOGISTICS,1019084203,1.43,
Department of Health,Salisbury NHS Foundation Trust,31-Jul-18,DRESSINGS - PRE STERILE,Musculo-Skeletal,NHS LOGISTICS,1019084203,0.37,
Department of Health,Salisbury NHS Foundation Trust,31-Jul-18,OTHER MEDICAL SUPPLIES,Musculo-Skeletal,NHS LOGISTICS,1019084203,0.75,
Department of Health,Salisbury NHS Foundation Trust,31-Jul-18,MEDSURGCONS - OTHER,Musculo-Skeletal,NHS LOGISTICS,1019084203,0.78,
Department of Health,Salisbury NHS Foundation Trust,31-Jul-18,MEDSURGCONS - OTHER,Musculo-Skeletal,NHS LOGISTICS,1019084203,1.36,
Department of Health,Salisbury NHS Foundation Trust,31-Jul-18,PATIENT APPLIANCES,Clinical Support,NHS LOGISTICS,1019084203,6.09,
Department of Health,Salisbury NHS Foundation Trust,31-Jul-18,TISSUES HAND TOWELS & TOILET PAPER,Clinical Support,NHS LOGISTICS,1019084203,0.99,
Department of Health,Salisbury NHS Foundation Trust,31-Jul-18,SERVICES FROM NHS BODIES,Clinical Support,NHS LOGISTICS,1019084203,7.97,
Department of Health,Salisbury NHS Foundation Trust,31-Jul-18,OTHER MEDICAL SUPPLIES,Clinical Support,NHS LOGISTICS,1019084203,1.88,
Department of Health,Salisbury NHS Foundation Trust,31-Jul-18,MEDSURGCONS - OTHER,Clinical Support,NHS LOGISTICS,1019084203,0.18,
Department of Health,Salisbury NHS Foundation Trust,31-Jul-18,MEDSURGCONS - OTHER,Clinical Support,NHS LOGISTICS,1019084203,5.32,
Department of Health,Salisbury NHS Foundation Trust,31-Jul-18,MEDSURGCONS - OTHER,Surgery,NHS LOGISTICS,1019084203,2.15,
Department of Health,Salisbury NHS Foundation Trust,31-Jul-18,OPTICAL  -  OTHER,Surgery,NHS LOGISTICS,1019084203,28.95,
Department of Health,Salisbury NHS Foundation Trust,31-Jul-18,DRESSINGS - PRE STERILE,Clinical Support,NHS LOGISTICS,1019084203,0.18,
Department of Health,Salisbury NHS Foundation Trust,31-Jul-18,MED SURG EQUIP REP MAINT CLEANING,Clinical Support,NHS LOGISTICS,1019084203,1.28,
Department of Health,Salisbury NHS Foundation Trust,31-Jul-18,MEDSURGCONS - OTHER,Clinical Support,NHS LOGISTICS,1019084203,0.76,
Department of Health,Salisbury NHS Foundation Trust,31-Jul-18,BABY TEXTURE MODIFIED FOODS,Clinical Support,NHS LOGISTICS,1019084203,3.33,
Department of Health,Salisbury NHS Foundation Trust,31-Jul-18,BABY TEXTURE MODIFIED FOODS,Clinical Support,NHS LOGISTICS,1019084203,6.66,
Department of Health,Salisbury NHS Foundation Trust,31-Jul-18,MEDSURGCONS - OTHER,Clinical Support,NHS LOGISTICS,1019084203,2.86,
Department of Health,Salisbury NHS Foundation Trust,31-Jul-18,NON DISPOSABLE BED LINEN,Clinical Support,NHS LOGISTICS,1019084203,2.25,
